Workbook

Sheet MENU
L4: =+TABLAS!A81 -> 1-2-3-4-5-6-8-7-11-9-10-Total general
L5: =+TABLAS!A118 -> 1-2-3-4-5-6-8-7-11-9-10-Total general
H27: CONTROL DE MESES
H29: =+TABLAS!A81 -> 1-2-3-4-5-6-8-7-11-9-10-Total general

Sheet TABLAS (hidden)
C8: Valores | I8: Tabla | J8: =IF(I9="(Todas)","CUSCO ","") -> 
C9: RED | D9: 03 - LA CONVENCION | I9: =IF(MID(D9,1,2)="99","(All)",MID(D9,1,2)) -> 03 | J9: =IF(I9="(All)"," ",I9) -> 03 | M9: =LEN(MID(D9,5,90)) -> 14 | O9: =IF(MID(D9,6,5)="(All)","",D9) -> 03 - LA CONVENCION
C10: Micro RED | D10: 0399 - (All) | I10: =IF(MID(D10,3,2)="99","(All)",MID(D10,1,4)) -> (All) | M10: =LEN(MID(D10,7,90)) -> 6 | O10: =IF(MID(D10,8,5)="(All)","",D10) -> 
C11: Establecimiento | D11: 999999999 - (All) | I11: =IF(OR(MID(D11,1,9)="999999999",MID(D11,1,9)="000000000"),"(All)",MID(D11,1,9)) -> (All) | M11: =LEN(MID(D11,12,90)) -> 6 | O11: =IF(MID(D11,13,5)="(All)","",D11) -> 
C12: Provincia | D12: 00 - (All) | I12: =IF(MID(D12,1,2)="00","(All)",MID(D12,1,2)) -> (All) | M12: =LEN(MID(D12,6,90)) -> 5 | O12: =IF(MID(D12,6,5)="(All)","",D12) -> 
C13: Distrito | D13: 0000 - (All) | I13: =IF(OR(MID(D13,1,4)="0000",MID(D13,3,2)="00"),"(All)",MID(D13,1,4)) -> (All) | M13: =LEN(MID(D13,8,90)) -> 5 | O13: =IF(MID(D13,8,5)="(All)","",D13) -> 
C14: Ejecutira | D14: 99 - (ALL) | I14: =IF(MID(D14,1,2)="99","(All)",MID(D14,1,2)) -> (All) | M14: =LEN(MID(D14,5,90)) -> 6 | O14: =IF(MID(D14,6,5)="(All)","",D14) -> 
C16: Año | D16: 2024 | I16: =+D16 -> 2024 | J16: =IF(I16="(Todas)"," ",I16) -> 2024
B20: 1 | C20: 1 | D20: 1 | E20: 1 | F20: 1 | G20: 1 | H20: 1 | I20: 1 | J20: 1 | K20: 1 | L20: 1 | M20: 0 | N20: =SUM(B20:M20) -> 11
B21: =IF(B20=1,"ENERO","") -> ENERO | C21: =IF(C20=1,"FEBRERO","") -> FEBRERO | D21: =IF(D20=1,"MARZO","") -> MARZO | E21: =IF(E20=1,"ABRIL","") -> ABRIL | F21: =IF(F20=1,"MAYO","") -> MAYO | G21: =IF(G20=1,"JUNIO","") -> JUNIO | H21: =IF(H20=1,"JULIO","") -> JULIO | I21: =IF(I20=1,"AGOSTO","") -> AGOSTO | J21: =IF(J20=1,"SETIEMBRE","") -> SETIEMBRE | K21: =IF(K20=1,"OCTUBRE","") -> OCTUBRE | L21: =IF(L20=1,"NOVIEMBRE","") -> NOVIEMBRE | M21: =IF(M20=1,"DICIEMBRE","") ->  | N21: =IF(B20=1,B21,IF(C20=1,C21,IF(D20=1,D21,IF(E20=1,E21,IF(F20=1,F21,IF(G20=1,G21,IF(H20=1,H21,IF(I20=1,I21,IF(J20=1,J21,IF(K20=1,K21,IF(L20=1,L21,IF(M20=1,M21,"")))))))))))) -> ENERO
N22: =IF(N20=1,N21,"") -> 
B23: 2 | C23: 4 | D23: 6 | E23: 8 | F23: 10 | G23: 12 | H23: 14 | I23: 16 | J23: 18 | K23: 20 | L23: 22 | N23: =MIN(B23:M23) -> 2 | O23: =MAX(B23:M23) -> 22 | P23: =MAX(C23:N23) -> 22
B24: =IF(B23=2,"ENE","") -> ENE | C24: =IF(C23=4,"FEB","") -> FEB | D24: =IF(D23=6,"MAR","") -> MAR | E24: =IF(E23=8,"ABR","") -> ABR | F24: =IF(F23=10,"MAY","") -> MAY | G24: =IF(G23=12,"JUN","") -> JUN | H24: =IF(H23=14,"JUL","") -> JUL | I24: =IF(I23=16,"AGO","") -> AGO | J24: =IF(J23=18,"SET","") -> SET | K24: =IF(K23=20,"OCT","") -> OCT | L24: =IF(L23=22,"NOV","") -> NOV | M24: =IF(M23=24,"DIC","") ->  | N24: =IF(N23=B23,B24,IF(N23=C23,C24,IF(N23=D23,D24,IF(N23=E23,E24,IF(N23=F23,F24,IF(N23=G23,G24,IF(N23=H23,#REF!,IF(N23=I23,I24,IF(N23=J23,J24,IF(N23=K23,K24,IF(N23=L23,L24,IF(N23=M23,M24,"")))))))))))) -> ENE | O24: =IF(O23=C23,C24,IF(O23=D23,D24,IF(O23=E23,E24,IF(O23=F23,F24,IF(O23=G23,G24,IF(O23=H23,H24,IF(O23=I23,I24,IF(O23=J23,J24,IF(O23=K23,K24,IF(O23=L23,L24,IF(O23=M23,M24,""))))))))))) -> NOV | P24: =IF(P23=D23,D24,IF(P23=E23,E24,IF(P23=F23,F24,IF(P23=G23,G24,IF(P23=H23,H24,IF(P23=I23,I24,IF(P23=J23,J24,IF(P23=K23,K24,IF(P23=L23,L24,IF(P23=M23,M24,IF(P23=N23,N24,""))))))))))) -> NOV
N25: =CONCATENATE(N24," - ",O24) -> ENE - NOV
N26: =IF(N23=O23,N22,N25) -> ENE - NOV
A50: ADULTO_MAYOR_01
A51: anno | B51: 2024
A52: cod_red | B52: 03
A53: codmic | B53: (Todas)
A54: cod_prov | B54: (Todas)
A55: coddist | B55: (Todas)
A56: cod_estab | B56: (Todas)
A57: cod_eje | B57: (Todas)
B59: Valores
A60: Etiquetas de fila | B60: BAS001 | C60: BAS002 | D60: BAS003 | E60: BAS004 | F60: BAS005 | G60: BAS006 | H60: BAS007 | I60: BAS008 | J60: BAS009 | K60: BAS010 | L60: BAS011 | M60: BAS012 | N60: BAS013 | O60: BAS014 | P60: BAS015 | Q60: BAS016 | R60: BAS017 | S60: BAS018 | T60: BAS019 | U60: BAS020 | V60: BAS021 | W60: BAS022 | X60: BAS023 | Y60: BAS024 | Z60: BAS025 | AA60: BAS026 | AB60: BAS027 | AC60: BAS028 | AD60: BAS029 | AE60: BAS030 | AF60: BAS031 | AG60: BAS032 | AH60: BAS033 | AI60: BAS034 | AJ60: BAS035 | AK60: BAS036 | AL60: BAS037 | AM60: BAS038 | AN60: BAS039 | AO60: BAS040 | AP60: BAS041 | AQ60: BAS042 | AR60: BAS043 | AS60: BAS044 | AT60: BAS045 | AU60: BAS046 | AV60: BAS047 | AW60: BAS048 | AX60: BAS049 | AY60: BAS050 | AZ60: BAS051 | BA60: BAS052 | BB60: BAS053 | BC60: BAS054 | BD60: BAS055 | BE60: BAS056 | BF60: BAS057 | BG60: BAS058 | BH60: BAS059 | BI60: BAS060 | BJ60: BAS061 | BK60: BAS062 | BL60: BAS063 | BM60: BAS064 | BN60: BAS065 | BO60: BAS066 | BP60: BAS067 | BQ60: BAS068 | BR60: BAS069 | BS60: BAS070 | BT60: BAS071 | BU60: BAS072 | BV60: BAS073 | BW60: BAS074 | BX60: BAS075 | BY60: BAS076 | BZ60: BAS077 | CA60: BAS078 | CB60: BAS079 | CC60: BAS080 | CD60: BAS081 | CE60: BAS082 | CF60: BAS083 | CG60: BAS084 | CH60: BAS085 | CI60: BAS086 | CJ60: BAS087 | CK60: BAS088 | CL60: BAS089 | CM60: BAS090 | CN60: BAS091 | CO60: BAS092 | CP60: BAS093 | CQ60: BAS094 | CR60: BAS095 | CS60: BAS096 | CT60: BAS097 | CU60: BAS098 | CV60: BAS099 | CW60: BAS100 | CX60: BAS101 | CY60: BAS102 | CZ60: BAS103 | DA60: BAS104 | DB60: BAS105 | DC60: BAS106 | DD60: BAS107 | DE60: BAS108 | DF60: BAS109 | DG60: BAS110 | DH60: BAS111 | DI60: BAS112 | DJ60: BAS113 | DK60: BAS114 | DL60: BAS115 | DM60: BAS116 | DN60: BAS117 | DO60: BAS118 | DP60: BAS119 | DQ60: BAS120 | DR60: BAS121 | DS60: BAS122 | DT60: BAS123 | DU60: BAS124 | DV60: BAS125 | DW60: BAS126 | DX60: BAS127 | DY60: BAS128 | DZ60: BAS129 | EA60: BAS130 | EB60: BAS131 | EC60: BAS132 | ED60: BAS133 | EE60: BAS134 | EF60: BAS135 | EG60: BAS136 | EH60: BAS137 | EI60: BAS138 | EJ60: BAS139 | EK60: BAS140 | EL60: BAS141 | EM60: BAS142 | EN60: BAS143 | EO60: BAS144 | EP60: BAS145 | EQ60: BAS146 | ER60: BAS147 | ES60: BAS148 | ET60: BAS149 | EU60: BAS150 | EV60: BAS151 | EW60: BAS152 | EX60: BAS153 | EY60: BAS154 | EZ60: BAS155 | FA60: BAS156 | FB60: BAS157 | FC60: BAS158 | FD60: BAS159 | FE60: BAS160 | FF60: BAS161 | FG60: BAS162 | FH60: BAS163 | FI60: BAS164 | FJ60: BAS165 | FK60: BAS166 | FL60: BAS167 | FM60: BAS168 | FN60: BAS169 | FO60: BAS170 | FP60: BAS171 | FQ60: BAS172 | FR60: BAS173 | FS60: BAS174 | FT60: BAS175 | FU60: BAS176 | FV60: BAS177 | FW60: BAS178 | FX60: BAS179 | FY60: BAS180 | FZ60: BAS181 | GA60: BAS182 | GB60: BAS183 | GC60: BAS184 | GD60: BAS185 | GE60: BAS186 | GF60: BAS187 | GG60: BAS188 | GH60: BAS189 | GI60: BAS190 | GJ60: BAS191 | GK60: BAS192 | GL60: BAS193 | GM60: BAS194 | GN60: BAS195 | GO60: BAS196 | GP60: BAS197 | GQ60: BAS198 | GR60: BAS199 | GS60: BAS200 | GT60: BAS201 | GU60: BAS202 | GV60: BAS203 | GW60: BAS204 | GX60: BAS205 | GY60: BAS206 | GZ60: BAS207 | HA60: BAS208 | HB60: BAS209 | HC60: BAS210 | HD60: BAS211 | HE60: BAS212 | HF60: BAS213 | HG60: BAS214 | HH60: BAS215 | HI60: BAS216 | HJ60: BAS217 | HK60: BAS218 | HL60: BAS219 | HM60: BAS220 | HN60: BAS221 | HO60: BAS222 | HP60: BAS223 | HQ60: BAS224 | HR60: BAS225 | HS60: BAS226 | HT60: BAS227 | HU60: BAS228 | HV60: BAS229 | HW60: BAS230
A61: 1 | B61: 1 | C61: 3 | D61: 1 | E61: 0 | F61: 0 | G61: 1 | H61: 0 | I61: 0 | J61: 0 | K61: 0 | L61: 0 | M61: 0 | N61: 0 | O61: 0 | P61: 0 | Q61: 0 | R61: 0 | S61: 0 | T61: 0 | U61: 0 | V61: 0 | W61: 0 | X61: 0 | Y61: 0 | Z61: 3 | AA61: 6 | AB61: 2 | AC61: 1 | AD61: 0 | AE61: 1 | AF61: 0 | AG61: 0 | AH61: 0 | AI61: 0 | AJ61: 0 | AK61: 0 | AL61: 0 | AM61: 0 | AN61: 0 | AO61: 0 | AP61: 0 | AQ61: 0 | AR61: 0 | AS61: 0 | AT61: 0 | AU61: 0 | AV61: 0 | AW61: 0 | AX61: 0 | AY61: 0 | AZ61: 0 | BA61: 0 | BB61: 0 | BC61: 0 | BD61: 5 | BE61: 11 | BF61: 3 | BG61: 6 | BH61: 0 | BI61: 1 | BJ61: 0 | BK61: 0 | BL61: 0 | BM61: 0 | BN61: 0 | BO61: 0 | BP61: 0 | BQ61: 0 | BR61: 0 | BS61: 0 | BT61: 0 | BU61: 0 | BV61: 0 | BW61: 0 | BX61: 0 | BY61: 0 | BZ61: 0 | CA61: 0 | CB61: 0 | CC61: 0 | CD61: 0 | CE61: 0 | CF61: 0 | CG61: 0 | CH61: 0 | CI61: 0 | CJ61: 0 | CK61: 0 | CL61: 0 | CM61: 0 | CN61: 0 | CO61: 0 | CP61: 0 | CQ61: 0 | CR61: 0 | CS61: 0 | CT61: 0 | CU61: 0 | CV61: 0 | CW61: 0 | CX61: 0 | CY61: 0 | CZ61: 0 | DA61: 0 | DB61: 0 | DC61: 0 | DD61: 0 | DE61: 0 | DF61: 2 | DG61: 1 | DH61: 2 | DI61: 2 | DJ61: 1 | DK61: 1 | DL61: 15 | DM61: 13 | DN61: 3 | DO61: 8 | DP61: 2 | DQ61: 2 | DR61: 1 | DS61: 4 | DT61: 5 | DU61: 4 | DV61: 0 | DW61: 0 | DX61: 2 | DY61: 8 | DZ61: 2 | EA61: 4 | EB61: 0 | EC61: 0 | ED61: 7 | EE61: 4 | EF61: 9 | EG61: 9 | EH61: 4 | EI61: 2 | EJ61: 6 | EK61: 3 | EL61: 1 | EM61: 6 | EN61: 0 | EO61: 0 | EP61: 5 | EQ61: 11 | ER61: 3 | ES61: 6 | ET61: 0 | EU61: 1 | EV61: 0 | EW61: 0 | EX61: 0 | EY61: 0 | EZ61: 0 | FA61: 0 | FB61: 0 | FC61: 0 | FD61: 0 | FE61: 0 | FF61: 0 | FG61: 0 | FH61: 0 | FI61: 0 | FJ61: 0 | FK61: 0 | FL61: 0 | FM61: 0 | FN61: 14 | FO61: 20 | FP61: 11 | FQ61: 20 | FR61: 3 | FS61: 2 | FT61: 1 | FU61: 2 | FV61: 2 | FW61: 6 | FX61: 0 | FY61: 0 | FZ61: 1 | GA61: 1 | GB61: 0 | GC61: 1 | GD61: 1 | GE61: 0 | GF61: 0 | GG61: 1 | GH61: 0 | GI61: 0 | GJ61: 0 | GK61: 0 | GL61: 2 | GM61: 2 | GN61: 0 | GO61: 0 | GP61: 0 | GQ61: 0 | GR61: 1 | GS61: 0 | GT61: 0 | GU61: 0 | GV61: 0 | GW61: 0 | GX61: 0 | GY61: 0 | GZ61: 0 | HA61: 0 | HB61: 0 | HC61: 0 | HD61: 6 | HE61: 12 | HF61: 8 | HG61: 15 | HH61: 1 | HI61: 1 | HJ61: 0 | HK61: 0 | HL61: 0 | HM61: 0 | HN61: 0 | HO61: 0 | HP61: 0 | HQ61: 0 | HR61: 0 | HS61: 0 | HT61: 0 | HU61: 0 | HV61: 0 | HW61: 0
A62: 2 | B62: 1 | C62: 1 | D62: 1 | E62: 1 | F62: 0 | G62: 0 | H62: 0 | I62: 0 | J62: 0 | K62: 0 | L62: 0 | M62: 0 | N62: 1 | O62: 0 | P62: 0 | Q62: 1 | R62: 0 | S62: 1 | T62: 0 | U62: 0 | V62: 0 | W62: 0 | X62: 0 | Y62: 0 | Z62: 5 | AA62: 1 | AB62: 2 | AC62: 2 | AD62: 1 | AE62: 1 | AF62: 1 | AG62: 1 | AH62: 0 | AI62: 0 | AJ62: 0 | AK62: 0 | AL62: 0 | AM62: 0 | AN62: 0 | AO62: 0 | AP62: 0 | AQ62: 0 | AR62: 0 | AS62: 1 | AT62: 0 | AU62: 0 | AV62: 1 | AW62: 0 | AX62: 0 | AY62: 0 | AZ62: 0 | BA62: 0 | BB62: 0 | BC62: 0 | BD62: 1 | BE62: 12 | BF62: 1 | BG62: 4 | BH62: 1 | BI62: 1 | BJ62: 0 | BK62: 0 | BL62: 0 | BM62: 0 | BN62: 0 | BO62: 0 | BP62: 0 | BQ62: 0 | BR62: 0 | BS62: 0 | BT62: 0 | BU62: 0 | BV62: 0 | BW62: 0 | BX62: 0 | BY62: 0 | BZ62: 0 | CA62: 0 | CB62: 0 | CC62: 0 | CD62: 0 | CE62: 0 | CF62: 0 | CG62: 0 | CH62: 0 | CI62: 0 | CJ62: 0 | CK62: 0 | CL62: 0 | CM62: 0 | CN62: 0 | CO62: 0 | CP62: 0 | CQ62: 0 | CR62: 0 | CS62: 0 | CT62: 0 | CU62: 0 | CV62: 0 | CW62: 0 | CX62: 0 | CY62: 0 | CZ62: 0 | DA62: 0 | DB62: 0 | DC62: 0 | DD62: 0 | DE62: 0 | DF62: 2 | DG62: 3 | DH62: 2 | DI62: 6 | DJ62: 0 | DK62: 2 | DL62: 7 | DM62: 8 | DN62: 3 | DO62: 3 | DP62: 0 | DQ62: 3 | DR62: 3 | DS62: 5 | DT62: 1 | DU62: 2 | DV62: 3 | DW62: 0 | DX62: 1 | DY62: 8 | DZ62: 0 | EA62: 2 | EB62: 1 | EC62: 0 | ED62: 7 | EE62: 9 | EF62: 4 | EG62: 4 | EH62: 4 | EI62: 1 | EJ62: 5 | EK62: 4 | EL62: 0 | EM62: 0 | EN62: 2 | EO62: 0 | EP62: 1 | EQ62: 12 | ER62: 1 | ES62: 4 | ET62: 1 | EU62: 1 | EV62: 1 | EW62: 0 | EX62: 0 | EY62: 1 | EZ62: 0 | FA62: 0 | FB62: 0 | FC62: 0 | FD62: 0 | FE62: 0 | FF62: 0 | FG62: 0 | FH62: 0 | FI62: 0 | FJ62: 0 | FK62: 0 | FL62: 0 | FM62: 0 | FN62: 9 | FO62: 16 | FP62: 3 | FQ62: 5 | FR62: 4 | FS62: 3 | FT62: 0 | FU62: 3 | FV62: 1 | FW62: 0 | FX62: 1 | FY62: 0 | FZ62: 0 | GA62: 1 | GB62: 0 | GC62: 1 | GD62: 0 | GE62: 0 | GF62: 0 | GG62: 1 | GH62: 0 | GI62: 0 | GJ62: 0 | GK62: 0 | GL62: 1 | GM62: 1 | GN62: 1 | GO62: 0 | GP62: 0 | GQ62: 0 | GR62: 2 | GS62: 1 | GT62: 0 | GU62: 1 | GV62: 0 | GW62: 1 | GX62: 0 | GY62: 0 | GZ62: 1 | HA62: 0 | HB62: 0 | HC62: 0 | HD62: 1 | HE62: 15 | HF62: 3 | HG62: 5 | HH62: 4 | HI62: 1 | HJ62: 0 | HK62: 0 | HL62: 0 | HM62: 0 | HN62: 0 | HO62: 0 | HP62: 0 | HQ62: 0 | HR62: 0 | HS62: 0 | HT62: 0 | HU62: 0 | HV62: 0 | HW62: 0
A63: 3 | B63: 1 | C63: 4 | D63: 1 | E63: 0 | F63: 0 | G63: 0 | H63: 0 | I63: 0 | J63: 0 | K63: 0 | L63: 0 | M63: 0 | N63: 1 | O63: 1 | P63: 0 | Q63: 1 | R63: 0 | S63: 1 | T63: 0 | U63: 0 | V63: 0 | W63: 0 | X63: 0 | Y63: 0 | Z63: 4 | AA63: 15 | AB63: 10 | AC63: 4 | AD63: 1 | AE63: 2 | AF63: 1 | AG63: 0 | AH63: 0 | AI63: 1 | AJ63: 0 | AK63: 0 | AL63: 0 | AM63: 0 | AN63: 0 | AO63: 0 | AP63: 0 | AQ63: 0 | AR63: 1 | AS63: 0 | AT63: 0 | AU63: 0 | AV63: 0 | AW63: 0 | AX63: 0 | AY63: 0 | AZ63: 0 | BA63: 0 | BB63: 0 | BC63: 0 | BD63: 3 | BE63: 13 | BF63: 1 | BG63: 3 | BH63: 0 | BI63: 3 | BJ63: 0 | BK63: 0 | BL63: 0 | BM63: 0 | BN63: 0 | BO63: 0 | BP63: 0 | BQ63: 0 | BR63: 0 | BS63: 0 | BT63: 0 | BU63: 0 | BV63: 0 | BW63: 0 | BX63: 0 | BY63: 0 | BZ63: 0 | CA63: 0 | CB63: 0 | CC63: 0 | CD63: 0 | CE63: 0 | CF63: 0 | CG63: 0 | CH63: 0 | CI63: 0 | CJ63: 0 | CK63: 0 | CL63: 0 | CM63: 0 | CN63: 0 | CO63: 0 | CP63: 0 | CQ63: 0 | CR63: 0 | CS63: 0 | CT63: 0 | CU63: 0 | CV63: 0 | CW63: 0 | CX63: 0 | CY63: 0 | CZ63: 0 | DA63: 0 | DB63: 0 | DC63: 0 | DD63: 0 | DE63: 0 | DF63: 3 | DG63: 4 | DH63: 4 | DI63: 1 | DJ63: 4 | DK63: 0 | DL63: 8 | DM63: 7 | DN63: 6 | DO63: 4 | DP63: 3 | DQ63: 5 | DR63: 1 | DS63: 9 | DT63: 1 | DU63: 3 | DV63: 0 | DW63: 2 | DX63: 0 | DY63: 5 | DZ63: 0 | EA63: 1 | EB63: 0 | EC63: 2 | ED63: 5 | EE63: 8 | EF63: 6 | EG63: 4 | EH63: 7 | EI63: 2 | EJ63: 3 | EK63: 3 | EL63: 2 | EM63: 2 | EN63: 3 | EO63: 2 | EP63: 3 | EQ63: 13 | ER63: 1 | ES63: 3 | ET63: 0 | EU63: 3 | EV63: 0 | EW63: 0 | EX63: 0 | EY63: 0 | EZ63: 0 | FA63: 0 | FB63: 0 | FC63: 0 | FD63: 0 | FE63: 0 | FF63: 0 | FG63: 0 | FH63: 0 | FI63: 0 | FJ63: 0 | FK63: 0 | FL63: 0 | FM63: 0 | FN63: 9 | FO63: 16 | FP63: 9 | FQ63: 10 | FR63: 7 | FS63: 7 | FT63: 1 | FU63: 6 | FV63: 1 | FW63: 1 | FX63: 2 | FY63: 1 | FZ63: 0 | GA63: 0 | GB63: 0 | GC63: 0 | GD63: 0 | GE63: 0 | GF63: 0 | GG63: 0 | GH63: 0 | GI63: 0 | GJ63: 0 | GK63: 0 | GL63: 0 | GM63: 0 | GN63: 0 | GO63: 0 | GP63: 0 | GQ63: 0 | GR63: 1 | GS63: 0 | GT63: 3 | GU63: 2 | GV63: 1 | GW63: 0 | GX63: 0 | GY63: 0 | GZ63: 0 | HA63: 0 | HB63: 0 | HC63: 0 | HD63: 3 | HE63: 12 | HF63: 1 | HG63: 5 | HH63: 3 | HI63: 3 | HJ63: 0 | HK63: 0 | HL63: 0 | HM63: 0 | HN63: 0 | HO63: 0 | HP63: 0 | HQ63: 0 | HR63: 0 | HS63: 0 | HT63: 0 | HU63: 0 | HV63: 0 | HW63: 0
A64: 4 | B64: 3 | C64: 2 | D64: 1 | E64: 0 | F64: 0 | G64: 0 | H64: 0 | I64: 0 | J64: 0 | K64: 0 | L64: 0 | M64: 0 | N64: 1 | O64: 0 | P64: 0 | Q64: 0 | R64: 0 | S64: 1 | T64: 0 | U64: 0 | V64: 0 | W64: 0 | X64: 0 | Y64: 0 | Z64: 7 | AA64: 6 | AB64: 12 | AC64: 11 | AD64: 4 | AE64: 12 | AF64: 0 | AG64: 0 | AH64: 0 | AI64: 0 | AJ64: 0 | AK64: 1 | AL64: 0 | AM64: 0 | AN64: 0 | AO64: 0 | AP64: 0 | AQ64: 0 | AR64: 0 | AS64: 0 | AT64: 0 | AU64: 0 | AV64: 0 | AW64: 0 | AX64: 0 | AY64: 0 | AZ64: 0 | BA64: 0 | BB64: 0 | BC64: 0 | BD64: 2 | BE64: 14 | BF64: 4 | BG64: 5 | BH64: 1 | BI64: 6 | BJ64: 0 | BK64: 0 | BL64: 0 | BM64: 0 | BN64: 0 | BO64: 0 | BP64: 0 | BQ64: 0 | BR64: 0 | BS64: 0 | BT64: 0 | BU64: 0 | BV64: 0 | BW64: 0 | BX64: 0 | BY64: 0 | BZ64: 0 | CA64: 0 | CB64: 0 | CC64: 0 | CD64: 0 | CE64: 0 | CF64: 0 | CG64: 0 | CH64: 0 | CI64: 0 | CJ64: 0 | CK64: 0 | CL64: 0 | CM64: 0 | CN64: 0 | CO64: 0 | CP64: 0 | CQ64: 0 | CR64: 0 | CS64: 0 | CT64: 0 | CU64: 0 | CV64: 0 | CW64: 0 | CX64: 0 | CY64: 0 | CZ64: 0 | DA64: 0 | DB64: 0 | DC64: 0 | DD64: 0 | DE64: 0 | DF64: 7 | DG64: 0 | DH64: 5 | DI64: 8 | DJ64: 6 | DK64: 9 | DL64: 10 | DM64: 14 | DN64: 6 | DO64: 6 | DP64: 5 | DQ64: 3 | DR64: 0 | DS64: 7 | DT64: 4 | DU64: 2 | DV64: 0 | DW64: 1 | DX64: 3 | DY64: 8 | DZ64: 1 | EA64: 5 | EB64: 1 | EC64: 3 | ED64: 4 | EE64: 6 | EF64: 9 | EG64: 6 | EH64: 4 | EI64: 4 | EJ64: 3 | EK64: 4 | EL64: 3 | EM64: 3 | EN64: 3 | EO64: 5 | EP64: 2 | EQ64: 14 | ER64: 4 | ES64: 5 | ET64: 1 | EU64: 6 | EV64: 0 | EW64: 0 | EX64: 0 | EY64: 0 | EZ64: 0 | FA64: 0 | FB64: 0 | FC64: 0 | FD64: 0 | FE64: 0 | FF64: 0 | FG64: 0 | FH64: 0 | FI64: 0 | FJ64: 0 | FK64: 0 | FL64: 0 | FM64: 0 | FN64: 12 | FO64: 26 | FP64: 6 | FQ64: 10 | FR64: 7 | FS64: 5 | FT64: 2 | FU64: 1 | FV64: 1 | FW64: 2 | FX64: 1 | FY64: 1 | FZ64: 0 | GA64: 2 | GB64: 0 | GC64: 0 | GD64: 0 | GE64: 0 | GF64: 0 | GG64: 0 | GH64: 0 | GI64: 0 | GJ64: 0 | GK64: 1 | GL64: 0 | GM64: 0 | GN64: 1 | GO64: 1 | GP64: 0 | GQ64: 0 | GR64: 0 | GS64: 0 | GT64: 0 | GU64: 0 | GV64: 1 | GW64: 2 | GX64: 0 | GY64: 0 | GZ64: 0 | HA64: 0 | HB64: 0 | HC64: 0 | HD64: 6 | HE64: 11 | HF64: 2 | HG64: 5 | HH64: 2 | HI64: 2 | HJ64: 0 | HK64: 0 | HL64: 0 | HM64: 0 | HN64: 0 | HO64: 0 | HP64: 0 | HQ64: 0 | HR64: 0 | HS64: 0 | HT64: 0 | HU64: 0 | HV64: 0 | HW64: 0
A65: 5 | B65: 1 | C65: 2 | D65: 0 | E65: 0 | F65: 0 | G65: 0 | H65: 0 | I65: 0 | J65: 0 | K65: 0 | L65: 0 | M65: 1 | N65: 1 | O65: 2 | P65: 0 | Q65: 0 | R65: 0 | S65: 0 | T65: 0 | U65: 0 | V65: 0 | W65: 0 | X65: 0 | Y65: 0 | Z65: 2 | AA65: 10 | AB65: 2 | AC65: 6 | AD65: 2 | AE65: 3 | AF65: 0 | AG65: 1 | AH65: 0 | AI65: 1 | AJ65: 0 | AK65: 0 | AL65: 0 | AM65: 0 | AN65: 0 | AO65: 0 | AP65: 0 | AQ65: 0 | AR65: 0 | AS65: 0 | AT65: 0 | AU65: 0 | AV65: 0 | AW65: 0 | AX65: 0 | AY65: 0 | AZ65: 0 | BA65: 0 | BB65: 0 | BC65: 0 | BD65: 5 | BE65: 7 | BF65: 2 | BG65: 8 | BH65: 0 | BI65: 3 | BJ65: 0 | BK65: 0 | BL65: 0 | BM65: 0 | BN65: 0 | BO65: 0 | BP65: 0 | BQ65: 0 | BR65: 0 | BS65: 0 | BT65: 0 | BU65: 0 | BV65: 0 | BW65: 0 | BX65: 0 | BY65: 0 | BZ65: 0 | CA65: 0 | CB65: 0 | CC65: 0 | CD65: 0 | CE65: 0 | CF65: 0 | CG65: 0 | CH65: 0 | CI65: 0 | CJ65: 0 | CK65: 0 | CL65: 0 | CM65: 0 | CN65: 0 | CO65: 0 | CP65: 0 | CQ65: 0 | CR65: 0 | CS65: 0 | CT65: 0 | CU65: 0 | CV65: 0 | CW65: 0 | CX65: 0 | CY65: 0 | CZ65: 0 | DA65: 0 | DB65: 0 | DC65: 0 | DD65: 0 | DE65: 0 | DF65: 3 | DG65: 1 | DH65: 7 | DI65: 4 | DJ65: 5 | DK65: 1 | DL65: 9 | DM65: 11 | DN65: 6 | DO65: 4 | DP65: 2 | DQ65: 0 | DR65: 3 | DS65: 5 | DT65: 1 | DU65: 1 | DV65: 0 | DW65: 1 | DX65: 3 | DY65: 3 | DZ65: 0 | EA65: 2 | EB65: 0 | EC65: 1 | ED65: 4 | EE65: 2 | EF65: 6 | EG65: 4 | EH65: 2 | EI65: 2 | EJ65: 5 | EK65: 5 | EL65: 2 | EM65: 3 | EN65: 1 | EO65: 0 | EP65: 5 | EQ65: 7 | ER65: 2 | ES65: 8 | ET65: 0 | EU65: 3 | EV65: 0 | EW65: 0 | EX65: 0 | EY65: 0 | EZ65: 0 | FA65: 0 | FB65: 0 | FC65: 0 | FD65: 0 | FE65: 0 | FF65: 0 | FG65: 0 | FH65: 0 | FI65: 0 | FJ65: 0 | FK65: 0 | FL65: 0 | FM65: 0 | FN65: 13 | FO65: 20 | FP65: 12 | FQ65: 12 | FR65: 6 | FS65: 4 | FT65: 2 | FU65: 0 | FV65: 1 | FW65: 4 | FX65: 1 | FY65: 1 | FZ65: 1 | GA65: 0 | GB65: 0 | GC65: 1 | GD65: 1 | GE65: 0 | GF65: 0 | GG65: 0 | GH65: 0 | GI65: 0 | GJ65: 0 | GK65: 0 | GL65: 0 | GM65: 0 | GN65: 0 | GO65: 0 | GP65: 0 | GQ65: 1 | GR65: 0 | GS65: 0 | GT65: 1 | GU65: 1 | GV65: 0 | GW65: 0 | GX65: 0 | GY65: 0 | GZ65: 0 | HA65: 0 | HB65: 0 | HC65: 0 | HD65: 4 | HE65: 11 | HF65: 4 | HG65: 8 | HH65: 3 | HI65: 1 | HJ65: 0 | HK65: 0 | HL65: 0 | HM65: 0 | HN65: 0 | HO65: 0 | HP65: 0 | HQ65: 0 | HR65: 0 | HS65: 0 | HT65: 0 | HU65: 0 | HV65: 0 | HW65: 0
A66: 6 | B66: 2 | C66: 2 | D66: 1 | E66: 0 | F66: 0 | G66: 0 | H66: 0 | I66: 1 | J66: 0 | K66: 0 | L66: 0 | M66: 0 | N66: 0 | O66: 1 | P66: 1 | Q66: 0 | R66: 0 | S66: 0 | T66: 0 | U66: 0 | V66: 0 | W66: 0 | X66: 0 | Y66: 0 | Z66: 9 | AA66: 8 | AB66: 9 | AC66: 4 | AD66: 4 | AE66: 2 | AF66: 1 | AG66: 0 | AH66: 0 | AI66: 0 | AJ66: 0 | AK66: 0 | AL66: 0 | AM66: 0 | AN66: 0 | AO66: 0 | AP66: 0 | AQ66: 0 | AR66: 0 | AS66: 0 | AT66: 0 | AU66: 0 | AV66: 0 | AW66: 0 | AX66: 0 | AY66: 0 | AZ66: 0 | BA66: 0 | BB66: 0 | BC66: 0 | BD66: 3 | BE66: 8 | BF66: 2 | BG66: 4 | BH66: 1 | BI66: 0 | BJ66: 0 | BK66: 0 | BL66: 0 | BM66: 0 | BN66: 0 | BO66: 0 | BP66: 0 | BQ66: 0 | BR66: 0 | BS66: 0 | BT66: 0 | BU66: 0 | BV66: 0 | BW66: 0 | BX66: 0 | BY66: 0 | BZ66: 0 | CA66: 0 | CB66: 0 | CC66: 0 | CD66: 0 | CE66: 0 | CF66: 0 | CG66: 0 | CH66: 0 | CI66: 0 | CJ66: 0 | CK66: 0 | CL66: 0 | CM66: 0 | CN66: 0 | CO66: 0 | CP66: 0 | CQ66: 0 | CR66: 0 | CS66: 0 | CT66: 0 | CU66: 0 | CV66: 0 | CW66: 0 | CX66: 0 | CY66: 0 | CZ66: 0 | DA66: 0 | DB66: 0 | DC66: 0 | DD66: 0 | DE66: 0 | DF66: 5 | DG66: 7 | DH66: 5 | DI66: 5 | DJ66: 0 | DK66: 5 | DL66: 10 | DM66: 5 | DN66: 5 | DO66: 4 | DP66: 1 | DQ66: 3 | DR66: 1 | DS66: 1 | DT66: 0 | DU66: 1 | DV66: 1 | DW66: 1 | DX66: 0 | DY66: 3 | DZ66: 1 | EA66: 2 | EB66: 0 | EC66: 0 | ED66: 6 | EE66: 1 | EF66: 0 | EG66: 4 | EH66: 1 | EI66: 4 | EJ66: 5 | EK66: 1 | EL66: 4 | EM66: 5 | EN66: 1 | EO66: 1 | EP66: 3 | EQ66: 8 | ER66: 2 | ES66: 4 | ET66: 1 | EU66: 0 | EV66: 0 | EW66: 0 | EX66: 0 | EY66: 0 | EZ66: 0 | FA66: 0 | FB66: 0 | FC66: 0 | FD66: 0 | FE66: 0 | FF66: 0 | FG66: 0 | FH66: 0 | FI66: 0 | FJ66: 0 | FK66: 0 | FL66: 0 | FM66: 0 | FN66: 13 | FO66: 16 | FP66: 8 | FQ66: 11 | FR66: 2 | FS66: 5 | FT66: 2 | FU66: 2 | FV66: 2 | FW66: 2 | FX66: 0 | FY66: 0 | FZ66: 0 | GA66: 0 | GB66: 0 | GC66: 0 | GD66: 1 | GE66: 0 | GF66: 1 | GG66: 0 | GH66: 0 | GI66: 0 | GJ66: 0 | GK66: 0 | GL66: 1 | GM66: 1 | GN66: 1 | GO66: 1 | GP66: 0 | GQ66: 1 | GR66: 0 | GS66: 0 | GT66: 0 | GU66: 0 | GV66: 0 | GW66: 1 | GX66: 0 | GY66: 0 | GZ66: 0 | HA66: 0 | HB66: 0 | HC66: 0 | HD66: 10 | HE66: 10 | HF66: 8 | HG66: 9 | HH66: 2 | HI66: 3 | HJ66: 0 | HK66: 0 | HL66: 0 | HM66: 0 | HN66: 0 | HO66: 0 | HP66: 0 | HQ66: 0 | HR66: 0 | HS66: 0 | HT66: 0 | HU66: 0 | HV66: 0 | HW66: 0
A67: 8 | B67: 3 | C67: 3 | D67: 2 | E67: 1 | F67: 1 | G67: 1 | H67: 0 | I67: 0 | J67: 0 | K67: 0 | L67: 0 | M67: 0 | N67: 0 | O67: 2 | P67: 1 | Q67: 2 | R67: 1 | S67: 0 | T67: 0 | U67: 0 | V67: 0 | W67: 0 | X67: 0 | Y67: 0 | Z67: 12 | AA67: 11 | AB67: 8 | AC67: 11 | AD67: 13 | AE67: 5 | AF67: 0 | AG67: 1 | AH67: 0 | AI67: 0 | AJ67: 0 | AK67: 0 | AL67: 0 | AM67: 0 | AN67: 0 | AO67: 0 | AP67: 0 | AQ67: 0 | AR67: 0 | AS67: 0 | AT67: 0 | AU67: 0 | AV67: 0 | AW67: 0 | AX67: 0 | AY67: 0 | AZ67: 0 | BA67: 0 | BB67: 0 | BC67: 0 | BD67: 0 | BE67: 7 | BF67: 3 | BG67: 6 | BH67: 1 | BI67: 1 | BJ67: 0 | BK67: 0 | BL67: 0 | BM67: 0 | BN67: 0 | BO67: 0 | BP67: 0 | BQ67: 0 | BR67: 0 | BS67: 0 | BT67: 0 | BU67: 0 | BV67: 0 | BW67: 0 | BX67: 0 | BY67: 0 | BZ67: 0 | CA67: 0 | CB67: 0 | CC67: 0 | CD67: 0 | CE67: 0 | CF67: 0 | CG67: 0 | CH67: 0 | CI67: 0 | CJ67: 0 | CK67: 0 | CL67: 0 | CM67: 0 | CN67: 0 | CO67: 0 | CP67: 0 | CQ67: 0 | CR67: 0 | CS67: 0 | CT67: 0 | CU67: 0 | CV67: 0 | CW67: 0 | CX67: 0 | CY67: 0 | CZ67: 0 | DA67: 0 | DB67: 0 | DC67: 0 | DD67: 0 | DE67: 0 | DF67: 3 | DG67: 2 | DH67: 7 | DI67: 1 | DJ67: 0 | DK67: 4 | DL67: 19 | DM67: 5 | DN67: 11 | DO67: 8 | DP67: 8 | DQ67: 5 | DR67: 3 | DS67: 6 | DT67: 3 | DU67: 4 | DV67: 2 | DW67: 1 | DX67: 1 | DY67: 3 | DZ67: 1 | EA67: 5 | EB67: 3 | EC67: 2 | ED67: 3 | EE67: 3 | EF67: 4 | EG67: 0 | EH67: 3 | EI67: 3 | EJ67: 4 | EK67: 2 | EL67: 1 | EM67: 0 | EN67: 2 | EO67: 0 | EP67: 0 | EQ67: 7 | ER67: 3 | ES67: 6 | ET67: 1 | EU67: 1 | EV67: 0 | EW67: 0 | EX67: 0 | EY67: 0 | EZ67: 0 | FA67: 0 | FB67: 0 | FC67: 0 | FD67: 0 | FE67: 0 | FF67: 0 | FG67: 0 | FH67: 0 | FI67: 0 | FJ67: 0 | FK67: 0 | FL67: 0 | FM67: 0 | FN67: 16 | FO67: 13 | FP67: 13 | FQ67: 13 | FR67: 7 | FS67: 11 | FT67: 0 | FU67: 4 | FV67: 0 | FW67: 1 | FX67: 2 | FY67: 3 | FZ67: 0 | GA67: 0 | GB67: 0 | GC67: 0 | GD67: 2 | GE67: 0 | GF67: 0 | GG67: 2 | GH67: 1 | GI67: 0 | GJ67: 1 | GK67: 0 | GL67: 0 | GM67: 1 | GN67: 0 | GO67: 0 | GP67: 1 | GQ67: 1 | GR67: 0 | GS67: 1 | GT67: 0 | GU67: 0 | GV67: 2 | GW67: 2 | GX67: 0 | GY67: 0 | GZ67: 0 | HA67: 0 | HB67: 0 | HC67: 0 | HD67: 7 | HE67: 13 | HF67: 6 | HG67: 12 | HH67: 3 | HI67: 6 | HJ67: 0 | HK67: 0 | HL67: 0 | HM67: 0 | HN67: 0 | HO67: 0 | HP67: 0 | HQ67: 0 | HR67: 0 | HS67: 0 | HT67: 0 | HU67: 0 | HV67: 0 | HW67: 0
A68: 7 | B68: 1 | C68: 1 | D68: 0 | E68: 0 | F68: 0 | G68: 0 | H68: 0 | I68: 0 | J68: 0 | K68: 0 | L68: 0 | M68: 0 | N68: 0 | O68: 1 | P68: 0 | Q68: 1 | R68: 0 | S68: 0 | T68: 0 | U68: 0 | V68: 0 | W68: 0 | X68: 0 | Y68: 0 | Z68: 18 | AA68: 19 | AB68: 13 | AC68: 15 | AD68: 12 | AE68: 8 | AF68: 9 | AG68: 7 | AH68: 9 | AI68: 3 | AJ68: 3 | AK68: 2 | AL68: 0 | AM68: 0 | AN68: 0 | AO68: 0 | AP68: 0 | AQ68: 0 | AR68: 0 | AS68: 0 | AT68: 0 | AU68: 0 | AV68: 0 | AW68: 0 | AX68: 0 | AY68: 0 | AZ68: 0 | BA68: 0 | BB68: 0 | BC68: 0 | BD68: 1 | BE68: 6 | BF68: 2 | BG68: 10 | BH68: 1 | BI68: 3 | BJ68: 0 | BK68: 0 | BL68: 0 | BM68: 0 | BN68: 0 | BO68: 0 | BP68: 0 | BQ68: 0 | BR68: 0 | BS68: 0 | BT68: 0 | BU68: 0 | BV68: 0 | BW68: 0 | BX68: 0 | BY68: 0 | BZ68: 0 | CA68: 0 | CB68: 0 | CC68: 0 | CD68: 0 | CE68: 0 | CF68: 0 | CG68: 0 | CH68: 0 | CI68: 0 | CJ68: 0 | CK68: 0 | CL68: 0 | CM68: 0 | CN68: 0 | CO68: 0 | CP68: 0 | CQ68: 0 | CR68: 0 | CS68: 0 | CT68: 0 | CU68: 0 | CV68: 0 | CW68: 0 | CX68: 0 | CY68: 0 | CZ68: 0 | DA68: 0 | DB68: 0 | DC68: 0 | DD68: 0 | DE68: 0 | DF68: 3 | DG68: 2 | DH68: 1 | DI68: 4 | DJ68: 1 | DK68: 3 | DL68: 10 | DM68: 8 | DN68: 3 | DO68: 8 | DP68: 5 | DQ68: 3 | DR68: 2 | DS68: 7 | DT68: 3 | DU68: 5 | DV68: 0 | DW68: 0 | DX68: 0 | DY68: 2 | DZ68: 0 | EA68: 7 | EB68: 1 | EC68: 3 | ED68: 7 | EE68: 4 | EF68: 2 | EG68: 4 | EH68: 4 | EI68: 2 | EJ68: 4 | EK68: 0 | EL68: 0 | EM68: 3 | EN68: 0 | EO68: 0 | EP68: 1 | EQ68: 6 | ER68: 2 | ES68: 10 | ET68: 1 | EU68: 3 | EV68: 0 | EW68: 0 | EX68: 0 | EY68: 0 | EZ68: 0 | FA68: 0 | FB68: 0 | FC68: 0 | FD68: 0 | FE68: 0 | FF68: 0 | FG68: 0 | FH68: 0 | FI68: 0 | FJ68: 0 | FK68: 0 | FL68: 0 | FM68: 0 | FN68: 13 | FO68: 15 | FP68: 4 | FQ68: 17 | FR68: 6 | FS68: 7 | FT68: 1 | FU68: 1 | FV68: 2 | FW68: 2 | FX68: 1 | FY68: 2 | FZ68: 0 | GA68: 0 | GB68: 1 | GC68: 0 | GD68: 0 | GE68: 0 | GF68: 1 | GG68: 2 | GH68: 0 | GI68: 0 | GJ68: 0 | GK68: 0 | GL68: 1 | GM68: 0 | GN68: 1 | GO68: 2 | GP68: 0 | GQ68: 2 | GR68: 1 | GS68: 1 | GT68: 0 | GU68: 1 | GV68: 0 | GW68: 2 | GX68: 0 | GY68: 0 | GZ68: 0 | HA68: 0 | HB68: 0 | HC68: 0 | HD68: 8 | HE68: 6 | HF68: 3 | HG68: 7 | HH68: 2 | HI68: 3 | HJ68: 0 | HK68: 0 | HL68: 0 | HM68: 0 | HN68: 0 | HO68: 0 | HP68: 0 | HQ68: 0 | HR68: 0 | HS68: 0 | HT68: 0 | HU68: 0 | HV68: 0 | HW68: 0
A69: 11 | B69: 1 | C69: 1 | D69: 1 | E69: 0 | F69: 0 | G69: 1 | H69: 0 | I69: 0 | J69: 0 | K69: 0 | L69: 0 | M69: 0 | N69: 0 | O69: 0 | P69: 0 | Q69: 0 | R69: 0 | S69: 0 | T69: 0 | U69: 0 | V69: 0 | W69: 0 | X69: 0 | Y69: 0 | Z69: 8 | AA69: 9 | AB69: 5 | AC69: 5 | AD69: 1 | AE69: 5 | AF69: 0 | AG69: 0 | AH69: 1 | AI69: 0 | AJ69: 0 | AK69: 0 | AL69: 0 | AM69: 0 | AN69: 0 | AO69: 0 | AP69: 0 | AQ69: 0 | AR69: 0 | AS69: 0 | AT69: 0 | AU69: 0 | AV69: 0 | AW69: 0 | AX69: 0 | AY69: 0 | AZ69: 0 | BA69: 0 | BB69: 0 | BC69: 0 | BD69: 4 | BE69: 6 | BF69: 0 | BG69: 6 | BH69: 0 | BI69: 0 | BJ69: 0 | BK69: 0 | BL69: 0 | BM69: 0 | BN69: 0 | BO69: 0 | BP69: 0 | BQ69: 0 | BR69: 0 | BS69: 0 | BT69: 0 | BU69: 0 | BV69: 0 | BW69: 0 | BX69: 0 | BY69: 0 | BZ69: 0 | CA69: 0 | CB69: 0 | CC69: 0 | CD69: 0 | CE69: 0 | CF69: 0 | CG69: 0 | CH69: 0 | CI69: 0 | CJ69: 0 | CK69: 0 | CL69: 0 | CM69: 0 | CN69: 0 | CO69: 0 | CP69: 0 | CQ69: 0 | CR69: 0 | CS69: 0 | CT69: 0 | CU69: 0 | CV69: 0 | CW69: 0 | CX69: 0 | CY69: 0 | CZ69: 0 | DA69: 0 | DB69: 0 | DC69: 0 | DD69: 0 | DE69: 0 | DF69: 2 | DG69: 0 | DH69: 1 | DI69: 1 | DJ69: 1 | DK69: 0 | DL69: 9 | DM69: 7 | DN69: 6 | DO69: 5 | DP69: 4 | DQ69: 3 | DR69: 3 | DS69: 1 | DT69: 0 | DU69: 4 | DV69: 0 | DW69: 0 | DX69: 2 | DY69: 3 | DZ69: 0 | EA69: 2 | EB69: 0 | EC69: 0 | ED69: 2 | EE69: 0 | EF69: 3 | EG69: 1 | EH69: 1 | EI69: 0 | EJ69: 2 | EK69: 0 | EL69: 2 | EM69: 0 | EN69: 0 | EO69: 0 | EP69: 4 | EQ69: 6 | ER69: 0 | ES69: 6 | ET69: 0 | EU69: 0 | EV69: 0 | EW69: 0 | EX69: 0 | EY69: 0 | EZ69: 0 | FA69: 0 | FB69: 0 | FC69: 0 | FD69: 0 | FE69: 0 | FF69: 0 | FG69: 0 | FH69: 0 | FI69: 0 | FJ69: 0 | FK69: 0 | FL69: 0 | FM69: 0 | FN69: 12 | FO69: 6 | FP69: 4 | FQ69: 9 | FR69: 3 | FS69: 0 | FT69: 0 | FU69: 1 | FV69: 1 | FW69: 0 | FX69: 0 | FY69: 0 | FZ69: 0 | GA69: 1 | GB69: 1 | GC69: 0 | GD69: 0 | GE69: 0 | GF69: 0 | GG69: 0 | GH69: 0 | GI69: 0 | GJ69: 0 | GK69: 0 | GL69: 1 | GM69: 0 | GN69: 0 | GO69: 0 | GP69: 0 | GQ69: 0 | GR69: 0 | GS69: 0 | GT69: 0 | GU69: 0 | GV69: 0 | GW69: 0 | GX69: 0 | GY69: 0 | GZ69: 0 | HA69: 0 | HB69: 0 | HC69: 0 | HD69: 10 | HE69: 5 | HF69: 2 | HG69: 6 | HH69: 1 | HI69: 0 | HJ69: 0 | HK69: 0 | HL69: 0 | HM69: 0 | HN69: 0 | HO69: 0 | HP69: 0 | HQ69: 0 | HR69: 0 | HS69: 0 | HT69: 0 | HU69: 0 | HV69: 0 | HW69: 0
A70: 9 | B70: 0 | C70: 3 | D70: 0 | E70: 0 | F70: 0 | G70: 0 | H70: 0 | I70: 0 | J70: 0 | K70: 0 | L70: 0 | M70: 0 | N70: 2 | O70: 2 | P70: 2 | Q70: 3 | R70: 0 | S70: 1 | T70: 0 | U70: 0 | V70: 0 | W70: 0 | X70: 0 | Y70: 0 | Z70: 5 | AA70: 12 | AB70: 6 | AC70: 6 | AD70: 6 | AE70: 5 | AF70: 2 | AG70: 1 | AH70: 0 | AI70: 0 | AJ70: 1 | AK70: 0 | AL70: 0 | AM70: 0 | AN70: 0 | AO70: 0 | AP70: 0 | AQ70: 0 | AR70: 0 | AS70: 0 | AT70: 0 | AU70: 0 | AV70: 0 | AW70: 0 | AX70: 0 | AY70: 0 | AZ70: 0 | BA70: 0 | BB70: 0 | BC70: 0 | BD70: 4 | BE70: 4 | BF70: 1 | BG70: 2 | BH70: 0 | BI70: 1 | BJ70: 0 | BK70: 0 | BL70: 0 | BM70: 0 | BN70: 0 | BO70: 0 | BP70: 0 | BQ70: 0 | BR70: 0 | BS70: 0 | BT70: 0 | BU70: 0 | BV70: 0 | BW70: 0 | BX70: 0 | BY70: 0 | BZ70: 0 | CA70: 0 | CB70: 0 | CC70: 0 | CD70: 0 | CE70: 0 | CF70: 0 | CG70: 0 | CH70: 0 | CI70: 0 | CJ70: 0 | CK70: 0 | CL70: 0 | CM70: 0 | CN70: 0 | CO70: 0 | CP70: 0 | CQ70: 0 | CR70: 0 | CS70: 0 | CT70: 0 | CU70: 0 | CV70: 0 | CW70: 0 | CX70: 0 | CY70: 0 | CZ70: 0 | DA70: 0 | DB70: 0 | DC70: 0 | DD70: 0 | DE70: 0 | DF70: 1 | DG70: 3 | DH70: 3 | DI70: 1 | DJ70: 1 | DK70: 3 | DL70: 9 | DM70: 7 | DN70: 9 | DO70: 7 | DP70: 3 | DQ70: 5 | DR70: 4 | DS70: 0 | DT70: 1 | DU70: 2 | DV70: 0 | DW70: 0 | DX70: 4 | DY70: 3 | DZ70: 0 | EA70: 1 | EB70: 0 | EC70: 0 | ED70: 6 | EE70: 2 | EF70: 6 | EG70: 0 | EH70: 2 | EI70: 0 | EJ70: 0 | EK70: 1 | EL70: 1 | EM70: 1 | EN70: 0 | EO70: 0 | EP70: 4 | EQ70: 4 | ER70: 1 | ES70: 2 | ET70: 0 | EU70: 1 | EV70: 0 | EW70: 0 | EX70: 0 | EY70: 0 | EZ70: 0 | FA70: 0 | FB70: 0 | FC70: 0 | FD70: 0 | FE70: 0 | FF70: 0 | FG70: 0 | FH70: 0 | FI70: 0 | FJ70: 0 | FK70: 0 | FL70: 0 | FM70: 0 | FN70: 16 | FO70: 10 | FP70: 7 | FQ70: 8 | FR70: 1 | FS70: 4 | FT70: 2 | FU70: 4 | FV70: 3 | FW70: 0 | FX70: 0 | FY70: 1 | FZ70: 0 | GA70: 0 | GB70: 0 | GC70: 1 | GD70: 1 | GE70: 0 | GF70: 0 | GG70: 0 | GH70: 1 | GI70: 0 | GJ70: 1 | GK70: 0 | GL70: 0 | GM70: 0 | GN70: 0 | GO70: 0 | GP70: 0 | GQ70: 0 | GR70: 0 | GS70: 0 | GT70: 0 | GU70: 0 | GV70: 0 | GW70: 0 | GX70: 0 | GY70: 0 | GZ70: 0 | HA70: 0 | HB70: 0 | HC70: 0 | HD70: 10 | HE70: 7 | HF70: 5 | HG70: 5 | HH70: 2 | HI70: 2 | HJ70: 0 | HK70: 0 | HL70: 0 | HM70: 0 | HN70: 0 | HO70: 0 | HP70: 0 | HQ70: 0 | HR70: 0 | HS70: 0 | HT70: 0 | HU70: 0 | HV70: 0 | HW70: 0
A71: 10 | B71: 2 | C71: 1 | D71: 0 | E71: 0 | F71: 0 | G71: 0 | H71: 0 | I71: 0 | J71: 0 | K71: 0 | L71: 0 | M71: 0 | N71: 1 | O71: 0 | P71: 0 | Q71: 1 | R71: 1 | S71: 0 | T71: 0 | U71: 0 | V71: 0 | W71: 0 | X71: 0 | Y71: 0 | Z71: 9 | AA71: 8 | AB71: 8 | AC71: 8 | AD71: 7 | AE71: 5 | AF71: 0 | AG71: 0 | AH71: 1 | AI71: 0 | AJ71: 0 | AK71: 0 | AL71: 0 | AM71: 0 | AN71: 0 | AO71: 0 | AP71: 0 | AQ71: 0 | AR71: 0 | AS71: 0 | AT71: 0 | AU71: 0 | AV71: 0 | AW71: 0 | AX71: 0 | AY71: 0 | AZ71: 0 | BA71: 0 | BB71: 0 | BC71: 0 | BD71: 8 | BE71: 4 | BF71: 2 | BG71: 9 | BH71: 1 | BI71: 4 | BJ71: 0 | BK71: 0 | BL71: 0 | BM71: 0 | BN71: 0 | BO71: 0 | BP71: 0 | BQ71: 0 | BR71: 0 | BS71: 0 | BT71: 0 | BU71: 0 | BV71: 0 | BW71: 0 | BX71: 0 | BY71: 0 | BZ71: 0 | CA71: 0 | CB71: 0 | CC71: 0 | CD71: 0 | CE71: 0 | CF71: 0 | CG71: 0 | CH71: 0 | CI71: 0 | CJ71: 0 | CK71: 0 | CL71: 0 | CM71: 0 | CN71: 0 | CO71: 0 | CP71: 0 | CQ71: 0 | CR71: 0 | CS71: 0 | CT71: 0 | CU71: 0 | CV71: 0 | CW71: 0 | CX71: 0 | CY71: 0 | CZ71: 0 | DA71: 0 | DB71: 0 | DC71: 0 | DD71: 0 | DE71: 0 | DF71: 4 | DG71: 1 | DH71: 2 | DI71: 2 | DJ71: 4 | DK71: 5 | DL71: 12 | DM71: 3 | DN71: 7 | DO71: 9 | DP71: 2 | DQ71: 2 | DR71: 3 | DS71: 4 | DT71: 2 | DU71: 4 | DV71: 2 | DW71: 1 | DX71: 6 | DY71: 2 | DZ71: 1 | EA71: 3 | EB71: 2 | EC71: 3 | ED71: 0 | EE71: 1 | EF71: 4 | EG71: 3 | EH71: 2 | EI71: 2 | EJ71: 2 | EK71: 1 | EL71: 2 | EM71: 1 | EN71: 1 | EO71: 1 | EP71: 8 | EQ71: 4 | ER71: 2 | ES71: 9 | ET71: 1 | EU71: 4 | EV71: 0 | EW71: 0 | EX71: 0 | EY71: 0 | EZ71: 0 | FA71: 0 | FB71: 0 | FC71: 0 | FD71: 0 | FE71: 0 | FF71: 0 | FG71: 0 | FH71: 0 | FI71: 0 | FJ71: 0 | FK71: 0 | FL71: 0 | FM71: 0 | FN71: 18 | FO71: 9 | FP71: 8 | FQ71: 16 | FR71: 7 | FS71: 10 | FT71: 0 | FU71: 1 | FV71: 1 | FW71: 2 | FX71: 1 | FY71: 1 | FZ71: 0 | GA71: 1 | GB71: 1 | GC71: 1 | GD71: 1 | GE71: 0 | GF71: 0 | GG71: 0 | GH71: 0 | GI71: 0 | GJ71: 1 | GK71: 0 | GL71: 1 | GM71: 0 | GN71: 0 | GO71: 0 | GP71: 0 | GQ71: 0 | GR71: 0 | GS71: 0 | GT71: 2 | GU71: 2 | GV71: 2 | GW71: 3 | GX71: 0 | GY71: 0 | GZ71: 0 | HA71: 0 | HB71: 0 | HC71: 0 | HD71: 11 | HE71: 5 | HF71: 2 | HG71: 9 | HH71: 6 | HI71: 5 | HJ71: 0 | HK71: 0 | HL71: 0 | HM71: 0 | HN71: 0 | HO71: 0 | HP71: 0 | HQ71: 0 | HR71: 0 | HS71: 0 | HT71: 0 | HU71: 0 | HV71: 0 | HW71: 0
A72: Total general | B72: 16 | C72: 23 | D72: 8 | E72: 2 | F72: 1 | G72: 3 | H72: 0 | I72: 1 | J72: 0 | K72: 0 | L72: 0 | M72: 1 | N72: 7 | O72: 9 | P72: 4 | Q72: 9 | R72: 2 | S72: 4 | T72: 0 | U72: 0 | V72: 0 | W72: 0 | X72: 0 | Y72: 0 | Z72: 82 | AA72: 105 | AB72: 77 | AC72: 73 | AD72: 51 | AE72: 49 | AF72: 14 | AG72: 11 | AH72: 11 | AI72: 5 | AJ72: 4 | AK72: 3 | AL72: 0 | AM72: 0 | AN72: 0 | AO72: 0 | AP72: 0 | AQ72: 0 | AR72: 1 | AS72: 1 | AT72: 0 | AU72: 0 | AV72: 1 | AW72: 0 | AX72: 0 | AY72: 0 | AZ72: 0 | BA72: 0 | BB72: 0 | BC72: 0 | BD72: 36 | BE72: 92 | BF72: 21 | BG72: 63 | BH72: 6 | BI72: 23 | BJ72: 0 | BK72: 0 | BL72: 0 | BM72: 0 | BN72: 0 | BO72: 0 | BP72: 0 | BQ72: 0 | BR72: 0 | BS72: 0 | BT72: 0 | BU72: 0 | BV72: 0 | BW72: 0 | BX72: 0 | BY72: 0 | BZ72: 0 | CA72: 0 | CB72: 0 | CC72: 0 | CD72: 0 | CE72: 0 | CF72: 0 | CG72: 0 | CH72: 0 | CI72: 0 | CJ72: 0 | CK72: 0 | CL72: 0 | CM72: 0 | CN72: 0 | CO72: 0 | CP72: 0 | CQ72: 0 | CR72: 0 | CS72: 0 | CT72: 0 | CU72: 0 | CV72: 0 | CW72: 0 | CX72: 0 | CY72: 0 | CZ72: 0 | DA72: 0 | DB72: 0 | DC72: 0 | DD72: 0 | DE72: 0 | DF72: 35 | DG72: 24 | DH72: 39 | DI72: 35 | DJ72: 23 | DK72: 33 | DL72: 118 | DM72: 88 | DN72: 65 | DO72: 66 | DP72: 35 | DQ72: 34 | DR72: 24 | DS72: 49 | DT72: 21 | DU72: 32 | DV72: 8 | DW72: 7 | DX72: 22 | DY72: 48 | DZ72: 6 | EA72: 34 | EB72: 8 | EC72: 14 | ED72: 51 | EE72: 40 | EF72: 53 | EG72: 39 | EH72: 34 | EI72: 22 | EJ72: 39 | EK72: 24 | EL72: 18 | EM72: 24 | EN72: 13 | EO72: 9 | EP72: 36 | EQ72: 92 | ER72: 21 | ES72: 63 | ET72: 6 | EU72: 23 | EV72: 1 | EW72: 0 | EX72: 0 | EY72: 1 | EZ72: 0 | FA72: 0 | FB72: 0 | FC72: 0 | FD72: 0 | FE72: 0 | FF72: 0 | FG72: 0 | FH72: 0 | FI72: 0 | FJ72: 0 | FK72: 0 | FL72: 0 | FM72: 0 | FN72: 145 | FO72: 167 | FP72: 85 | FQ72: 131 | FR72: 53 | FS72: 58 | FT72: 11 | FU72: 25 | FV72: 15 | FW72: 20 | FX72: 9 | FY72: 10 | FZ72: 2 | GA72: 6 | GB72: 3 | GC72: 5 | GD72: 7 | GE72: 0 | GF72: 2 | GG72: 6 | GH72: 2 | GI72: 0 | GJ72: 3 | GK72: 1 | GL72: 7 | GM72: 5 | GN72: 4 | GO72: 4 | GP72: 1 | GQ72: 5 | GR72: 5 | GS72: 3 | GT72: 6 | GU72: 7 | GV72: 6 | GW72: 11 | GX72: 0 | GY72: 0 | GZ72: 1 | HA72: 0 | HB72: 0 | HC72: 0 | HD72: 76 | HE72: 107 | HF72: 44 | HG72: 86 | HH72: 29 | HI72: 27 | HJ72: 0 | HK72: 0 | HL72: 0 | HM72: 0 | HN72: 0 | HO72: 0 | HP72: 0 | HQ72: 0 | HR72: 0 | HS72: 0 | HT72: 0 | HU72: 0 | HV72: 0 | HW72: 0
A79: TOTAL
A80: =COUNT(A61:A77) -> 11 | B80: =SUM(B61:B77) -> 32 | C80: =SUM(C61:C77) -> 46 | D80: 16 | E80: 4 | F80: 2 | G80: 6 | H80: 0 | I80: 2 | J80: 0 | K80: 0 | L80: 0 | M80: 2 | N80: 14 | O80: 18 | P80: 8 | Q80: 18 | R80: 4 | S80: 8 | T80: 0 | U80: 0 | V80: 0 | W80: 0 | X80: 0 | Y80: 0 | Z80: 164 | AA80: 210 | AB80: 154 | AC80: 146 | AD80: 102 | AE80: 98 | AF80: 28 | AG80: 22 | AH80: 22 | AI80: 10 | AJ80: 8 | AK80: 6 | AL80: 0 | AM80: 0 | AN80: 0 | AO80: 0 | AP80: 0 | AQ80: 0 | AR80: 2 | AS80: 2 | AT80: 0 | AU80: 0 | AV80: 2 | AW80: 0 | AX80: 0 | AY80: 0 | AZ80: 0 | BA80: 0 | BB80: 0 | BC80: 0 | BD80: 72 | BE80: 184 | BF80: 42 | BG80: 126 | BH80: 12 | BI80: 46 | BJ80: 0 | BK80: 0 | BL80: 0 | BM80: 0 | BN80: 0 | BO80: =SUM(BO61:BO77) -> 0 | BP80: 0 | BQ80: 0 | BR80: 0 | BS80: 0 | BT80: 0 | BU80: 0 | BV80: 0 | BW80: 0 | BX80: 0 | BY80: 0 | BZ80: 0 | CA80: 0 | CB80: 0 | CC80: 0 | CD80: 0 | CE80: 0 | CF80: 0 | CG80: 0 | CH80: 0 | CI80: 0 | CJ80: 0 | CK80: 0 | CL80: 0 | CM80: 0 | CN80: 0 | CO80: 0 | CP80: 0 | CQ80: 0 | CR80: 0 | CS80: 0 | CT80: 0 | CU80: 0 | CV80: 0 | CW80: 0 | CX80: 0 | CY80: 0 | CZ80: 0 | DA80: 0 | DB80: 0 | DC80: 0 | DD80: 0 | DE80: 0 | DF80: 70 | DG80: 48 | DH80: 78 | DI80: 70 | DJ80: 46 | DK80: 66 | DL80: 236 | DM80: 176 | DN80: 130 | DO80: 132 | DP80: 70 | DQ80: 68 | DR80: 48 | DS80: 98 | DT80: 42 | DU80: 64 | DV80: 16 | DW80: 14 | DX80: 44 | DY80: 96 | DZ80: 12 | EA80: =SUM(EA61:EA77) -> 68 | EB80: 16 | EC80: 28 | ED80: 102 | EE80: 80 | EF80: 106 | EG80: 78 | EH80: 68 | EI80: 44 | EJ80: 78 | EK80: 48 | EL80: 36 | EM80: 48 | EN80: 26 | EO80: 18 | EP80: 72 | EQ80: 184 | ER80: 42 | ES80: 126 | ET80: 12 | EU80: 46 | EV80: 2 | EW80: 0 | EX80: 0 | EY80: 2 | EZ80: 0 | FA80: 0 | FB80: 0 | FC80: 0 | FD80: 0 | FE80: 0 | FF80: 0 | FG80: 0 | FH80: 0 | FI80: 0 | FJ80: 0 | FK80: 0 | FL80: 0 | FM80: 0 | FN80: 290 | FO80: 334 | FP80: 170 | FQ80: 262 | FR80: 106 | FS80: 116 | FT80: 22 | FU80: 50 | FV80: 30 | FW80: 40 | FX80: 18 | FY80: 20 | FZ80: 4 | GA80: 12 | GB80: 6 | GC80: 10 | GD80: 14 | GE80: 0 | GF80: 4 | GG80: 12 | GH80: 4 | GI80: 0 | GJ80: 6 | GK80: 2 | GL80: 14 | GM80: =SUM(GM61:GM77) -> 10 | GN80: 8 | GO80: 8 | GP80: 2 | GQ80: 10 | GR80: 10 | GS80: 6 | GT80: 12 | GU80: 14 | GV80: 12 | GW80: 22 | GX80: 0 | GY80: 0 | GZ80: 2 | HA80: 0 | HB80: 0 | HC80: 0 | HD80: 152 | HE80: 214 | HF80: 88 | HG80: 172 | HH80: 58 | HI80: 54 | HJ80: 0 | HK80: 0 | HL80: 0 | HM80: 0 | HN80: 0 | HO80: 0 | HP80: 0 | HQ80: 0 | HR80: 0 | HS80: 0 | HT80: 0 | HU80: 0 | HV80: 0 | HW80: 0 | HX80: 0
A81: =CONCATENATE(A61,"-",A62,"-",A63,"-",A64,"-",A65,"-",A66,"-",A67,"-",A68,"-",A69,"-",A70,"-",A71,"-",A72) -> 1-2-3-4-5-6-8-7-11-9-10-Total general
B82: BAS001 | C82: BAS002 | D82: BAS003 | E82: BAS004 | F82: BAS005 | G82: BAS006 | H82: BAS007 | I82: BAS008 | J82: BAS009 | K82: BAS010 | L82: BAS011 | M82: BAS012 | N82: BAS013 | O82: BAS014 | P82: BAS015 | Q82: BAS016 | R82: BAS017 | S82: BAS018 | T82: BAS019 | U82: BAS020 | V82: BAS021 | W82: BAS022 | X82: BAS023 | Y82: BAS024 | Z82: BAS025 | AA82: BAS026 | AB82: BAS027 | AC82: BAS028 | AD82: BAS029 | AE82: BAS030 | AF82: BAS031 | AG82: BAS032 | AH82: BAS033 | AI82: BAS034 | AJ82: BAS035 | AK82: BAS036 | AL82: BAS037 | AM82: BAS038 | AN82: BAS039 | AO82: BAS040 | AP82: BAS041 | AQ82: BAS042 | AR82: BAS043 | AS82: BAS044 | AT82: BAS045 | AU82: BAS046 | AV82: BAS047 | AW82: BAS048 | AX82: BAS049 | AY82: BAS050 | AZ82: BAS051 | BA82: BAS052 | BB82: BAS053 | BC82: BAS054 | BD82: BAS055 | BE82: BAS056 | BF82: BAS057 | BG82: BAS058 | BH82: BAS059 | BI82: BAS060 | BJ82: BAS061 | BK82: BAS062 | BL82: BAS063 | BM82: BAS064 | BN82: BAS065 | BO82: BAS066 | BP82: BAS067 | BQ82: BAS068 | BR82: BAS069 | BS82: BAS070 | BT82: BAS071 | BU82: BAS072 | BV82: BAS073 | BW82: BAS074 | BX82: BAS075 | BY82: BAS076 | BZ82: BAS077 | CA82: BAS078 | CB82: BAS079 | CC82: BAS080 | CD82: BAS081 | CE82: BAS082 | CF82: BAS083 | CG82: BAS084 | CH82: BAS085 | CI82: BAS086 | CJ82: BAS087 | CK82: BAS088 | CL82: BAS089 | CM82: BAS090 | CN82: BAS091 | CO82: BAS092 | CP82: BAS093 | CQ82: BAS094 | CR82: BAS095 | CS82: BAS096 | CT82: BAS097 | CU82: BAS098 | CV82: BAS099 | CW82: BAS100 | CX82: BAS101 | CY82: BAS102 | CZ82: BAS103 | DA82: BAS104 | DB82: BAS105 | DC82: BAS106 | DD82: BAS107 | DE82: BAS108 | DF82: BAS109 | DG82: BAS110 | DH82: BAS111 | DI82: BAS112 | DJ82: BAS113 | DK82: BAS114 | DL82: BAS115 | DM82: BAS116 | DN82: BAS117 | DO82: BAS118 | DP82: BAS119 | DQ82: BAS120 | DR82: BAS121 | DS82: BAS122 | DT82: BAS123 | DU82: BAS124 | DV82: BAS125 | DW82: BAS126 | DX82: BAS127 | DY82: BAS128 | DZ82: BAS129 | EA82: BAS130 | EB82: BAS131 | EC82: BAS132 | ED82: BAS133 | EE82: BAS134 | EF82: BAS135 | EG82: BAS136 | EH82: BAS137 | EI82: BAS138 | EJ82: BAS139 | EK82: BAS140 | EL82: BAS141 | EM82: BAS142 | EN82: BAS143 | EO82: BAS144 | EP82: BAS145 | EQ82: BAS146 | ER82: BAS147 | ES82: BAS148 | ET82: BAS149 | EU82: BAS150 | EV82: BAS151 | EW82: BAS152 | EX82: BAS153 | EY82: BAS154 | EZ82: BAS155 | FA82: BAS156 | FB82: BAS157 | FC82: BAS158 | FD82: BAS159 | FE82: BAS160 | FF82: BAS161 | FG82: BAS162 | FH82: BAS163 | FI82: BAS164 | FJ82: BAS165 | FK82: BAS166 | FL82: BAS167 | FM82: BAS168 | FN82: BAS169 | FO82: BAS170 | FP82: BAS171 | FQ82: BAS172 | FR82: BAS173 | FS82: BAS174 | FT82: BAS175 | FU82: BAS176 | FV82: BAS177 | FW82: BAS178 | FX82: BAS179 | FY82: BAS180 | FZ82: BAS181 | GA82: BAS182 | GB82: BAS183 | GC82: BAS184 | GD82: BAS185 | GE82: BAS186 | GF82: BAS187 | GG82: BAS188 | GH82: BAS189 | GI82: BAS190 | GJ82: BAS191 | GK82: BAS192 | GL82: BAS193 | GM82: BAS194 | GN82: BAS195 | GO82: BAS196 | GP82: BAS197 | GQ82: BAS198 | GR82: BAS199 | GS82: BAS200 | GT82: BAS201 | GU82: BAS202 | GV82: BAS203 | GW82: BAS204 | GX82: BAS205 | GY82: BAS206 | GZ82: BAS207 | HA82: BAS208 | HB82: BAS209 | HC82: BAS210 | HD82: BAS211 | HE82: BAS212 | HF82: BAS213 | HG82: BAS214 | HH82: BAS215 | HI82: BAS216 | HJ82: BAS217 | HK82: BAS218 | HL82: BAS219 | HM82: BAS220 | HN82: BAS221 | HO82: BAS222 | HP82: BAS223 | HQ82: BAS224 | HR82: BAS225 | HS82: BAS226 | HT82: BAS227 | HU82: BAS228 | HV82: BAS229 | HW82: BAS230
B83: =IF(B82=B60,"SI","NO") -> SI | C83: =IF(C82=C60,"SI","NO") -> SI | D83: SI | E83: SI | F83: SI | G83: SI | H83: SI | I83: SI | J83: SI | K83: SI | L83: SI | M83: SI | N83: SI | O83: SI | P83: SI | Q83: SI | R83: SI | S83: SI | T83: SI | U83: SI | V83: SI | W83: SI | X83: SI | Y83: SI | Z83: SI | AA83: SI | AB83: SI | AC83: SI | AD83: SI | AE83: SI | AF83: SI | AG83: SI | AH83: SI | AI83: SI | AJ83: SI | AK83: SI | AL83: SI | AM83: SI | AN83: SI | AO83: SI | AP83: SI | AQ83: SI | AR83: SI | AS83: SI | AT83: SI | AU83: SI | AV83: SI | AW83: SI | AX83: SI | AY83: SI | AZ83: SI | BA83: SI | BB83: SI | BC83: SI | BD83: SI | BE83: SI | BF83: SI | BG83: SI | BH83: SI | BI83: SI | BJ83: SI | BK83: SI | BL83: SI | BM83: SI | BN83: SI | BO83: =IF(BO82=BO60,"SI","NO") -> SI | BP83: SI | BQ83: SI | BR83: SI | BS83: SI | BT83: SI | BU83: SI | BV83: SI | BW83: SI | BX83: SI | BY83: SI | BZ83: SI | CA83: SI | CB83: SI | CC83: SI | CD83: SI | CE83: SI | CF83: SI | CG83: SI | CH83: SI | CI83: SI | CJ83: SI | CK83: SI | CL83: SI | CM83: SI | CN83: SI | CO83: SI | CP83: SI | CQ83: SI | CR83: SI | CS83: SI | CT83: SI | CU83: SI | CV83: SI | CW83: SI | CX83: SI | CY83: SI | CZ83: SI | DA83: SI | DB83: SI | DC83: SI | DD83: SI | DE83: SI | DF83: SI | DG83: SI | DH83: SI | DI83: SI | DJ83: SI | DK83: SI | DL83: SI | DM83: SI | DN83: SI | DO83: SI | DP83: SI | DQ83: SI | DR83: SI | DS83: SI | DT83: SI | DU83: SI | DV83: SI | DW83: SI | DX83: SI | DY83: SI | DZ83: SI | EA83: =IF(EA82=EA60,"SI","NO") -> SI | EB83: SI | EC83: SI | ED83: SI | EE83: SI | EF83: SI | EG83: SI | EH83: SI | EI83: SI | EJ83: SI | EK83: SI | EL83: SI | EM83: SI | EN83: SI | EO83: SI | EP83: SI | EQ83: SI | ER83: SI | ES83: SI | ET83: SI | EU83: SI | EV83: SI | EW83: SI | EX83: SI | EY83: SI | EZ83: SI | FA83: SI | FB83: SI | FC83: SI | FD83: SI | FE83: SI | FF83: SI | FG83: SI | FH83: SI | FI83: SI | FJ83: SI | FK83: SI | FL83: SI | FM83: SI | FN83: SI | FO83: SI | FP83: SI | FQ83: SI | FR83: SI | FS83: SI | FT83: SI | FU83: SI | FV83: SI | FW83: SI | FX83: SI | FY83: SI | FZ83: SI | GA83: SI | GB83: SI | GC83: SI | GD83: SI | GE83: SI | GF83: SI | GG83: SI | GH83: SI | GI83: SI | GJ83: SI | GK83: SI | GL83: SI | GM83: =IF(GM82=GM60,"SI","NO") -> SI | GN83: SI | GO83: SI | GP83: SI | GQ83: SI | GR83: SI | GS83: SI | GT83: SI | GU83: SI | GV83: SI | GW83: SI | GX83: SI | GY83: SI | GZ83: SI | HA83: SI | HB83: SI | HC83: SI | HD83: SI | HE83: SI | HF83: SI | HG83: SI | HH83: SI | HI83: SI | HJ83: SI | HK83: SI | HL83: SI | HM83: SI | HN83: SI | HO83: SI | HP83: SI | HQ83: SI | HR83: SI | HS83: SI | HT83: SI | HU83: SI | HV83: SI | HW83: SI
A88: ADULTO_MAYOR_02
A89: anno | B89: 2024
A90: cod_red | B90: 03
A91: codmic | B91: (Todas)
A92: cod_prov | B92: (Todas)
A93: coddist | B93: (Todas)
A94: cod_estab | B94: (Todas)
A95: cod_eje | B95: (Todas)
B97: Valores
A98: Etiquetas de fila | B98: BAS001 | C98: BAS002 | D98: BAS003 | E98: BAS004 | F98: BAS005 | G98: BAS006 | H98: BAS007 | I98: BAS008 | J98: BAS009 | K98: BAS010 | L98: BAS011 | M98: BAS012 | N98: BAS013 | O98: BAS014 | P98: BAS015 | Q98: BAS016 | R98: BAS017 | S98: BAS018 | T98: BAS019 | U98: BAS020 | V98: BAS021 | W98: BAS022 | X98: BAS023 | Y98: BAS024 | Z98: BAS025 | AA98: BAS026 | AB98: BAS027 | AC98: BAS028 | AD98: BAS029 | AE98: BAS030 | AF98: BAS031 | AG98: BAS032 | AH98: BAS033 | AI98: BAS034 | AJ98: BAS035 | AK98: BAS036 | AL98: BAS037 | AM98: BAS038 | AN98: BAS039 | AO98: BAS040 | AP98: BAS041 | AQ98: BAS042 | AR98: BAS043 | AS98: BAS044 | AT98: BAS045 | AU98: BAS046 | AV98: BAS047 | AW98: BAS048 | AX98: BAS049 | AY98: BAS050 | AZ98: BAS051 | BA98: BAS052 | BB98: BAS053 | BC98: BAS054 | BD98: BAS055 | BE98: BAS056 | BF98: BAS057 | BG98: BAS058 | BH98: BAS059 | BI98: BAS060 | BJ98: BAS061 | BK98: BAS062 | BL98: BAS063 | BM98: BAS064 | BN98: BAS065 | BO98: BAS066 | BP98: BAS067 | BQ98: BAS068 | BR98: BAS069 | BS98: BAS070 | BT98: BAS071 | BU98: BAS072 | BV98: BAS073 | BW98: BAS074 | BX98: BAS075 | BY98: BAS076 | BZ98: BAS077 | CA98: BAS078 | CB98: BAS079 | CC98: BAS080 | CD98: BAS081 | CE98: BAS082 | CF98: BAS083 | CG98: BAS084 | CH98: BAS085 | CI98: BAS086 | CJ98: BAS087 | CK98: BAS088 | CL98: BAS089 | CM98: BAS090 | CN98: BAS091 | CO98: BAS092 | CP98: BAS093 | CQ98: BAS094 | CR98: BAS095 | CS98: BAS096 | CT98: BAS097 | CU98: BAS098 | CV98: BAS099 | CW98: BAS100 | CX98: BAS101 | CY98: BAS102 | CZ98: BAS103 | DA98: BAS104 | DB98: BAS105 | DC98: BAS106 | DD98: BAS107 | DE98: BAS108 | DF98: BAS109 | DG98: BAS110 | DH98: BAS111 | DI98: BAS112 | DJ98: BAS113 | DK98: BAS114 | DL98: BAS115 | DM98: BAS116 | DN98: BAS117 | DO98: BAS118 | DP98: BAS119 | DQ98: BAS120 | DR98: BAS121 | DS98: BAS122 | DT98: BAS123 | DU98: BAS124 | DV98: BAS125 | DW98: BAS126 | DX98: BAS127 | DY98: BAS128 | DZ98: BAS129 | EA98: BAS130 | EB98: BAS131 | EC98: BAS132 | ED98: BAS133 | EE98: BAS134 | EF98: BAS135 | EG98: BAS136 | EH98: BAS137 | EI98: BAS138 | EJ98: BAS139 | EK98: BAS140 | EL98: BAS141 | EM98: BAS142 | EN98: BAS143 | EO98: BAS144 | EP98: BAS145 | EQ98: BAS146 | ER98: BAS147 | ES98: BAS148 | ET98: BAS149 | EU98: BAS150 | EV98: BAS151 | EW98: BAS152 | EX98: BAS153 | EY98: BAS154 | EZ98: BAS155 | FA98: BAS156 | FB98: BAS157 | FC98: BAS158 | FD98: BAS159 | FE98: BAS160 | FF98: BAS161 | FG98: BAS162 | FH98: BAS163 | FI98: BAS164 | FJ98: BAS165 | FK98: BAS166 | FL98: BAS167 | FM98: BAS168 | FN98: BAS169 | FO98: BAS170 | FP98: BAS171 | FQ98: BAS172 | FR98: BAS173 | FS98: BAS174 | FT98: BAS175 | FU98: BAS176 | FV98: BAS177 | FW98: BAS178 | FX98: BAS179 | FY98: BAS180 | FZ98: BAS181 | GA98: BAS182 | GB98: BAS183 | GC98: BAS184 | GD98: BAS185 | GE98: BAS186 | GF98: BAS187 | GG98: BAS188 | GH98: BAS189 | GI98: BAS190 | GJ98: BAS191 | GK98: BAS192 | GL98: BAS193 | GM98: BAS194 | GN98: BAS195 | GO98: BAS196 | GP98: BAS197 | GQ98: BAS198 | GR98: BAS199 | GS98: BAS200 | GT98: BAS201 | GU98: BAS202 | GV98: BAS203 | GW98: BAS204 | GX98: BAS205 | GY98: BAS206 | GZ98: BAS207 | HA98: BAS208 | HB98: BAS209 | HC98: BAS210 | HD98: BAS211 | HE98: BAS212 | HF98: BAS213 | HG98: BAS214 | HH98: BAS215 | HI98: BAS216 | HJ98: BAS217 | HK98: BAS218 | HL98: BAS219 | HM98: BAS220 | HN98: BAS221 | HO98: BAS222 | HP98: BAS223 | HQ98: BAS224 | HR98: BAS225 | HS98: BAS226 | HT98: BAS227 | HU98: BAS228 | HV98: BAS229 | HW98: BAS230
A99: 1 | B99: 1 | C99: 4 | D99: 3 | E99: 1 | F99: 0 | G99: 0 | H99: 33 | I99: 62 | J99: 30 | K99: 37 | L99: 12 | M99: 19 | N99: 1 | O99: 1 | P99: 1 | Q99: 0 | R99: 1 | S99: 0 | T99: 0 | U99: 0 | V99: 0 | W99: 0 | X99: 0 | Y99: 0 | Z99: 0 | AA99: 0 | AB99: 0 | AC99: 0 | AD99: 0 | AE99: 0 | AF99: 1 | AG99: 0 | AH99: 0 | AI99: 0 | AJ99: 0 | AK99: 0 | AL99: 0 | AM99: 0 | AN99: 0 | AO99: 0 | AP99: 0 | AQ99: 0 | AR99: 0 | AS99: 0 | AT99: 0 | AU99: 0 | AV99: 0 | AW99: 0 | AX99: 0 | AY99: 0 | AZ99: 0 | BA99: 1 | BB99: 0 | BC99: 0 | BD99: 0 | BE99: 0 | BF99: 0 | BG99: 0 | BH99: 0 | BI99: 0 | BJ99: 0 | BK99: 0 | BL99: 0 | BM99: 0 | BN99: 0 | BO99: 0 | BP99: 0 | BQ99: 0 | BR99: 0 | BS99: 0 | BT99: 0 | BU99: 0 | BV99: 0 | BW99: 0 | BX99: 0 | BY99: 0 | BZ99: 0 | CA99: 0 | CB99: 0 | CC99: 0 | CD99: 0 | CE99: 0 | CF99: 0 | CG99: 0 | CH99: 0 | CI99: 0 | CJ99: 0 | CK99: 0 | CL99: 0 | CM99: 0 | CN99: 42 | CO99: 47 | CP99: 26 | CQ99: 29 | CR99: 6 | CS99: 10 | CT99: 2 | CU99: 8 | CV99: 5 | CW99: 5 | CX99: 0 | CY99: 2 | CZ99: 0 | DA99: 0 | DB99: 0 | DC99: 0 | DD99: 0 | DE99: 0 | DF99: 0 | DG99: 0 | DH99: 0 | DI99: 0 | DJ99: 0 | DK99: 0 | DL99: 0 | DM99: 0 | DN99: 0 | DO99: 0 | DP99: 0 | DQ99: 0 | DR99: 0 | DS99: 0 | DT99: 0 | DU99: 0 | DV99: 0 | DW99: 0 | DX99: 0 | DY99: 0 | DZ99: 0 | EA99: 0 | EB99: 0 | EC99: 0 | ED99: 0 | EE99: 0 | EF99: 0 | EG99: 0 | EH99: 0 | EI99: 0 | EJ99: 0 | EK99: 0 | EL99: 0 | EM99: 0 | EN99: 0 | EO99: 0 | EP99: 0 | EQ99: 0 | ER99: 0 | ES99: 0 | ET99: 0 | EU99: 0 | EV99: 0 | EW99: 0 | EX99: 0 | EY99: 0 | EZ99: 0 | FA99: 0 | FB99: 0 | FC99: 0 | FD99: 0 | FE99: 0 | FF99: 0 | FG99: 0 | FH99: 0 | FI99: 0 | FJ99: 0 | FK99: 0 | FL99: 0 | FM99: 0 | FN99: 0 | FO99: 0 | FP99: 0 | FQ99: 0 | FR99: 0 | FS99: 0 | FT99: 0 | FU99: 0 | FV99: 0 | FW99: 0 | FX99: 0 | FY99: 0 | FZ99: 0 | GA99: 0 | GB99: 0 | GC99: 0 | GD99: 0 | GE99: 0 | GF99: 0 | GG99: 0 | GH99: 0 | GI99: 0 | GJ99: 0 | GK99: 0 | GL99: 0 | GM99: 0 | GN99: 0 | GO99: 0 | GP99: 0 | GQ99: 0 | GR99: 0 | GS99: 0 | GT99: 0 | GU99: 0 | GV99: 0 | GW99: 0 | GX99: 0 | GY99: 0 | GZ99: 0 | HA99: 0 | HB99: 0 | HC99: 0 | HD99: 0 | HE99: 0 | HF99: 0 | HG99: 0 | HH99: 0 | HI99: 0 | HJ99: 0 | HK99: 0 | HL99: 0 | HM99: 0 | HN99: 0 | HO99: 0 | HP99: 0 | HQ99: 0 | HR99: 0 | HS99: 0 | HT99: 0 | HU99: 0 | HV99: 0 | HW99: 0
A100: 2 | B100: 5 | C100: 4 | D100: 1 | E100: 2 | F100: 1 | G100: 0 | H100: 65 | I100: 79 | J100: 36 | K100: 52 | L100: 17 | M100: 31 | N100: 0 | O100: 1 | P100: 0 | Q100: 1 | R100: 1 | S100: 0 | T100: 0 | U100: 0 | V100: 0 | W100: 0 | X100: 0 | Y100: 0 | Z100: 1 | AA100: 0 | AB100: 0 | AC100: 2 | AD100: 1 | AE100: 0 | AF100: 6 | AG100: 1 | AH100: 0 | AI100: 0 | AJ100: 0 | AK100: 0 | AL100: 0 | AM100: 0 | AN100: 0 | AO100: 0 | AP100: 0 | AQ100: 0 | AR100: 0 | AS100: 0 | AT100: 0 | AU100: 0 | AV100: 0 | AW100: 0 | AX100: 0 | AY100: 0 | AZ100: 0 | BA100: 0 | BB100: 0 | BC100: 0 | BD100: 0 | BE100: 0 | BF100: 0 | BG100: 0 | BH100: 0 | BI100: 0 | BJ100: 0 | BK100: 0 | BL100: 0 | BM100: 0 | BN100: 0 | BO100: 0 | BP100: 0 | BQ100: 0 | BR100: 0 | BS100: 0 | BT100: 0 | BU100: 0 | BV100: 0 | BW100: 0 | BX100: 0 | BY100: 0 | BZ100: 0 | CA100: 0 | CB100: 0 | CC100: 0 | CD100: 0 | CE100: 0 | CF100: 0 | CG100: 0 | CH100: 0 | CI100: 0 | CJ100: 0 | CK100: 0 | CL100: 0 | CM100: 0 | CN100: 39 | CO100: 63 | CP100: 22 | CQ100: 21 | CR100: 13 | CS100: 11 | CT100: 10 | CU100: 5 | CV100: 4 | CW100: 5 | CX100: 1 | CY100: 0 | CZ100: 0 | DA100: 0 | DB100: 0 | DC100: 0 | DD100: 0 | DE100: 0 | DF100: 0 | DG100: 0 | DH100: 0 | DI100: 0 | DJ100: 0 | DK100: 0 | DL100: 0 | DM100: 0 | DN100: 0 | DO100: 0 | DP100: 0 | DQ100: 0 | DR100: 0 | DS100: 0 | DT100: 0 | DU100: 0 | DV100: 0 | DW100: 0 | DX100: 0 | DY100: 0 | DZ100: 0 | EA100: 0 | EB100: 0 | EC100: 0 | ED100: 0 | EE100: 0 | EF100: 0 | EG100: 0 | EH100: 0 | EI100: 0 | EJ100: 0 | EK100: 0 | EL100: 0 | EM100: 0 | EN100: 0 | EO100: 0 | EP100: 0 | EQ100: 0 | ER100: 0 | ES100: 0 | ET100: 0 | EU100: 0 | EV100: 0 | EW100: 0 | EX100: 0 | EY100: 0 | EZ100: 0 | FA100: 0 | FB100: 0 | FC100: 0 | FD100: 0 | FE100: 0 | FF100: 0 | FG100: 0 | FH100: 0 | FI100: 0 | FJ100: 0 | FK100: 0 | FL100: 0 | FM100: 0 | FN100: 0 | FO100: 0 | FP100: 0 | FQ100: 0 | FR100: 0 | FS100: 0 | FT100: 0 | FU100: 0 | FV100: 0 | FW100: 0 | FX100: 0 | FY100: 0 | FZ100: 0 | GA100: 0 | GB100: 0 | GC100: 0 | GD100: 0 | GE100: 0 | GF100: 0 | GG100: 0 | GH100: 0 | GI100: 0 | GJ100: 0 | GK100: 0 | GL100: 0 | GM100: 0 | GN100: 0 | GO100: 0 | GP100: 0 | GQ100: 0 | GR100: 0 | GS100: 0 | GT100: 0 | GU100: 0 | GV100: 0 | GW100: 0 | GX100: 0 | GY100: 0 | GZ100: 0 | HA100: 0 | HB100: 0 | HC100: 0 | HD100: 0 | HE100: 0 | HF100: 0 | HG100: 0 | HH100: 0 | HI100: 0 | HJ100: 0 | HK100: 0 | HL100: 0 | HM100: 0 | HN100: 0 | HO100: 0 | HP100: 0 | HQ100: 0 | HR100: 0 | HS100: 0 | HT100: 0 | HU100: 0 | HV100: 0 | HW100: 0
A101: 3 | B101: 1 | C101: 1 | D101: 0 | E101: 1 | F101: 0 | G101: 1 | H101: 35 | I101: 63 | J101: 29 | K101: 42 | L101: 10 | M101: 16 | N101: 2 | O101: 0 | P101: 0 | Q101: 1 | R101: 1 | S101: 1 | T101: 0 | U101: 0 | V101: 0 | W101: 0 | X101: 0 | Y101: 0 | Z101: 0 | AA101: 0 | AB101: 0 | AC101: 0 | AD101: 0 | AE101: 0 | AF101: 18 | AG101: 4 | AH101: 0 | AI101: 1 | AJ101: 1 | AK101: 0 | AL101: 0 | AM101: 0 | AN101: 0 | AO101: 0 | AP101: 0 | AQ101: 0 | AR101: 0 | AS101: 0 | AT101: 0 | AU101: 0 | AV101: 0 | AW101: 0 | AX101: 0 | AY101: 0 | AZ101: 0 | BA101: 2 | BB101: 0 | BC101: 0 | BD101: 0 | BE101: 0 | BF101: 0 | BG101: 0 | BH101: 0 | BI101: 0 | BJ101: 0 | BK101: 0 | BL101: 0 | BM101: 0 | BN101: 0 | BO101: 0 | BP101: 0 | BQ101: 0 | BR101: 0 | BS101: 0 | BT101: 0 | BU101: 0 | BV101: 0 | BW101: 0 | BX101: 0 | BY101: 0 | BZ101: 0 | CA101: 0 | CB101: 0 | CC101: 0 | CD101: 0 | CE101: 0 | CF101: 0 | CG101: 0 | CH101: 0 | CI101: 0 | CJ101: 0 | CK101: 0 | CL101: 0 | CM101: 0 | CN101: 41 | CO101: 71 | CP101: 35 | CQ101: 52 | CR101: 15 | CS101: 13 | CT101: 1 | CU101: 9 | CV101: 4 | CW101: 1 | CX101: 1 | CY101: 0 | CZ101: 0 | DA101: 0 | DB101: 0 | DC101: 0 | DD101: 0 | DE101: 0 | DF101: 0 | DG101: 0 | DH101: 0 | DI101: 0 | DJ101: 0 | DK101: 0 | DL101: 0 | DM101: 0 | DN101: 0 | DO101: 0 | DP101: 0 | DQ101: 0 | DR101: 0 | DS101: 0 | DT101: 0 | DU101: 0 | DV101: 0 | DW101: 0 | DX101: 0 | DY101: 0 | DZ101: 0 | EA101: 0 | EB101: 0 | EC101: 0 | ED101: 0 | EE101: 0 | EF101: 0 | EG101: 0 | EH101: 0 | EI101: 0 | EJ101: 0 | EK101: 0 | EL101: 0 | EM101: 0 | EN101: 0 | EO101: 0 | EP101: 0 | EQ101: 0 | ER101: 0 | ES101: 0 | ET101: 0 | EU101: 0 | EV101: 0 | EW101: 0 | EX101: 0 | EY101: 0 | EZ101: 0 | FA101: 0 | FB101: 0 | FC101: 0 | FD101: 0 | FE101: 0 | FF101: 0 | FG101: 0 | FH101: 0 | FI101: 0 | FJ101: 0 | FK101: 0 | FL101: 0 | FM101: 0 | FN101: 0 | FO101: 0 | FP101: 0 | FQ101: 0 | FR101: 0 | FS101: 0 | FT101: 0 | FU101: 0 | FV101: 0 | FW101: 0 | FX101: 0 | FY101: 0 | FZ101: 0 | GA101: 0 | GB101: 0 | GC101: 0 | GD101: 0 | GE101: 0 | GF101: 0 | GG101: 0 | GH101: 0 | GI101: 0 | GJ101: 0 | GK101: 0 | GL101: 0 | GM101: 0 | GN101: 0 | GO101: 0 | GP101: 0 | GQ101: 0 | GR101: 0 | GS101: 0 | GT101: 0 | GU101: 0 | GV101: 0 | GW101: 0 | GX101: 0 | GY101: 0 | GZ101: 0 | HA101: 0 | HB101: 0 | HC101: 0 | HD101: 0 | HE101: 0 | HF101: 0 | HG101: 0 | HH101: 0 | HI101: 0 | HJ101: 0 | HK101: 0 | HL101: 0 | HM101: 0 | HN101: 0 | HO101: 0 | HP101: 0 | HQ101: 0 | HR101: 0 | HS101: 0 | HT101: 0 | HU101: 0 | HV101: 0 | HW101: 0
A102: 4 | B102: 1 | C102: 2 | D102: 2 | E102: 2 | F102: 0 | G102: 0 | H102: 47 | I102: 61 | J102: 26 | K102: 43 | L102: 23 | M102: 18 | N102: 0 | O102: 0 | P102: 0 | Q102: 0 | R102: 0 | S102: 0 | T102: 0 | U102: 0 | V102: 0 | W102: 0 | X102: 0 | Y102: 0 | Z102: 1 | AA102: 1 | AB102: 0 | AC102: 0 | AD102: 0 | AE102: 0 | AF102: 7 | AG102: 3 | AH102: 0 | AI102: 2 | AJ102: 0 | AK102: 0 | AL102: 0 | AM102: 0 | AN102: 0 | AO102: 0 | AP102: 0 | AQ102: 0 | AR102: 0 | AS102: 0 | AT102: 0 | AU102: 1 | AV102: 0 | AW102: 0 | AX102: 0 | AY102: 0 | AZ102: 0 | BA102: 2 | BB102: 0 | BC102: 0 | BD102: 0 | BE102: 0 | BF102: 0 | BG102: 0 | BH102: 0 | BI102: 0 | BJ102: 0 | BK102: 0 | BL102: 0 | BM102: 0 | BN102: 0 | BO102: 0 | BP102: 0 | BQ102: 0 | BR102: 0 | BS102: 0 | BT102: 0 | BU102: 0 | BV102: 0 | BW102: 0 | BX102: 0 | BY102: 0 | BZ102: 0 | CA102: 0 | CB102: 0 | CC102: 0 | CD102: 0 | CE102: 0 | CF102: 0 | CG102: 0 | CH102: 0 | CI102: 0 | CJ102: 0 | CK102: 0 | CL102: 0 | CM102: 0 | CN102: 64 | CO102: 79 | CP102: 50 | CQ102: 57 | CR102: 21 | CS102: 21 | CT102: 0 | CU102: 4 | CV102: 0 | CW102: 1 | CX102: 1 | CY102: 0 | CZ102: 0 | DA102: 0 | DB102: 0 | DC102: 0 | DD102: 0 | DE102: 0 | DF102: 0 | DG102: 0 | DH102: 0 | DI102: 0 | DJ102: 0 | DK102: 0 | DL102: 0 | DM102: 0 | DN102: 0 | DO102: 0 | DP102: 0 | DQ102: 0 | DR102: 0 | DS102: 0 | DT102: 0 | DU102: 0 | DV102: 0 | DW102: 0 | DX102: 0 | DY102: 0 | DZ102: 0 | EA102: 0 | EB102: 0 | EC102: 0 | ED102: 0 | EE102: 0 | EF102: 0 | EG102: 0 | EH102: 0 | EI102: 0 | EJ102: 0 | EK102: 0 | EL102: 0 | EM102: 0 | EN102: 0 | EO102: 0 | EP102: 0 | EQ102: 0 | ER102: 0 | ES102: 0 | ET102: 0 | EU102: 0 | EV102: 0 | EW102: 0 | EX102: 0 | EY102: 0 | EZ102: 0 | FA102: 0 | FB102: 0 | FC102: 0 | FD102: 0 | FE102: 0 | FF102: 0 | FG102: 0 | FH102: 0 | FI102: 0 | FJ102: 0 | FK102: 0 | FL102: 0 | FM102: 0 | FN102: 0 | FO102: 0 | FP102: 0 | FQ102: 0 | FR102: 0 | FS102: 0 | FT102: 0 | FU102: 0 | FV102: 0 | FW102: 0 | FX102: 0 | FY102: 0 | FZ102: 0 | GA102: 0 | GB102: 0 | GC102: 0 | GD102: 0 | GE102: 0 | GF102: 0 | GG102: 0 | GH102: 0 | GI102: 0 | GJ102: 0 | GK102: 0 | GL102: 0 | GM102: 0 | GN102: 0 | GO102: 0 | GP102: 0 | GQ102: 0 | GR102: 0 | GS102: 0 | GT102: 0 | GU102: 0 | GV102: 0 | GW102: 0 | GX102: 0 | GY102: 0 | GZ102: 0 | HA102: 0 | HB102: 0 | HC102: 0 | HD102: 0 | HE102: 0 | HF102: 0 | HG102: 0 | HH102: 0 | HI102: 0 | HJ102: 0 | HK102: 0 | HL102: 0 | HM102: 0 | HN102: 0 | HO102: 0 | HP102: 0 | HQ102: 0 | HR102: 0 | HS102: 0 | HT102: 0 | HU102: 0 | HV102: 0 | HW102: 0
A103: 5 | B103: 0 | C103: 2 | D103: 0 | E103: 0 | F103: 0 | G103: 0 | H103: 33 | I103: 30 | J103: 30 | K103: 33 | L103: 12 | M103: 12 | N103: 0 | O103: 0 | P103: 0 | Q103: 0 | R103: 0 | S103: 0 | T103: 0 | U103: 0 | V103: 0 | W103: 0 | X103: 0 | Y103: 0 | Z103: 0 | AA103: 0 | AB103: 0 | AC103: 0 | AD103: 0 | AE103: 0 | AF103: 20 | AG103: 9 | AH103: 0 | AI103: 2 | AJ103: 0 | AK103: 0 | AL103: 0 | AM103: 0 | AN103: 0 | AO103: 0 | AP103: 0 | AQ103: 0 | AR103: 0 | AS103: 0 | AT103: 0 | AU103: 0 | AV103: 0 | AW103: 0 | AX103: 0 | AY103: 0 | AZ103: 0 | BA103: 0 | BB103: 0 | BC103: 0 | BD103: 0 | BE103: 0 | BF103: 0 | BG103: 0 | BH103: 0 | BI103: 0 | BJ103: 0 | BK103: 0 | BL103: 0 | BM103: 0 | BN103: 0 | BO103: 0 | BP103: 0 | BQ103: 0 | BR103: 0 | BS103: 0 | BT103: 0 | BU103: 0 | BV103: 0 | BW103: 0 | BX103: 0 | BY103: 0 | BZ103: 0 | CA103: 0 | CB103: 0 | CC103: 0 | CD103: 0 | CE103: 0 | CF103: 0 | CG103: 0 | CH103: 0 | CI103: 0 | CJ103: 0 | CK103: 0 | CL103: 0 | CM103: 0 | CN103: 53 | CO103: 74 | CP103: 37 | CQ103: 42 | CR103: 12 | CS103: 22 | CT103: 0 | CU103: 1 | CV103: 0 | CW103: 0 | CX103: 0 | CY103: 0 | CZ103: 0 | DA103: 0 | DB103: 0 | DC103: 0 | DD103: 0 | DE103: 0 | DF103: 0 | DG103: 0 | DH103: 0 | DI103: 0 | DJ103: 0 | DK103: 0 | DL103: 0 | DM103: 0 | DN103: 0 | DO103: 0 | DP103: 0 | DQ103: 0 | DR103: 0 | DS103: 0 | DT103: 0 | DU103: 0 | DV103: 0 | DW103: 0 | DX103: 0 | DY103: 0 | DZ103: 0 | EA103: 0 | EB103: 0 | EC103: 0 | ED103: 0 | EE103: 0 | EF103: 0 | EG103: 0 | EH103: 0 | EI103: 0 | EJ103: 0 | EK103: 0 | EL103: 0 | EM103: 0 | EN103: 0 | EO103: 0 | EP103: 0 | EQ103: 0 | ER103: 0 | ES103: 0 | ET103: 0 | EU103: 0 | EV103: 0 | EW103: 0 | EX103: 0 | EY103: 0 | EZ103: 0 | FA103: 0 | FB103: 0 | FC103: 0 | FD103: 0 | FE103: 0 | FF103: 0 | FG103: 0 | FH103: 0 | FI103: 0 | FJ103: 0 | FK103: 0 | FL103: 0 | FM103: 0 | FN103: 0 | FO103: 0 | FP103: 0 | FQ103: 0 | FR103: 0 | FS103: 0 | FT103: 0 | FU103: 0 | FV103: 0 | FW103: 0 | FX103: 0 | FY103: 0 | FZ103: 0 | GA103: 0 | GB103: 0 | GC103: 0 | GD103: 0 | GE103: 0 | GF103: 0 | GG103: 0 | GH103: 0 | GI103: 0 | GJ103: 0 | GK103: 0 | GL103: 0 | GM103: 0 | GN103: 0 | GO103: 0 | GP103: 0 | GQ103: 0 | GR103: 0 | GS103: 0 | GT103: 0 | GU103: 0 | GV103: 0 | GW103: 0 | GX103: 0 | GY103: 0 | GZ103: 0 | HA103: 0 | HB103: 0 | HC103: 0 | HD103: 0 | HE103: 0 | HF103: 0 | HG103: 0 | HH103: 0 | HI103: 0 | HJ103: 0 | HK103: 0 | HL103: 0 | HM103: 0 | HN103: 0 | HO103: 0 | HP103: 0 | HQ103: 0 | HR103: 0 | HS103: 0 | HT103: 0 | HU103: 0 | HV103: 0 | HW103: 0
A104: 6 | B104: 1 | C104: 2 | D104: 1 | E104: 0 | F104: 1 | G104: 3 | H104: 24 | I104: 33 | J104: 12 | K104: 29 | L104: 10 | M104: 17 | N104: 0 | O104: 0 | P104: 0 | Q104: 0 | R104: 0 | S104: 0 | T104: 0 | U104: 0 | V104: 0 | W104: 0 | X104: 0 | Y104: 0 | Z104: 0 | AA104: 0 | AB104: 0 | AC104: 0 | AD104: 0 | AE104: 0 | AF104: 28 | AG104: 13 | AH104: 0 | AI104: 1 | AJ104: 1 | AK104: 0 | AL104: 0 | AM104: 0 | AN104: 0 | AO104: 0 | AP104: 0 | AQ104: 0 | AR104: 0 | AS104: 0 | AT104: 0 | AU104: 2 | AV104: 0 | AW104: 0 | AX104: 1 | AY104: 0 | AZ104: 0 | BA104: 1 | BB104: 0 | BC104: 0 | BD104: 0 | BE104: 0 | BF104: 0 | BG104: 0 | BH104: 0 | BI104: 0 | BJ104: 0 | BK104: 0 | BL104: 0 | BM104: 0 | BN104: 0 | BO104: 0 | BP104: 0 | BQ104: 0 | BR104: 0 | BS104: 0 | BT104: 0 | BU104: 0 | BV104: 0 | BW104: 0 | BX104: 0 | BY104: 0 | BZ104: 0 | CA104: 0 | CB104: 5 | CC104: 0 | CD104: 0 | CE104: 0 | CF104: 0 | CG104: 0 | CH104: 0 | CI104: 0 | CJ104: 0 | CK104: 0 | CL104: 0 | CM104: 0 | CN104: 57 | CO104: 76 | CP104: 34 | CQ104: 39 | CR104: 21 | CS104: 19 | CT104: 4 | CU104: 1 | CV104: 5 | CW104: 1 | CX104: 3 | CY104: 0 | CZ104: 0 | DA104: 0 | DB104: 0 | DC104: 0 | DD104: 0 | DE104: 0 | DF104: 0 | DG104: 0 | DH104: 0 | DI104: 0 | DJ104: 0 | DK104: 0 | DL104: 0 | DM104: 0 | DN104: 0 | DO104: 0 | DP104: 0 | DQ104: 0 | DR104: 0 | DS104: 0 | DT104: 0 | DU104: 0 | DV104: 0 | DW104: 0 | DX104: 0 | DY104: 0 | DZ104: 0 | EA104: 0 | EB104: 0 | EC104: 0 | ED104: 0 | EE104: 0 | EF104: 0 | EG104: 0 | EH104: 0 | EI104: 0 | EJ104: 0 | EK104: 0 | EL104: 0 | EM104: 0 | EN104: 0 | EO104: 0 | EP104: 0 | EQ104: 0 | ER104: 0 | ES104: 0 | ET104: 0 | EU104: 0 | EV104: 0 | EW104: 0 | EX104: 0 | EY104: 0 | EZ104: 0 | FA104: 0 | FB104: 0 | FC104: 0 | FD104: 0 | FE104: 0 | FF104: 0 | FG104: 0 | FH104: 0 | FI104: 0 | FJ104: 0 | FK104: 0 | FL104: 0 | FM104: 0 | FN104: 0 | FO104: 0 | FP104: 0 | FQ104: 0 | FR104: 0 | FS104: 0 | FT104: 0 | FU104: 0 | FV104: 0 | FW104: 0 | FX104: 0 | FY104: 0 | FZ104: 0 | GA104: 0 | GB104: 0 | GC104: 0 | GD104: 0 | GE104: 0 | GF104: 0 | GG104: 0 | GH104: 0 | GI104: 0 | GJ104: 0 | GK104: 0 | GL104: 0 | GM104: 0 | GN104: 0 | GO104: 0 | GP104: 0 | GQ104: 0 | GR104: 0 | GS104: 0 | GT104: 0 | GU104: 0 | GV104: 0 | GW104: 0 | GX104: 0 | GY104: 0 | GZ104: 0 | HA104: 0 | HB104: 0 | HC104: 0 | HD104: 0 | HE104: 0 | HF104: 0 | HG104: 0 | HH104: 0 | HI104: 0 | HJ104: 0 | HK104: 0 | HL104: 0 | HM104: 0 | HN104: 0 | HO104: 0 | HP104: 0 | HQ104: 0 | HR104: 0 | HS104: 0 | HT104: 0 | HU104: 0 | HV104: 0 | HW104: 0
A105: 8 | B105: 3 | C105: 0 | D105: 2 | E105: 2 | F105: 3 | G105: 2 | H105: 32 | I105: 48 | J105: 23 | K105: 32 | L105: 32 | M105: 19 | N105: 0 | O105: 0 | P105: 0 | Q105: 0 | R105: 0 | S105: 0 | T105: 0 | U105: 0 | V105: 0 | W105: 0 | X105: 0 | Y105: 0 | Z105: 0 | AA105: 0 | AB105: 0 | AC105: 0 | AD105: 0 | AE105: 0 | AF105: 45 | AG105: 14 | AH105: 1 | AI105: 5 | AJ105: 3 | AK105: 0 | AL105: 0 | AM105: 0 | AN105: 0 | AO105: 0 | AP105: 0 | AQ105: 0 | AR105: 0 | AS105: 0 | AT105: 0 | AU105: 0 | AV105: 0 | AW105: 0 | AX105: 0 | AY105: 0 | AZ105: 0 | BA105: 0 | BB105: 0 | BC105: 0 | BD105: 0 | BE105: 0 | BF105: 0 | BG105: 0 | BH105: 0 | BI105: 0 | BJ105: 0 | BK105: 0 | BL105: 0 | BM105: 0 | BN105: 0 | BO105: 0 | BP105: 0 | BQ105: 0 | BR105: 0 | BS105: 0 | BT105: 0 | BU105: 0 | BV105: 0 | BW105: 0 | BX105: 0 | BY105: 14 | BZ105: 1 | CA105: 0 | CB105: 15 | CC105: 0 | CD105: 0 | CE105: 0 | CF105: 0 | CG105: 0 | CH105: 0 | CI105: 0 | CJ105: 0 | CK105: 0 | CL105: 0 | CM105: 0 | CN105: 49 | CO105: 66 | CP105: 31 | CQ105: 32 | CR105: 25 | CS105: 22 | CT105: 0 | CU105: 3 | CV105: 1 | CW105: 0 | CX105: 0 | CY105: 0 | CZ105: 0 | DA105: 0 | DB105: 0 | DC105: 0 | DD105: 0 | DE105: 0 | DF105: 0 | DG105: 0 | DH105: 0 | DI105: 0 | DJ105: 0 | DK105: 0 | DL105: 0 | DM105: 0 | DN105: 0 | DO105: 0 | DP105: 0 | DQ105: 0 | DR105: 0 | DS105: 0 | DT105: 0 | DU105: 0 | DV105: 0 | DW105: 0 | DX105: 0 | DY105: 0 | DZ105: 0 | EA105: 0 | EB105: 0 | EC105: 0 | ED105: 0 | EE105: 0 | EF105: 0 | EG105: 0 | EH105: 0 | EI105: 0 | EJ105: 0 | EK105: 0 | EL105: 0 | EM105: 0 | EN105: 0 | EO105: 0 | EP105: 0 | EQ105: 0 | ER105: 0 | ES105: 0 | ET105: 0 | EU105: 0 | EV105: 0 | EW105: 0 | EX105: 0 | EY105: 0 | EZ105: 0 | FA105: 0 | FB105: 0 | FC105: 0 | FD105: 0 | FE105: 0 | FF105: 0 | FG105: 0 | FH105: 0 | FI105: 0 | FJ105: 0 | FK105: 0 | FL105: 0 | FM105: 0 | FN105: 0 | FO105: 0 | FP105: 0 | FQ105: 0 | FR105: 0 | FS105: 0 | FT105: 0 | FU105: 0 | FV105: 0 | FW105: 0 | FX105: 0 | FY105: 0 | FZ105: 0 | GA105: 0 | GB105: 0 | GC105: 0 | GD105: 0 | GE105: 0 | GF105: 0 | GG105: 0 | GH105: 0 | GI105: 0 | GJ105: 0 | GK105: 0 | GL105: 0 | GM105: 0 | GN105: 0 | GO105: 0 | GP105: 0 | GQ105: 0 | GR105: 0 | GS105: 0 | GT105: 0 | GU105: 0 | GV105: 0 | GW105: 0 | GX105: 0 | GY105: 0 | GZ105: 0 | HA105: 0 | HB105: 0 | HC105: 0 | HD105: 0 | HE105: 0 | HF105: 0 | HG105: 0 | HH105: 0 | HI105: 0 | HJ105: 0 | HK105: 0 | HL105: 0 | HM105: 0 | HN105: 0 | HO105: 0 | HP105: 0 | HQ105: 0 | HR105: 0 | HS105: 0 | HT105: 0 | HU105: 0 | HV105: 0 | HW105: 0
A106: 7 | B106: 10 | C106: 9 | D106: 11 | E106: 10 | F106: 4 | G106: 5 | H106: 17 | I106: 33 | J106: 23 | K106: 38 | L106: 11 | M106: 12 | N106: 0 | O106: 0 | P106: 0 | Q106: 0 | R106: 0 | S106: 0 | T106: 0 | U106: 0 | V106: 0 | W106: 0 | X106: 0 | Y106: 0 | Z106: 3 | AA106: 1 | AB106: 1 | AC106: 0 | AD106: 1 | AE106: 0 | AF106: 29 | AG106: 14 | AH106: 1 | AI106: 2 | AJ106: 2 | AK106: 1 | AL106: 0 | AM106: 0 | AN106: 0 | AO106: 0 | AP106: 0 | AQ106: 0 | AR106: 0 | AS106: 0 | AT106: 0 | AU106: 0 | AV106: 0 | AW106: 0 | AX106: 0 | AY106: 0 | AZ106: 0 | BA106: 0 | BB106: 0 | BC106: 0 | BD106: 0 | BE106: 0 | BF106: 0 | BG106: 0 | BH106: 0 | BI106: 0 | BJ106: 0 | BK106: 0 | BL106: 0 | BM106: 0 | BN106: 0 | BO106: 0 | BP106: 0 | BQ106: 0 | BR106: 0 | BS106: 0 | BT106: 0 | BU106: 0 | BV106: 0 | BW106: 0 | BX106: 0 | BY106: 3 | BZ106: 0 | CA106: 0 | CB106: 15 | CC106: 2 | CD106: 0 | CE106: 0 | CF106: 0 | CG106: 0 | CH106: 0 | CI106: 0 | CJ106: 0 | CK106: 0 | CL106: 0 | CM106: 0 | CN106: 54 | CO106: 61 | CP106: 33 | CQ106: 45 | CR106: 11 | CS106: 9 | CT106: 5 | CU106: 5 | CV106: 2 | CW106: 4 | CX106: 0 | CY106: 1 | CZ106: 0 | DA106: 0 | DB106: 0 | DC106: 0 | DD106: 0 | DE106: 0 | DF106: 0 | DG106: 0 | DH106: 0 | DI106: 0 | DJ106: 0 | DK106: 0 | DL106: 0 | DM106: 0 | DN106: 0 | DO106: 0 | DP106: 0 | DQ106: 0 | DR106: 0 | DS106: 0 | DT106: 0 | DU106: 0 | DV106: 0 | DW106: 0 | DX106: 0 | DY106: 0 | DZ106: 0 | EA106: 0 | EB106: 0 | EC106: 0 | ED106: 0 | EE106: 0 | EF106: 0 | EG106: 0 | EH106: 0 | EI106: 0 | EJ106: 0 | EK106: 0 | EL106: 0 | EM106: 0 | EN106: 0 | EO106: 0 | EP106: 0 | EQ106: 0 | ER106: 0 | ES106: 0 | ET106: 0 | EU106: 0 | EV106: 0 | EW106: 0 | EX106: 0 | EY106: 0 | EZ106: 0 | FA106: 0 | FB106: 0 | FC106: 0 | FD106: 0 | FE106: 0 | FF106: 0 | FG106: 0 | FH106: 0 | FI106: 0 | FJ106: 0 | FK106: 0 | FL106: 0 | FM106: 0 | FN106: 0 | FO106: 0 | FP106: 0 | FQ106: 0 | FR106: 0 | FS106: 0 | FT106: 0 | FU106: 0 | FV106: 0 | FW106: 0 | FX106: 0 | FY106: 0 | FZ106: 0 | GA106: 0 | GB106: 0 | GC106: 0 | GD106: 0 | GE106: 0 | GF106: 0 | GG106: 0 | GH106: 0 | GI106: 0 | GJ106: 0 | GK106: 0 | GL106: 0 | GM106: 0 | GN106: 0 | GO106: 0 | GP106: 0 | GQ106: 0 | GR106: 0 | GS106: 0 | GT106: 0 | GU106: 0 | GV106: 0 | GW106: 0 | GX106: 0 | GY106: 0 | GZ106: 0 | HA106: 0 | HB106: 0 | HC106: 0 | HD106: 0 | HE106: 0 | HF106: 0 | HG106: 0 | HH106: 0 | HI106: 0 | HJ106: 0 | HK106: 0 | HL106: 0 | HM106: 0 | HN106: 0 | HO106: 0 | HP106: 0 | HQ106: 0 | HR106: 0 | HS106: 0 | HT106: 0 | HU106: 0 | HV106: 0 | HW106: 0
A107: 11 | B107: 6 | C107: 7 | D107: 4 | E107: 3 | F107: 3 | G107: 3 | H107: 32 | I107: 53 | J107: 23 | K107: 40 | L107: 14 | M107: 22 | N107: 0 | O107: 0 | P107: 0 | Q107: 0 | R107: 0 | S107: 0 | T107: 0 | U107: 0 | V107: 0 | W107: 0 | X107: 0 | Y107: 0 | Z107: 0 | AA107: 0 | AB107: 0 | AC107: 0 | AD107: 0 | AE107: 0 | AF107: 56 | AG107: 26 | AH107: 0 | AI107: 4 | AJ107: 1 | AK107: 0 | AL107: 0 | AM107: 0 | AN107: 0 | AO107: 0 | AP107: 0 | AQ107: 0 | AR107: 0 | AS107: 0 | AT107: 0 | AU107: 0 | AV107: 0 | AW107: 0 | AX107: 0 | AY107: 0 | AZ107: 0 | BA107: 0 | BB107: 0 | BC107: 0 | BD107: 0 | BE107: 0 | BF107: 0 | BG107: 0 | BH107: 0 | BI107: 0 | BJ107: 0 | BK107: 0 | BL107: 0 | BM107: 0 | BN107: 0 | BO107: 0 | BP107: 1 | BQ107: 0 | BR107: 0 | BS107: 0 | BT107: 0 | BU107: 0 | BV107: 0 | BW107: 0 | BX107: 0 | BY107: 0 | BZ107: 0 | CA107: 0 | CB107: 14 | CC107: 0 | CD107: 0 | CE107: 0 | CF107: 0 | CG107: 0 | CH107: 0 | CI107: 0 | CJ107: 0 | CK107: 0 | CL107: 0 | CM107: 0 | CN107: 39 | CO107: 58 | CP107: 32 | CQ107: 37 | CR107: 12 | CS107: 12 | CT107: 2 | CU107: 1 | CV107: 2 | CW107: 0 | CX107: 1 | CY107: 1 | CZ107: 0 | DA107: 0 | DB107: 0 | DC107: 0 | DD107: 0 | DE107: 0 | DF107: 0 | DG107: 0 | DH107: 0 | DI107: 0 | DJ107: 0 | DK107: 0 | DL107: 0 | DM107: 0 | DN107: 0 | DO107: 0 | DP107: 0 | DQ107: 0 | DR107: 0 | DS107: 0 | DT107: 0 | DU107: 0 | DV107: 0 | DW107: 0 | DX107: 0 | DY107: 0 | DZ107: 0 | EA107: 0 | EB107: 0 | EC107: 0 | ED107: 0 | EE107: 0 | EF107: 0 | EG107: 0 | EH107: 0 | EI107: 0 | EJ107: 0 | EK107: 0 | EL107: 0 | EM107: 0 | EN107: 0 | EO107: 0 | EP107: 0 | EQ107: 0 | ER107: 0 | ES107: 0 | ET107: 0 | EU107: 0 | EV107: 0 | EW107: 0 | EX107: 0 | EY107: 0 | EZ107: 0 | FA107: 0 | FB107: 0 | FC107: 0 | FD107: 0 | FE107: 0 | FF107: 0 | FG107: 0 | FH107: 0 | FI107: 0 | FJ107: 0 | FK107: 0 | FL107: 0 | FM107: 0 | FN107: 0 | FO107: 0 | FP107: 0 | FQ107: 0 | FR107: 0 | FS107: 0 | FT107: 0 | FU107: 0 | FV107: 0 | FW107: 0 | FX107: 0 | FY107: 0 | FZ107: 0 | GA107: 0 | GB107: 0 | GC107: 0 | GD107: 0 | GE107: 0 | GF107: 0 | GG107: 0 | GH107: 0 | GI107: 0 | GJ107: 0 | GK107: 0 | GL107: 0 | GM107: 0 | GN107: 0 | GO107: 0 | GP107: 0 | GQ107: 0 | GR107: 0 | GS107: 0 | GT107: 0 | GU107: 0 | GV107: 0 | GW107: 0 | GX107: 0 | GY107: 0 | GZ107: 0 | HA107: 0 | HB107: 0 | HC107: 0 | HD107: 0 | HE107: 0 | HF107: 0 | HG107: 0 | HH107: 0 | HI107: 0 | HJ107: 0 | HK107: 0 | HL107: 0 | HM107: 0 | HN107: 0 | HO107: 0 | HP107: 0 | HQ107: 0 | HR107: 0 | HS107: 0 | HT107: 0 | HU107: 0 | HV107: 0 | HW107: 0
A108: 9 | B108: 2 | C108: 1 | D108: 2 | E108: 3 | F108: 2 | G108: 2 | H108: 40 | I108: 36 | J108: 29 | K108: 31 | L108: 15 | M108: 20 | N108: 0 | O108: 1 | P108: 1 | Q108: 0 | R108: 0 | S108: 0 | T108: 0 | U108: 0 | V108: 0 | W108: 0 | X108: 0 | Y108: 0 | Z108: 0 | AA108: 0 | AB108: 0 | AC108: 0 | AD108: 0 | AE108: 0 | AF108: 12 | AG108: 8 | AH108: 1 | AI108: 3 | AJ108: 1 | AK108: 0 | AL108: 0 | AM108: 0 | AN108: 0 | AO108: 0 | AP108: 0 | AQ108: 0 | AR108: 0 | AS108: 0 | AT108: 0 | AU108: 0 | AV108: 0 | AW108: 0 | AX108: 1 | AY108: 0 | AZ108: 0 | BA108: 1 | BB108: 0 | BC108: 0 | BD108: 3 | BE108: 0 | BF108: 0 | BG108: 0 | BH108: 0 | BI108: 0 | BJ108: 0 | BK108: 0 | BL108: 0 | BM108: 0 | BN108: 0 | BO108: 0 | BP108: 0 | BQ108: 0 | BR108: 0 | BS108: 0 | BT108: 0 | BU108: 0 | BV108: 0 | BW108: 0 | BX108: 0 | BY108: 19 | BZ108: 0 | CA108: 0 | CB108: 20 | CC108: 0 | CD108: 0 | CE108: 0 | CF108: 0 | CG108: 0 | CH108: 0 | CI108: 0 | CJ108: 0 | CK108: 0 | CL108: 0 | CM108: 0 | CN108: 44 | CO108: 65 | CP108: 27 | CQ108: 36 | CR108: 12 | CS108: 17 | CT108: 1 | CU108: 1 | CV108: 1 | CW108: 0 | CX108: 0 | CY108: 0 | CZ108: 0 | DA108: 0 | DB108: 0 | DC108: 0 | DD108: 0 | DE108: 0 | DF108: 0 | DG108: 0 | DH108: 0 | DI108: 0 | DJ108: 0 | DK108: 0 | DL108: 0 | DM108: 0 | DN108: 0 | DO108: 0 | DP108: 0 | DQ108: 0 | DR108: 0 | DS108: 0 | DT108: 0 | DU108: 0 | DV108: 0 | DW108: 0 | DX108: 0 | DY108: 0 | DZ108: 0 | EA108: 0 | EB108: 0 | EC108: 0 | ED108: 0 | EE108: 0 | EF108: 0 | EG108: 0 | EH108: 0 | EI108: 0 | EJ108: 0 | EK108: 0 | EL108: 0 | EM108: 0 | EN108: 0 | EO108: 0 | EP108: 0 | EQ108: 0 | ER108: 0 | ES108: 0 | ET108: 0 | EU108: 0 | EV108: 0 | EW108: 0 | EX108: 0 | EY108: 0 | EZ108: 0 | FA108: 0 | FB108: 0 | FC108: 0 | FD108: 0 | FE108: 0 | FF108: 0 | FG108: 0 | FH108: 0 | FI108: 0 | FJ108: 0 | FK108: 0 | FL108: 0 | FM108: 0 | FN108: 0 | FO108: 0 | FP108: 0 | FQ108: 0 | FR108: 0 | FS108: 0 | FT108: 0 | FU108: 0 | FV108: 0 | FW108: 0 | FX108: 0 | FY108: 0 | FZ108: 0 | GA108: 0 | GB108: 0 | GC108: 0 | GD108: 0 | GE108: 0 | GF108: 0 | GG108: 0 | GH108: 0 | GI108: 0 | GJ108: 0 | GK108: 0 | GL108: 0 | GM108: 0 | GN108: 0 | GO108: 0 | GP108: 0 | GQ108: 0 | GR108: 0 | GS108: 0 | GT108: 0 | GU108: 0 | GV108: 0 | GW108: 0 | GX108: 0 | GY108: 0 | GZ108: 0 | HA108: 0 | HB108: 0 | HC108: 0 | HD108: 0 | HE108: 0 | HF108: 0 | HG108: 0 | HH108: 0 | HI108: 0 | HJ108: 0 | HK108: 0 | HL108: 0 | HM108: 0 | HN108: 0 | HO108: 0 | HP108: 0 | HQ108: 0 | HR108: 0 | HS108: 0 | HT108: 0 | HU108: 0 | HV108: 0 | HW108: 0
A109: 10 | B109: 15 | C109: 12 | D109: 4 | E109: 7 | F109: 6 | G109: 3 | H109: 45 | I109: 40 | J109: 31 | K109: 29 | L109: 15 | M109: 13 | N109: 0 | O109: 0 | P109: 0 | Q109: 0 | R109: 1 | S109: 0 | T109: 0 | U109: 0 | V109: 0 | W109: 0 | X109: 0 | Y109: 0 | Z109: 0 | AA109: 0 | AB109: 0 | AC109: 0 | AD109: 0 | AE109: 0 | AF109: 58 | AG109: 25 | AH109: 3 | AI109: 1 | AJ109: 3 | AK109: 1 | AL109: 0 | AM109: 0 | AN109: 0 | AO109: 0 | AP109: 0 | AQ109: 0 | AR109: 0 | AS109: 0 | AT109: 0 | AU109: 1 | AV109: 0 | AW109: 0 | AX109: 1 | AY109: 0 | AZ109: 0 | BA109: 1 | BB109: 0 | BC109: 0 | BD109: 0 | BE109: 0 | BF109: 0 | BG109: 0 | BH109: 0 | BI109: 0 | BJ109: 0 | BK109: 0 | BL109: 0 | BM109: 0 | BN109: 0 | BO109: 0 | BP109: 0 | BQ109: 0 | BR109: 0 | BS109: 0 | BT109: 0 | BU109: 0 | BV109: 0 | BW109: 0 | BX109: 0 | BY109: 0 | BZ109: 0 | CA109: 0 | CB109: 168 | CC109: 14 | CD109: 0 | CE109: 0 | CF109: 0 | CG109: 0 | CH109: 0 | CI109: 0 | CJ109: 0 | CK109: 0 | CL109: 0 | CM109: 0 | CN109: 35 | CO109: 57 | CP109: 33 | CQ109: 42 | CR109: 18 | CS109: 16 | CT109: 2 | CU109: 2 | CV109: 4 | CW109: 3 | CX109: 1 | CY109: 0 | CZ109: 0 | DA109: 0 | DB109: 0 | DC109: 0 | DD109: 0 | DE109: 0 | DF109: 0 | DG109: 0 | DH109: 0 | DI109: 0 | DJ109: 0 | DK109: 0 | DL109: 0 | DM109: 0 | DN109: 0 | DO109: 0 | DP109: 0 | DQ109: 0 | DR109: 0 | DS109: 0 | DT109: 0 | DU109: 0 | DV109: 0 | DW109: 0 | DX109: 0 | DY109: 0 | DZ109: 0 | EA109: 0 | EB109: 0 | EC109: 0 | ED109: 0 | EE109: 0 | EF109: 0 | EG109: 0 | EH109: 0 | EI109: 0 | EJ109: 0 | EK109: 0 | EL109: 0 | EM109: 0 | EN109: 0 | EO109: 0 | EP109: 0 | EQ109: 0 | ER109: 0 | ES109: 0 | ET109: 0 | EU109: 0 | EV109: 0 | EW109: 0 | EX109: 0 | EY109: 0 | EZ109: 0 | FA109: 0 | FB109: 0 | FC109: 0 | FD109: 0 | FE109: 0 | FF109: 0 | FG109: 0 | FH109: 0 | FI109: 0 | FJ109: 0 | FK109: 0 | FL109: 0 | FM109: 0 | FN109: 0 | FO109: 0 | FP109: 0 | FQ109: 0 | FR109: 0 | FS109: 0 | FT109: 0 | FU109: 0 | FV109: 0 | FW109: 0 | FX109: 0 | FY109: 0 | FZ109: 0 | GA109: 0 | GB109: 0 | GC109: 0 | GD109: 0 | GE109: 0 | GF109: 0 | GG109: 0 | GH109: 0 | GI109: 0 | GJ109: 0 | GK109: 0 | GL109: 0 | GM109: 0 | GN109: 0 | GO109: 0 | GP109: 0 | GQ109: 0 | GR109: 0 | GS109: 0 | GT109: 0 | GU109: 0 | GV109: 0 | GW109: 0 | GX109: 0 | GY109: 0 | GZ109: 0 | HA109: 0 | HB109: 0 | HC109: 0 | HD109: 0 | HE109: 0 | HF109: 0 | HG109: 0 | HH109: 0 | HI109: 0 | HJ109: 0 | HK109: 0 | HL109: 0 | HM109: 0 | HN109: 0 | HO109: 0 | HP109: 0 | HQ109: 0 | HR109: 0 | HS109: 0 | HT109: 0 | HU109: 0 | HV109: 0 | HW109: 0
A110: Total general | B110: 45 | C110: 44 | D110: 30 | E110: 31 | F110: 20 | G110: 19 | H110: 403 | I110: 538 | J110: 292 | K110: 406 | L110: 171 | M110: 199 | N110: 3 | O110: 3 | P110: 2 | Q110: 2 | R110: 4 | S110: 1 | T110: 0 | U110: 0 | V110: 0 | W110: 0 | X110: 0 | Y110: 0 | Z110: 5 | AA110: 2 | AB110: 1 | AC110: 2 | AD110: 2 | AE110: 0 | AF110: 280 | AG110: 117 | AH110: 6 | AI110: 21 | AJ110: 12 | AK110: 2 | AL110: 0 | AM110: 0 | AN110: 0 | AO110: 0 | AP110: 0 | AQ110: 0 | AR110: 0 | AS110: 0 | AT110: 0 | AU110: 4 | AV110: 0 | AW110: 0 | AX110: 3 | AY110: 0 | AZ110: 0 | BA110: 8 | BB110: 0 | BC110: 0 | BD110: 3 | BE110: 0 | BF110: 0 | BG110: 0 | BH110: 0 | BI110: 0 | BJ110: 0 | BK110: 0 | BL110: 0 | BM110: 0 | BN110: 0 | BO110: 0 | BP110: 1 | BQ110: 0 | BR110: 0 | BS110: 0 | BT110: 0 | BU110: 0 | BV110: 0 | BW110: 0 | BX110: 0 | BY110: 36 | BZ110: 1 | CA110: 0 | CB110: 237 | CC110: 16 | CD110: 0 | CE110: 0 | CF110: 0 | CG110: 0 | CH110: 0 | CI110: 0 | CJ110: 0 | CK110: 0 | CL110: 0 | CM110: 0 | CN110: 517 | CO110: 717 | CP110: 360 | CQ110: 432 | CR110: 166 | CS110: 172 | CT110: 27 | CU110: 40 | CV110: 28 | CW110: 20 | CX110: 8 | CY110: 4 | CZ110: 0 | DA110: 0 | DB110: 0 | DC110: 0 | DD110: 0 | DE110: 0 | DF110: 0 | DG110: 0 | DH110: 0 | DI110: 0 | DJ110: 0 | DK110: 0 | DL110: 0 | DM110: 0 | DN110: 0 | DO110: 0 | DP110: 0 | DQ110: 0 | DR110: 0 | DS110: 0 | DT110: 0 | DU110: 0 | DV110: 0 | DW110: 0 | DX110: 0 | DY110: 0 | DZ110: 0 | EA110: 0 | EB110: 0 | EC110: 0 | ED110: 0 | EE110: 0 | EF110: 0 | EG110: 0 | EH110: 0 | EI110: 0 | EJ110: 0 | EK110: 0 | EL110: 0 | EM110: 0 | EN110: 0 | EO110: 0 | EP110: 0 | EQ110: 0 | ER110: 0 | ES110: 0 | ET110: 0 | EU110: 0 | EV110: 0 | EW110: 0 | EX110: 0 | EY110: 0 | EZ110: 0 | FA110: 0 | FB110: 0 | FC110: 0 | FD110: 0 | FE110: 0 | FF110: 0 | FG110: 0 | FH110: 0 | FI110: 0 | FJ110: 0 | FK110: 0 | FL110: 0 | FM110: 0 | FN110: 0 | FO110: 0 | FP110: 0 | FQ110: 0 | FR110: 0 | FS110: 0 | FT110: 0 | FU110: 0 | FV110: 0 | FW110: 0 | FX110: 0 | FY110: 0 | FZ110: 0 | GA110: 0 | GB110: 0 | GC110: 0 | GD110: 0 | GE110: 0 | GF110: 0 | GG110: 0 | GH110: 0 | GI110: 0 | GJ110: 0 | GK110: 0 | GL110: 0 | GM110: 0 | GN110: 0 | GO110: 0 | GP110: 0 | GQ110: 0 | GR110: 0 | GS110: 0 | GT110: 0 | GU110: 0 | GV110: 0 | GW110: 0 | GX110: 0 | GY110: 0 | GZ110: 0 | HA110: 0 | HB110: 0 | HC110: 0 | HD110: 0 | HE110: 0 | HF110: 0 | HG110: 0 | HH110: 0 | HI110: 0 | HJ110: 0 | HK110: 0 | HL110: 0 | HM110: 0 | HN110: 0 | HO110: 0 | HP110: 0 | HQ110: 0 | HR110: 0 | HS110: 0 | HT110: 0 | HU110: 0 | HV110: 0 | HW110: 0
A116: TOTAL
A117: =COUNT(A96:A114) -> 11 | B117: =SUM(B96:B114) -> 90 | C117: =SUM(C96:C114) -> 88 | D117: 60 | E117: 62 | F117: 40 | G117: 38 | H117: 806 | I117: 1076 | J117: 584 | K117: 812 | L117: 342 | M117: 398 | N117: 6 | O117: 6 | P117: 4 | Q117: 4 | R117: 8 | S117: 2 | T117: 0 | U117: 0 | V117: 0 | W117: 0 | X117: 0 | Y117: 0 | Z117: 10 | AA117: 4 | AB117: 2 | AC117: 4 | AD117: 4 | AE117: 0 | AF117: 560 | AG117: 234 | AH117: 12 | AI117: 42 | AJ117: 24 | AK117: 4 | AL117: 0 | AM117: 0 | AN117: 0 | AO117: 0 | AP117: 0 | AQ117: 0 | AR117: 0 | AS117: 0 | AT117: 0 | AU117: 8 | AV117: 0 | AW117: 0 | AX117: 6 | AY117: 0 | AZ117: 0 | BA117: 16 | BB117: 0 | BC117: 0 | BD117: 6 | BE117: 0 | BF117: 0 | BG117: 0 | BH117: 0 | BI117: 0 | BJ117: 0 | BK117: 0 | BL117: 0 | BM117: 0 | BN117: 0 | BO117: =SUM(BO96:BO114) -> 0 | BP117: 2 | BQ117: 0 | BR117: 0 | BS117: 0 | BT117: 0 | BU117: 0 | BV117: 0 | BW117: 0 | BX117: 0 | BY117: 72 | BZ117: 2 | CA117: 0 | CB117: 474 | CC117: 32 | CD117: 0 | CE117: 0 | CF117: 0 | CG117: 0 | CH117: 0 | CI117: 0 | CJ117: 0 | CK117: 0 | CL117: 0 | CM117: 0 | CN117: 1034 | CO117: 1434 | CP117: 720 | CQ117: 864 | CR117: 332 | CS117: 344 | CT117: 54 | CU117: 80 | CV117: 56 | CW117: 40 | CX117: 16 | CY117: 8 | CZ117: 0 | DA117: 0 | DB117: 0 | DC117: 0 | DD117: 0 | DE117: 0 | DF117: 0 | DG117: 0 | DH117: 0 | DI117: 0 | DJ117: 0 | DK117: 0 | DL117: 0 | DM117: 0 | DN117: 0 | DO117: 0 | DP117: 0 | DQ117: 0 | DR117: 0 | DS117: 0 | DT117: 0 | DU117: 0 | DV117: 0 | DW117: 0 | DX117: 0 | DY117: 0 | DZ117: 0 | EA117: =SUM(EA96:EA114) -> 0 | EB117: 0 | EC117: 0 | ED117: 0 | EE117: 0 | EF117: 0 | EG117: 0 | EH117: 0 | EI117: 0 | EJ117: 0 | EK117: 0 | EL117: 0 | EM117: 0 | EN117: 0 | EO117: 0 | EP117: 0 | EQ117: 0 | ER117: 0 | ES117: 0 | ET117: 0 | EU117: 0 | EV117: 0 | EW117: 0 | EX117: 0 | EY117: 0 | EZ117: 0 | FA117: 0 | FB117: 0 | FC117: 0 | FD117: 0 | FE117: 0 | FF117: 0 | FG117: 0 | FH117: 0 | FI117: 0 | FJ117: 0 | FK117: 0 | FL117: 0 | FM117: 0 | FN117: 0 | FO117: 0 | FP117: 0 | FQ117: 0 | FR117: 0 | FS117: 0 | FT117: 0 | FU117: 0 | FV117: 0 | FW117: 0 | FX117: 0 | FY117: 0 | FZ117: 0 | GA117: 0 | GB117: 0 | GC117: 0 | GD117: 0 | GE117: 0 | GF117: 0 | GG117: 0 | GH117: 0 | GI117: 0 | GJ117: 0 | GK117: 0 | GL117: 0 | GM117: =SUM(GM96:GM114) -> 0 | GN117: 0 | GO117: 0 | GP117: 0 | GQ117: 0 | GR117: 0 | GS117: 0 | GT117: 0 | GU117: 0 | GV117: 0 | GW117: 0 | GX117: 0 | GY117: 0 | GZ117: 0 | HA117: 0 | HB117: 0 | HC117: 0 | HD117: 0 | HE117: 0 | HF117: 0 | HG117: 0 | HH117: 0 | HI117: 0 | HJ117: 0 | HK117: 0 | HL117: 0 | HM117: 0 | HN117: 0 | HO117: 0 | HP117: 0 | HQ117: 0 | HR117: 0 | HS117: 0 | HT117: 0 | HU117: 0 | HV117: 0 | HW117: 0 | HX117: 0
A118: =CONCATENATE(A99,"-",A100,"-",A101,"-",A102,"-",A103,"-",A104,"-",A105,"-",A106,"-",A107,"-",A108,"-",A109,"-",A110) -> 1-2-3-4-5-6-8-7-11-9-10-Total general
B119: BAS001 | C119: BAS002 | D119: BAS003 | E119: BAS004 | F119: BAS005 | G119: BAS006 | H119: BAS007 | I119: BAS008 | J119: BAS009 | K119: BAS010 | L119: BAS011 | M119: BAS012 | N119: BAS013 | O119: BAS014 | P119: BAS015 | Q119: BAS016 | R119: BAS017 | S119: BAS018 | T119: BAS019 | U119: BAS020 | V119: BAS021 | W119: BAS022 | X119: BAS023 | Y119: BAS024 | Z119: BAS025 | AA119: BAS026 | AB119: BAS027 | AC119: BAS028 | AD119: BAS029 | AE119: BAS030 | AF119: BAS031 | AG119: BAS032 | AH119: BAS033 | AI119: BAS034 | AJ119: BAS035 | AK119: BAS036 | AL119: BAS037 | AM119: BAS038 | AN119: BAS039 | AO119: BAS040 | AP119: BAS041 | AQ119: BAS042 | AR119: BAS043 | AS119: BAS044 | AT119: BAS045 | AU119: BAS046 | AV119: BAS047 | AW119: BAS048 | AX119: BAS049 | AY119: BAS050 | AZ119: BAS051 | BA119: BAS052 | BB119: BAS053 | BC119: BAS054 | BD119: BAS055 | BE119: BAS056 | BF119: BAS057 | BG119: BAS058 | BH119: BAS059 | BI119: BAS060 | BJ119: BAS061 | BK119: BAS062 | BL119: BAS063 | BM119: BAS064 | BN119: BAS065 | BO119: BAS066 | BP119: BAS067 | BQ119: BAS068 | BR119: BAS069 | BS119: BAS070 | BT119: BAS071 | BU119: BAS072 | BV119: BAS073 | BW119: BAS074 | BX119: BAS075 | BY119: BAS076 | BZ119: BAS077 | CA119: BAS078 | CB119: BAS079 | CC119: BAS080 | CD119: BAS081 | CE119: BAS082 | CF119: BAS083 | CG119: BAS084 | CH119: BAS085 | CI119: BAS086 | CJ119: BAS087 | CK119: BAS088 | CL119: BAS089 | CM119: BAS090 | CN119: BAS091 | CO119: BAS092 | CP119: BAS093 | CQ119: BAS094 | CR119: BAS095 | CS119: BAS096 | CT119: BAS097 | CU119: BAS098 | CV119: BAS099 | CW119: BAS100 | CX119: BAS101 | CY119: BAS102 | CZ119: BAS103 | DA119: BAS104 | DB119: BAS105 | DC119: BAS106 | DD119: BAS107 | DE119: BAS108 | DF119: BAS109 | DG119: BAS110 | DH119: BAS111 | DI119: BAS112 | DJ119: BAS113 | DK119: BAS114 | DL119: BAS115 | DM119: BAS116 | DN119: BAS117 | DO119: BAS118 | DP119: BAS119 | DQ119: BAS120 | DR119: BAS121 | DS119: BAS122 | DT119: BAS123 | DU119: BAS124 | DV119: BAS125 | DW119: BAS126 | DX119: BAS127 | DY119: BAS128 | DZ119: BAS129 | EA119: BAS130 | EB119: BAS131 | EC119: BAS132 | ED119: BAS133 | EE119: BAS134 | EF119: BAS135 | EG119: BAS136 | EH119: BAS137 | EI119: BAS138 | EJ119: BAS139 | EK119: BAS140 | EL119: BAS141 | EM119: BAS142 | EN119: BAS143 | EO119: BAS144 | EP119: BAS145 | EQ119: BAS146 | ER119: BAS147 | ES119: BAS148 | ET119: BAS149 | EU119: BAS150 | EV119: BAS151 | EW119: BAS152 | EX119: BAS153 | EY119: BAS154 | EZ119: BAS155 | FA119: BAS156 | FB119: BAS157 | FC119: BAS158 | FD119: BAS159 | FE119: BAS160 | FF119: BAS161 | FG119: BAS162 | FH119: BAS163 | FI119: BAS164 | FJ119: BAS165 | FK119: BAS166 | FL119: BAS167 | FM119: BAS168 | FN119: BAS169 | FO119: BAS170 | FP119: BAS171 | FQ119: BAS172 | FR119: BAS173 | FS119: BAS174 | FT119: BAS175 | FU119: BAS176 | FV119: BAS177 | FW119: BAS178 | FX119: BAS179 | FY119: BAS180 | FZ119: BAS181 | GA119: BAS182 | GB119: BAS183 | GC119: BAS184 | GD119: BAS185 | GE119: BAS186 | GF119: BAS187 | GG119: BAS188 | GH119: BAS189 | GI119: BAS190 | GJ119: BAS191 | GK119: BAS192 | GL119: BAS193 | GM119: BAS194 | GN119: BAS195 | GO119: BAS196 | GP119: BAS197 | GQ119: BAS198 | GR119: BAS199 | GS119: BAS200 | GT119: BAS201 | GU119: BAS202 | GV119: BAS203 | GW119: BAS204 | GX119: BAS205 | GY119: BAS206 | GZ119: BAS207 | HA119: BAS208 | HB119: BAS209 | HC119: BAS210 | HD119: BAS211 | HE119: BAS212 | HF119: BAS213 | HG119: BAS214 | HH119: BAS215 | HI119: BAS216 | HJ119: BAS217 | HK119: BAS218 | HL119: BAS219 | HM119: BAS220 | HN119: BAS221 | HO119: BAS222 | HP119: BAS223 | HQ119: BAS224 | HR119: BAS225 | HS119: BAS226 | HT119: BAS227 | HU119: BAS228 | HV119: BAS229 | HW119: BAS230
B120: =IF(B119=B98,"SI","NO") -> SI | C120: =IF(C119=C98,"SI","NO") -> SI | D120: SI | E120: SI | F120: SI | G120: SI | H120: SI | I120: SI | J120: SI | K120: SI | L120: SI | M120: SI | N120: SI | O120: SI | P120: SI | Q120: SI | R120: SI | S120: SI | T120: SI | U120: SI | V120: SI | W120: SI | X120: SI | Y120: SI | Z120: SI | AA120: SI | AB120: SI | AC120: SI | AD120: SI | AE120: SI | AF120: SI | AG120: SI | AH120: SI | AI120: SI | AJ120: SI | AK120: SI | AL120: SI | AM120: SI | AN120: SI | AO120: SI | AP120: SI | AQ120: SI | AR120: SI | AS120: SI | AT120: SI | AU120: SI | AV120: SI | AW120: SI | AX120: SI | AY120: SI | AZ120: SI | BA120: SI | BB120: SI | BC120: SI | BD120: SI | BE120: SI | BF120: SI | BG120: SI | BH120: SI | BI120: SI | BJ120: SI | BK120: SI | BL120: SI | BM120: SI | BN120: SI | BO120: =IF(BO119=BO98,"SI","NO") -> SI | BP120: SI | BQ120: SI | BR120: SI | BS120: SI | BT120: SI | BU120: SI | BV120: SI | BW120: SI | BX120: SI | BY120: SI | BZ120: SI | CA120: SI | CB120: SI | CC120: SI | CD120: SI | CE120: SI | CF120: SI | CG120: SI | CH120: SI | CI120: SI | CJ120: SI | CK120: SI | CL120: SI | CM120: SI | CN120: SI | CO120: SI | CP120: SI | CQ120: SI | CR120: SI | CS120: SI | CT120: SI | CU120: SI | CV120: SI | CW120: SI | CX120: SI | CY120: SI | CZ120: SI | DA120: SI | DB120: SI | DC120: SI | DD120: SI | DE120: SI | DF120: SI | DG120: SI | DH120: SI | DI120: SI | DJ120: SI | DK120: SI | DL120: SI | DM120: SI | DN120: SI | DO120: SI | DP120: SI | DQ120: SI | DR120: SI | DS120: SI | DT120: SI | DU120: SI | DV120: SI | DW120: SI | DX120: SI | DY120: SI | DZ120: SI | EA120: =IF(EA119=EA98,"SI","NO") -> SI | EB120: SI | EC120: SI | ED120: SI | EE120: SI | EF120: SI | EG120: SI | EH120: SI | EI120: SI | EJ120: SI | EK120: SI | EL120: SI | EM120: SI | EN120: SI | EO120: SI | EP120: SI | EQ120: SI | ER120: SI | ES120: SI | ET120: SI | EU120: SI | EV120: SI | EW120: SI | EX120: SI | EY120: SI | EZ120: SI | FA120: SI | FB120: SI | FC120: SI | FD120: SI | FE120: SI | FF120: SI | FG120: SI | FH120: SI | FI120: SI | FJ120: SI | FK120: SI | FL120: SI | FM120: SI | FN120: SI | FO120: SI | FP120: SI | FQ120: SI | FR120: SI | FS120: SI | FT120: SI | FU120: SI | FV120: SI | FW120: SI | FX120: SI | FY120: SI | FZ120: SI | GA120: SI | GB120: SI | GC120: SI | GD120: SI | GE120: SI | GF120: SI | GG120: SI | GH120: SI | GI120: SI | GJ120: SI | GK120: SI | GL120: SI | GM120: =IF(GM119=GM98,"SI","NO") -> SI | GN120: SI | GO120: SI | GP120: SI | GQ120: SI | GR120: SI | GS120: SI | GT120: SI | GU120: SI | GV120: SI | GW120: SI | GX120: SI | GY120: SI | GZ120: SI | HA120: SI | HB120: SI | HC120: SI | HD120: SI | HE120: SI | HF120: SI | HG120: SI | HH120: SI | HI120: SI | HJ120: SI | HK120: SI | HL120: SI | HM120: SI | HN120: SI | HO120: SI | HP120: SI | HQ120: SI | HR120: SI | HS120: SI | HT120: SI | HU120: SI | HV120: SI | HW120: SI

Sheet INFORME
A1: GERENCIA REGIONAL DE SALUD CUSCO
A2: DIRECCION DE ESTADISTICA, INFORMATICA Y TELECOMUNICACIONES
A4: Reporte de Actividades de la Etapa de Vida Adulto Mayor
B6: DIRESA: | C6: CUSCO | E6: RED DE SALUD | F6: =+TABLAS!O9 -> 03 - LA CONVENCION | J6: MES: | K6: =+TABLAS!N26 -> ENE - NOV
E8: MICRO RED | F8: =+TABLAS!O10 ->  | J8: AÑO: | K8: =+TABLAS!J16 -> 2024
E10: PROVINCIA | F10: =+TABLAS!O12 -> 
B12: EE.SS.: | C12: =+TABLAS!O11 ->  | E12: DISTRITO | F12: =+TABLAS!O13 -> 
N13: =+IMPORTARDATOSDINAMICOS(" BAS
D14: TOTAL | F14: De 60 a 69 años | H14: De 70 a 79 años | J14: De 80 años a más | N14: ";TABLAS!$A$97)
D15: Masc | E15: Fem | F15: Masc | G15: Fem | H15: Masc | I15: Fem | J15: Masc | K15: Fem
B16: VALORACIÓN CLÍNICA DEL ADULTO MAYOR (VACAM) TRAMA_BASE_AMAYOR_RPT_01_VACAM_CONSOLIDADO
A17: 1 | B17: Clasificación | C17: Persona Adulta Mayor Saludable | D17: =F17+H17+J17 -> 25 | E17: =G17+I17+K17 -> 28 | F17: =+GETPIVOTDATA(" BAS001",TABLAS!$A$59) -> 16 | G17: =+GETPIVOTDATA(" BAS002",TABLAS!$A$59) -> 23 | H17: =+GETPIVOTDATA(" BAS003",TABLAS!$A$59) -> 8 | I17: =+GETPIVOTDATA(" BAS004",TABLAS!$A$59) -> 2 | J17: =+GETPIVOTDATA(" BAS005",TABLAS!$A$59) -> 1 | K17: =+GETPIVOTDATA(" BAS006",TABLAS!$A$59) -> 3
A18: 2 | C18: Persona Adulta Mayor Enferma | D18: 0 | E18: 2 | F18: =+GETPIVOTDATA(" BAS007",TABLAS!$A$59) -> 0 | G18: =+GETPIVOTDATA(" BAS008",TABLAS!$A$59) -> 1 | H18: =+GETPIVOTDATA(" BAS009",TABLAS!$A$59) -> 0 | I18: =+GETPIVOTDATA(" BAS010",TABLAS!$A$59) -> 0 | J18: =+GETPIVOTDATA(" BAS011",TABLAS!$A$59) -> 0 | K18: =+GETPIVOTDATA(" BAS012",TABLAS!$A$59) -> 1
A19: 3 | C19: Persona Adulta Mayor Fragil | D19: 13 | E19: 22 | F19: =+GETPIVOTDATA(" BAS013",TABLAS!$A$59) -> 7 | G19: =+GETPIVOTDATA(" BAS014",TABLAS!$A$59) -> 9 | H19: =+GETPIVOTDATA(" BAS015",TABLAS!$A$59) -> 4 | I19: =+GETPIVOTDATA(" BAS016",TABLAS!$A$59) -> 9 | J19: =+GETPIVOTDATA(" BAS017",TABLAS!$A$59) -> 2 | K19: =+GETPIVOTDATA(" BAS018",TABLAS!$A$59) -> 4 | N19: =CONCATENATE($N$13,U19,$N$14) -> =+IMPORTARDATOSDINAMICOS(" BAS013";TABLAS!$A$97) | O19: =CONCATENATE($N$13,V19,$N$14) -> =+IMPORTARDATOSDINAMICOS(" BAS014";TABLAS!$A$97) | P19: =CONCATENATE($N$13,W19,$N$14) -> =+IMPORTARDATOSDINAMICOS(" BAS015";TABLAS!$A$97) | Q19: =CONCATENATE($N$13,X19,$N$14) -> =+IMPORTARDATOSDINAMICOS(" BAS016";TABLAS!$A$97) | R19: =CONCATENATE($N$13,Y19,$N$14) -> =+IMPORTARDATOSDINAMICOS(" BAS017";TABLAS!$A$97) | S19: =CONCATENATE($N$13,Z19,$N$14) -> =+IMPORTARDATOSDINAMICOS(" BAS018";TABLAS!$A$97) | U19: =IF(AB19<10,CONCATENATE("00",AB19),IF(AND(AB19<100,AB19>9),CONCATENATE("0",AB19),AB19)) -> 013 | V19: =IF(AC19<10,CONCATENATE("00",AC19),IF(AND(AC19<100,AC19>9),CONCATENATE("0",AC19),AC19)) -> 014 | W19: =IF(AD19<10,CONCATENATE("00",AD19),IF(AND(AD19<100,AD19>9),CONCATENATE("0",AD19),AD19)) -> 015 | X19: =IF(AE19<10,CONCATENATE("00",AE19),IF(AND(AE19<100,AE19>9),CONCATENATE("0",AE19),AE19)) -> 016 | Y19: =IF(AF19<10,CONCATENATE("00",AF19),IF(AND(AF19<100,AF19>9),CONCATENATE("0",AF19),AF19)) -> 017 | Z19: =IF(AG19<10,CONCATENATE("00",AG19),IF(AND(AG19<100,AG19>9),CONCATENATE("0",AG19),AG19)) -> 018 | AB19: =+AG64+1 -> 13 | AC19: =+AB19+1 -> 14 | AD19: 15 | AE19: 16 | AF19: 17 | AG19: 18
A20: 4 | C20: Persona Adulta Mayor Geriatrico complejo | D20: 0 | E20: 0 | F20: =+GETPIVOTDATA(" BAS019",TABLAS!$A$59) -> 0 | G20: =+GETPIVOTDATA(" BAS020",TABLAS!$A$59) -> 0 | H20: =+GETPIVOTDATA(" BAS021",TABLAS!$A$59) -> 0 | I20: =+GETPIVOTDATA(" BAS022",TABLAS!$A$59) -> 0 | J20: =+GETPIVOTDATA(" BAS023",TABLAS!$A$59) -> 0 | K20: =+GETPIVOTDATA(" BAS024",TABLAS!$A$59) -> 0 | N20: =+IMPORTARDATOSDINAMICOS(" BAS019";TABLAS!$A$97) | O20: =+IMPORTARDATOSDINAMICOS(" BAS020";TABLAS!$A$97) | P20: =+IMPORTARDATOSDINAMICOS(" BAS021";TABLAS!$A$97) | Q20: =+IMPORTARDATOSDINAMICOS(" BAS022";TABLAS!$A$97) | R20: =+IMPORTARDATOSDINAMICOS(" BAS023";TABLAS!$A$97) | S20: =+IMPORTARDATOSDINAMICOS(" BAS024";TABLAS!$A$97) | U20: 019 | V20: 020 | W20: 021 | X20: 022 | Y20: 023 | Z20: 024 | AB20: =+AG19+1 -> 19 | AC20: =+AB20+1 -> 20 | AD20: 21 | AE20: 22 | AF20: 23 | AG20: 24
B21: PLAN DE ATENCIÓN TRAMA_BASE_AMAYOR_RPT_02_PAI_CONSOLIDADO
A22: 5 | C22: Plan de Atencion Integral Elaborado | D22: =F22+H22+J22 -> 210 | E22: 227 | F22: =+GETPIVOTDATA(" BAS025",TABLAS!$A$59) -> 82 | G22: =+GETPIVOTDATA(" BAS026",TABLAS!$A$59) -> 105 | H22: =+GETPIVOTDATA(" BAS027",TABLAS!$A$59) -> 77 | I22: =+GETPIVOTDATA(" BAS028",TABLAS!$A$59) -> 73 | J22: =+GETPIVOTDATA(" BAS029",TABLAS!$A$59) -> 51 | K22: =+GETPIVOTDATA(" BAS030",TABLAS!$A$59) -> 49 | N22: =CONCATENATE($N$13,U22,$N$14) -> =+IMPORTARDATOSDINAMICOS(" BAS025";TABLAS!$A$97) | O22: =CONCATENATE($N$13,V22,$N$14) -> =+IMPORTARDATOSDINAMICOS(" BAS026";TABLAS!$A$97) | P22: =CONCATENATE($N$13,W22,$N$14) -> =+IMPORTARDATOSDINAMICOS(" BAS027";TABLAS!$A$97) | Q22: =CONCATENATE($N$13,X22,$N$14) -> =+IMPORTARDATOSDINAMICOS(" BAS028";TABLAS!$A$97) | R22: =CONCATENATE($N$13,Y22,$N$14) -> =+IMPORTARDATOSDINAMICOS(" BAS029";TABLAS!$A$97) | S22: =CONCATENATE($N$13,Z22,$N$14) -> =+IMPORTARDATOSDINAMICOS(" BAS030";TABLAS!$A$97) | U22: 025 | V22: =IF(AC22<10,CONCATENATE("00",AC22),IF(AND(AC22<100,AC22>9),CONCATENATE("0",AC22),AC22)) -> 026 | W22: =IF(AD22<10,CONCATENATE("00",AD22),IF(AND(AD22<100,AD22>9),CONCATENATE("0",AD22),AD22)) -> 027 | X22: =IF(AE22<10,CONCATENATE("00",AE22),IF(AND(AE22<100,AE22>9),CONCATENATE("0",AE22),AE22)) -> 028 | Y22: =IF(AF22<10,CONCATENATE("00",AF22),IF(AND(AF22<100,AF22>9),CONCATENATE("0",AF22),AF22)) -> 029 | Z22: =IF(AG22<10,CONCATENATE("00",AG22),IF(AND(AG22<100,AG22>9),CONCATENATE("0",AG22),AG22)) -> 030 | AB22: =+AG20+1 -> 25 | AC22: 26 | AD22: 27 | AE22: 28 | AF22: 29 | AG22: 30
A23: 6 | C23: Plan de Atencion Integral Ejecutado | D23: 29 | E23: 19 | F23: =+GETPIVOTDATA(" BAS031",TABLAS!$A$59) -> 14 | G23: =+GETPIVOTDATA(" BAS032",TABLAS!$A$59) -> 11 | H23: =+GETPIVOTDATA(" BAS033",TABLAS!$A$59) -> 11 | I23: =+GETPIVOTDATA(" BAS034",TABLAS!$A$59) -> 5 | J23: =+GETPIVOTDATA(" BAS035",TABLAS!$A$59) -> 4 | K23: =+GETPIVOTDATA(" BAS036",TABLAS!$A$59) -> 3 | N23: =+IMPORTARDATOSDINAMICOS(" BAS031";TABLAS!$A$97) | O23: =+IMPORTARDATOSDINAMICOS(" BAS032";TABLAS!$A$97) | P23: =+IMPORTARDATOSDINAMICOS(" BAS033";TABLAS!$A$97) | Q23: =+IMPORTARDATOSDINAMICOS(" BAS034";TABLAS!$A$97) | R23: =+IMPORTARDATOSDINAMICOS(" BAS035";TABLAS!$A$97) | S23: =+IMPORTARDATOSDINAMICOS(" BAS036";TABLAS!$A$97) | U23: 031 | V23: =IF(AC23<10,CONCATENATE("00",AC23),IF(AND(AC23<100,AC23>9),CONCATENATE("0",AC23),AC23)) -> 032 | W23: =IF(AD23<10,CONCATENATE("00",AD23),IF(AND(AD23<100,AD23>9),CONCATENATE("0",AD23),AD23)) -> 033 | X23: =IF(AE23<10,CONCATENATE("00",AE23),IF(AND(AE23<100,AE23>9),CONCATENATE("0",AE23),AE23)) -> 034 | Y23: =IF(AF23<10,CONCATENATE("00",AF23),IF(AND(AF23<100,AF23>9),CONCATENATE("0",AF23),AF23)) -> 035 | Z23: =IF(AG23<10,CONCATENATE("00",AG23),IF(AND(AG23<100,AG23>9),CONCATENATE("0",AG23),AG23)) -> 036 | AB23: =+AG22+1 -> 31 | AC23: 32 | AD23: 33 | AE23: 34 | AF23: 35 | AG23: 36
B24: ENTREVISTA DE TAMIZAJE EN SALUD MENTAL TRAMA_BASE_AMAYOR_RPT_03_TAMIZAJE_CONSOLIDADO
A25: 7 | B25: Tamizados | C25: Violencia Intrafamiliar | D25: =F25+H25+J25 -> 0 | E25: 0 | F25: =+GETPIVOTDATA(" BAS037",TABLAS!$A$59) -> 0 | G25: =+GETPIVOTDATA(" BAS038",TABLAS!$A$59) -> 0 | H25: =+GETPIVOTDATA(" BAS039",TABLAS!$A$59) -> 0 | I25: =+GETPIVOTDATA(" BAS040",TABLAS!$A$59) -> 0 | J25: =+GETPIVOTDATA(" BAS041",TABLAS!$A$59) -> 0 | K25: =+GETPIVOTDATA(" BAS042",TABLAS!$A$59) -> 0 | N25: =CONCATENATE($N$13,U25,$N$14) -> =+IMPORTARDATOSDINAMICOS(" BAS037";TABLAS!$A$97) | O25: =CONCATENATE($N$13,V25,$N$14) -> =+IMPORTARDATOSDINAMICOS(" BAS038";TABLAS!$A$97) | P25: =CONCATENATE($N$13,W25,$N$14) -> =+IMPORTARDATOSDINAMICOS(" BAS039";TABLAS!$A$97) | Q25: =CONCATENATE($N$13,X25,$N$14) -> =+IMPORTARDATOSDINAMICOS(" BAS040";TABLAS!$A$97) | R25: =CONCATENATE($N$13,Y25,$N$14) -> =+IMPORTARDATOSDINAMICOS(" BAS041";TABLAS!$A$97) | S25: =CONCATENATE($N$13,Z25,$N$14) -> =+IMPORTARDATOSDINAMICOS(" BAS042";TABLAS!$A$97) | U25: =IF(AB25<10,CONCATENATE("00",AB25),IF(AND(AB25<100,AB25>9),CONCATENATE("0",AB25),AB25)) -> 037 | V25: =IF(AC25<10,CONCATENATE("00",AC25),IF(AND(AC25<100,AC25>9),CONCATENATE("0",AC25),AC25)) -> 038 | W25: =IF(AD25<10,CONCATENATE("00",AD25),IF(AND(AD25<100,AD25>9),CONCATENATE("0",AD25),AD25)) -> 039 | X25: =IF(AE25<10,CONCATENATE("00",AE25),IF(AND(AE25<100,AE25>9),CONCATENATE("0",AE25),AE25)) -> 040 | Y25: =IF(AF25<10,CONCATENATE("00",AF25),IF(AND(AF25<100,AF25>9),CONCATENATE("0",AF25),AF25)) -> 041 | Z25: =IF(AG25<10,CONCATENATE("00",AG25),IF(AND(AG25<100,AG25>9),CONCATENATE("0",AG25),AG25)) -> 042 | AB25: =+AG23+1 -> 37 | AC25: 38 | AD25: 39 | AE25: 40 | AF25: 41 | AG25: 42
A26: 8 | C26: Transtornos Depresivos | D26: 2 | E26: 1 | F26: =+GETPIVOTDATA(" BAS043",TABLAS!$A$59) -> 1 | G26: =+GETPIVOTDATA(" BAS044",TABLAS!$A$59) -> 1 | H26: =+GETPIVOTDATA(" BAS045",TABLAS!$A$59) -> 0 | I26: =+GETPIVOTDATA(" BAS046",TABLAS!$A$59) -> 0 | J26: =+GETPIVOTDATA(" BAS047",TABLAS!$A$59) -> 1 | K26: =+GETPIVOTDATA(" BAS048",TABLAS!$A$59) -> 0 | N26: =CONCATENATE($N$13,U26,$N$14) -> =+IMPORTARDATOSDINAMICOS(" BAS043";TABLAS!$A$97) | O26: =CONCATENATE($N$13,V26,$N$14) -> =+IMPORTARDATOSDINAMICOS(" BAS044";TABLAS!$A$97) | P26: =CONCATENATE($N$13,W26,$N$14) -> =+IMPORTARDATOSDINAMICOS(" BAS045";TABLAS!$A$97) | Q26: =CONCATENATE($N$13,X26,$N$14) -> =+IMPORTARDATOSDINAMICOS(" BAS046";TABLAS!$A$97) | R26: =CONCATENATE($N$13,Y26,$N$14) -> =+IMPORTARDATOSDINAMICOS(" BAS047";TABLAS!$A$97) | S26: =CONCATENATE($N$13,Z26,$N$14) -> =+IMPORTARDATOSDINAMICOS(" BAS048";TABLAS!$A$97) | U26: =IF(AB26<10,CONCATENATE("00",AB26),IF(AND(AB26<100,AB26>9),CONCATENATE("0",AB26),AB26)) -> 043 | V26: =IF(AC26<10,CONCATENATE("00",AC26),IF(AND(AC26<100,AC26>9),CONCATENATE("0",AC26),AC26)) -> 044 | W26: =IF(AD26<10,CONCATENATE("00",AD26),IF(AND(AD26<100,AD26>9),CONCATENATE("0",AD26),AD26)) -> 045 | X26: =IF(AE26<10,CONCATENATE("00",AE26),IF(AND(AE26<100,AE26>9),CONCATENATE("0",AE26),AE26)) -> 046 | Y26: =IF(AF26<10,CONCATENATE("00",AF26),IF(AND(AF26<100,AF26>9),CONCATENATE("0",AF26),AF26)) -> 047 | Z26: =IF(AG26<10,CONCATENATE("00",AG26),IF(AND(AG26<100,AG26>9),CONCATENATE("0",AG26),AG26)) -> 048 | AB26: =+AG25+1 -> 43 | AC26: =+AB26+1 -> 44 | AD26: 45 | AE26: 46 | AF26: 47 | AG26: 48
A27: 9 | C27: Alcohol y drogas | D27: 0 | E27: 0 | F27: =+GETPIVOTDATA(" BAS049",TABLAS!$A$59) -> 0 | G27: =+GETPIVOTDATA(" BAS050",TABLAS!$A$59) -> 0 | H27: =+GETPIVOTDATA(" BAS051",TABLAS!$A$59) -> 0 | I27: =+GETPIVOTDATA(" BAS052",TABLAS!$A$59) -> 0 | J27: =+GETPIVOTDATA(" BAS053",TABLAS!$A$59) -> 0 | K27: =+GETPIVOTDATA(" BAS054",TABLAS!$A$59) -> 0 | N27: =+IMPORTARDATOSDINAMICOS(" BAS049";TABLAS!$A$97) | O27: =+IMPORTARDATOSDINAMICOS(" BAS050";TABLAS!$A$97) | P27: =+IMPORTARDATOSDINAMICOS(" BAS051";TABLAS!$A$97) | Q27: =+IMPORTARDATOSDINAMICOS(" BAS052";TABLAS!$A$97) | R27: =+IMPORTARDATOSDINAMICOS(" BAS053";TABLAS!$A$97) | S27: =+IMPORTARDATOSDINAMICOS(" BAS054";TABLAS!$A$97) | U27: 049 | V27: 050 | W27: 051 | X27: 052 | Y27: 053 | Z27: 054 | AB27: =+AG26+1 -> 49 | AC27: =+AB27+1 -> 50 | AD27: 51 | AE27: 52 | AF27: 53 | AG27: 54
A28: 10 | C28: Episodio Psicótico | D28: 63 | E28: 178 | F28: =+GETPIVOTDATA(" BAS055",TABLAS!$A$59) -> 36 | G28: =+GETPIVOTDATA(" BAS056",TABLAS!$A$59) -> 92 | H28: =+GETPIVOTDATA(" BAS057",TABLAS!$A$59) -> 21 | I28: =+GETPIVOTDATA(" BAS058",TABLAS!$A$59) -> 63 | J28: =+GETPIVOTDATA(" BAS059",TABLAS!$A$59) -> 6 | K28: =+GETPIVOTDATA(" BAS060",TABLAS!$A$59) -> 23 | N28: =+IMPORTARDATOSDINAMICOS(" BAS055";TABLAS!$A$97) | O28: =+IMPORTARDATOSDINAMICOS(" BAS056";TABLAS!$A$97) | P28: =+IMPORTARDATOSDINAMICOS(" BAS057";TABLAS!$A$97) | Q28: =+IMPORTARDATOSDINAMICOS(" BAS058";TABLAS!$A$97) | R28: =+IMPORTARDATOSDINAMICOS(" BAS059";TABLAS!$A$97) | S28: =+IMPORTARDATOSDINAMICOS(" BAS060";TABLAS!$A$97) | U28: 055 | V28: 056 | W28: 057 | X28: 058 | Y28: 059 | Z28: 060 | AB28: 55 | AC28: =+AB28+1 -> 56 | AD28: 57 | AE28: 58 | AF28: 59 | AG28: 60
A29: 11 | C29: Tamizaje en Víctimas de Violencia Política | D29: 0 | E29: 0 | F29: =+GETPIVOTDATA(" BAS061",TABLAS!$A$59) -> 0 | G29: =+GETPIVOTDATA(" BAS062",TABLAS!$A$59) -> 0 | H29: =+GETPIVOTDATA(" BAS063",TABLAS!$A$59) -> 0 | I29: =+GETPIVOTDATA(" BAS064",TABLAS!$A$59) -> 0 | J29: =+GETPIVOTDATA(" BAS065",TABLAS!$A$59) -> 0 | K29: =+GETPIVOTDATA(" BAS066",TABLAS!$A$59) -> 0 | N29: =+IMPORTARDATOSDINAMICOS(" BAS061";TABLAS!$A$97) | O29: =+IMPORTARDATOSDINAMICOS(" BAS062";TABLAS!$A$97) | P29: =+IMPORTARDATOSDINAMICOS(" BAS063";TABLAS!$A$97) | Q29: =+IMPORTARDATOSDINAMICOS(" BAS064";TABLAS!$A$97) | R29: =+IMPORTARDATOSDINAMICOS(" BAS065";TABLAS!$A$97) | S29: =+IMPORTARDATOSDINAMICOS(" BAS066";TABLAS!$A$97) | U29: 061 | V29: 062 | W29: 063 | X29: 064 | Y29: 065 | Z29: 066 | AB29: 61 | AC29: =+AB29+1 -> 62 | AD29: 63 | AE29: 64 | AF29: 65 | AG29: 66
A30: 12 | B30: Positivos | C30: Violencia Intrafamiliar | D30: 0 | E30: 0 | F30: =+GETPIVOTDATA(" BAS067",TABLAS!$A$59) -> 0 | G30: =+GETPIVOTDATA(" BAS068",TABLAS!$A$59) -> 0 | H30: =+GETPIVOTDATA(" BAS069",TABLAS!$A$59) -> 0 | I30: =+GETPIVOTDATA(" BAS070",TABLAS!$A$59) -> 0 | J30: =+GETPIVOTDATA(" BAS071",TABLAS!$A$59) -> 0 | K30: =+GETPIVOTDATA(" BAS072",TABLAS!$A$59) -> 0 | N30: =+IMPORTARDATOSDINAMICOS(" BAS067";TABLAS!$A$97) | O30: =+IMPORTARDATOSDINAMICOS(" BAS068";TABLAS!$A$97) | P30: =+IMPORTARDATOSDINAMICOS(" BAS069";TABLAS!$A$97) | Q30: =+IMPORTARDATOSDINAMICOS(" BAS070";TABLAS!$A$97) | R30: =+IMPORTARDATOSDINAMICOS(" BAS071";TABLAS!$A$97) | S30: =+IMPORTARDATOSDINAMICOS(" BAS072";TABLAS!$A$97) | U30: 067 | V30: 068 | W30: 069 | X30: 070 | Y30: 071 | Z30: 072 | AB30: 67 | AC30: =+AB30+1 -> 68 | AD30: 69 | AE30: 70 | AF30: 71 | AG30: 72
A31: 13 | C31: Transtornos Depresivos | D31: 0 | E31: 0 | F31: =+GETPIVOTDATA(" BAS073",TABLAS!$A$59) -> 0 | G31: =+GETPIVOTDATA(" BAS074",TABLAS!$A$59) -> 0 | H31: =+GETPIVOTDATA(" BAS075",TABLAS!$A$59) -> 0 | I31: =+GETPIVOTDATA(" BAS076",TABLAS!$A$59) -> 0 | J31: =+GETPIVOTDATA(" BAS077",TABLAS!$A$59) -> 0 | K31: =+GETPIVOTDATA(" BAS078",TABLAS!$A$59) -> 0 | N31: =+IMPORTARDATOSDINAMICOS(" BAS073";TABLAS!$A$97) | O31: =+IMPORTARDATOSDINAMICOS(" BAS074";TABLAS!$A$97) | P31: =+IMPORTARDATOSDINAMICOS(" BAS075";TABLAS!$A$97) | Q31: =+IMPORTARDATOSDINAMICOS(" BAS076";TABLAS!$A$97) | R31: =+IMPORTARDATOSDINAMICOS(" BAS077";TABLAS!$A$97) | S31: =+IMPORTARDATOSDINAMICOS(" BAS078";TABLAS!$A$97) | U31: 073 | V31: 074 | W31: 075 | X31: 076 | Y31: 077 | Z31: 078 | AB31: 73 | AC31: =+AB31+1 -> 74 | AD31: 75 | AE31: 76 | AF31: 77 | AG31: 78
C32: Alcohol y drogas | D32: 0 | E32: 0 | F32: =SUM(F33:F35) -> 0 | G32: =SUM(G33:G35) -> 0 | H32: 0 | I32: 0 | J32: 0 | K32: 0
A33: 14 | C33: - Problemas Relacionados con el Uso de Tabaco | D33: 0 | E33: 0 | F33: =+GETPIVOTDATA(" BAS085",TABLAS!$A$59) -> 0 | G33: =+GETPIVOTDATA(" BAS086",TABLAS!$A$59) -> 0 | H33: =+GETPIVOTDATA(" BAS087",TABLAS!$A$59) -> 0 | I33: =+GETPIVOTDATA(" BAS088",TABLAS!$A$59) -> 0 | J33: =+GETPIVOTDATA(" BAS089",TABLAS!$A$59) -> 0 | K33: =+GETPIVOTDATA(" BAS090",TABLAS!$A$59) -> 0 | N33: =+IMPORTARDATOSDINAMICOS(" BAS079";TABLAS!$A$97) | O33: =+IMPORTARDATOSDINAMICOS(" BAS080";TABLAS!$A$97) | P33: =+IMPORTARDATOSDINAMICOS(" BAS081";TABLAS!$A$97) | Q33: =+IMPORTARDATOSDINAMICOS(" BAS082";TABLAS!$A$97) | R33: =+IMPORTARDATOSDINAMICOS(" BAS083";TABLAS!$A$97) | S33: =+IMPORTARDATOSDINAMICOS(" BAS084";TABLAS!$A$97) | U33: 079 | V33: 080 | W33: 081 | X33: 082 | Y33: 083 | Z33: 084 | AB33: =+AG31+1 -> 79 | AC33: =+AB33+1 -> 80 | AD33: 81 | AE33: 82 | AF33: 83 | AG33: 84
A34: 15 | C34: - Problemas Sociales Relacionados con el Uso de Alcohol | D34: 0 | E34: 0 | F34: =+GETPIVOTDATA(" BAS091",TABLAS!$A$59) -> 0 | G34: =+GETPIVOTDATA(" BAS092",TABLAS!$A$59) -> 0 | H34: =+GETPIVOTDATA(" BAS093",TABLAS!$A$59) -> 0 | I34: =+GETPIVOTDATA(" BAS094",TABLAS!$A$59) -> 0 | J34: =+GETPIVOTDATA(" BAS095",TABLAS!$A$59) -> 0 | K34: =+GETPIVOTDATA(" BAS096",TABLAS!$A$59) -> 0 | N34: =+IMPORTARDATOSDINAMICOS(" BAS085";TABLAS!$A$97) | O34: =+IMPORTARDATOSDINAMICOS(" BAS086";TABLAS!$A$97) | P34: =+IMPORTARDATOSDINAMICOS(" BAS087";TABLAS!$A$97) | Q34: =+IMPORTARDATOSDINAMICOS(" BAS088";TABLAS!$A$97) | R34: =+IMPORTARDATOSDINAMICOS(" BAS089";TABLAS!$A$97) | S34: =+IMPORTARDATOSDINAMICOS(" BAS090";TABLAS!$A$97) | U34: 085 | V34: 086 | W34: 087 | X34: 088 | Y34: 089 | Z34: 090 | AB34: 85 | AC34: =+AB34+1 -> 86 | AD34: 87 | AE34: 88 | AF34: 89 | AG34: 90
A35: 16 | C35: - Problemas Sociales Relacionados con el Uso de drogas | D35: 0 | E35: 0 | F35: =+GETPIVOTDATA(" BAS097",TABLAS!$A$59) -> 0 | G35: =+GETPIVOTDATA(" BAS098",TABLAS!$A$59) -> 0 | H35: =+GETPIVOTDATA(" BAS099",TABLAS!$A$59) -> 0 | I35: =+GETPIVOTDATA(" BAS100",TABLAS!$A$59) -> 0 | J35: =+GETPIVOTDATA(" BAS101",TABLAS!$A$59) -> 0 | K35: =+GETPIVOTDATA(" BAS102",TABLAS!$A$59) -> 0 | N35: =+IMPORTARDATOSDINAMICOS(" BAS091";TABLAS!$A$97) | O35: =+IMPORTARDATOSDINAMICOS(" BAS092";TABLAS!$A$97) | P35: =+IMPORTARDATOSDINAMICOS(" BAS093";TABLAS!$A$97) | Q35: =+IMPORTARDATOSDINAMICOS(" BAS094";TABLAS!$A$97) | R35: =+IMPORTARDATOSDINAMICOS(" BAS095";TABLAS!$A$97) | S35: =+IMPORTARDATOSDINAMICOS(" BAS096";TABLAS!$A$97) | U35: 091 | V35: 092 | W35: 093 | X35: 094 | Y35: 095 | Z35: 096 | AB35: 91 | AC35: =+AB35+1 -> 92 | AD35: 93 | AE35: 94 | AF35: 95 | AG35: 96
A36: 17 | C36: Episodio Psicótico | D36: 0 | E36: 0 | F36: =+GETPIVOTDATA(" BAS103",TABLAS!$A$59) -> 0 | G36: =+GETPIVOTDATA(" BAS104",TABLAS!$A$59) -> 0 | H36: =+GETPIVOTDATA(" BAS105",TABLAS!$A$59) -> 0 | I36: =+GETPIVOTDATA(" BAS106",TABLAS!$A$59) -> 0 | J36: =+GETPIVOTDATA(" BAS107",TABLAS!$A$59) -> 0 | K36: =+GETPIVOTDATA(" BAS108",TABLAS!$A$59) -> 0 | N36: =+IMPORTARDATOSDINAMICOS(" BAS097";TABLAS!$A$97) | O36: =+IMPORTARDATOSDINAMICOS(" BAS098";TABLAS!$A$97) | P36: =+IMPORTARDATOSDINAMICOS(" BAS099";TABLAS!$A$97) | Q36: =+IMPORTARDATOSDINAMICOS(" BAS100";TABLAS!$A$97) | R36: =+IMPORTARDATOSDINAMICOS(" BAS101";TABLAS!$A$97) | S36: =+IMPORTARDATOSDINAMICOS(" BAS102";TABLAS!$A$97) | U36: 097 | V36: 098 | W36: 099 | X36: 100 | Y36: 101 | Z36: 102 | AB36: 97 | AC36: =+AB36+1 -> 98 | AD36: 99 | AE36: 100 | AF36: 101 | AG36: 102
A37: 18 | C37: Tamizaje Positivo en Víctimas de Violencia Política | D37: 97 | E37: 92 | F37: =+GETPIVOTDATA(" BAS109",TABLAS!$A$59) -> 35 | G37: =+GETPIVOTDATA(" BAS110",TABLAS!$A$59) -> 24 | H37: =+GETPIVOTDATA(" BAS111",TABLAS!$A$59) -> 39 | I37: =+GETPIVOTDATA(" BAS112",TABLAS!$A$59) -> 35 | J37: =+GETPIVOTDATA(" BAS113",TABLAS!$A$59) -> 23 | K37: =+GETPIVOTDATA(" BAS114",TABLAS!$A$59) -> 33 | N37: =+IMPORTARDATOSDINAMICOS(" BAS103";TABLAS!$A$97) | O37: =+IMPORTARDATOSDINAMICOS(" BAS104";TABLAS!$A$97) | P37: =+IMPORTARDATOSDINAMICOS(" BAS105";TABLAS!$A$97) | Q37: =+IMPORTARDATOSDINAMICOS(" BAS106";TABLAS!$A$97) | R37: =+IMPORTARDATOSDINAMICOS(" BAS107";TABLAS!$A$97) | S37: =+IMPORTARDATOSDINAMICOS(" BAS108";TABLAS!$A$97) | U37: 103 | V37: 104 | W37: 105 | X37: 106 | Y37: 107 | Z37: 108 | AB37: 103 | AC37: =+AB37+1 -> 104 | AD37: 105 | AE37: 106 | AF37: 107 | AG37: 108
B38: CLASIFICACIÓN DEL ESTADO NUTRICIONAL DEL ADULTO MAYOR TRAMA_BASE_AMAYOR_RPT_04_NUTRICIONAL_CONSOLIDADO
C39: Índice de Masa Corporal
A40: 19 | B40: IMC | C40: Delgadez | D40: =F40+H40+J40 -> 97 | E40: 92 | F40: =+GETPIVOTDATA(" BAS109",TABLAS!$A$59) -> 35 | G40: =+GETPIVOTDATA(" BAS110",TABLAS!$A$59) -> 24 | H40: =+GETPIVOTDATA(" BAS111",TABLAS!$A$59) -> 39 | I40: =+GETPIVOTDATA(" BAS112",TABLAS!$A$59) -> 35 | J40: =+GETPIVOTDATA(" BAS113",TABLAS!$A$59) -> 23 | K40: =+GETPIVOTDATA(" BAS114",TABLAS!$A$59) -> 33 | N40: =CONCATENATE($N$13,U40,$N$14) -> =+IMPORTARDATOSDINAMICOS(" BAS109";TABLAS!$A$97) | O40: =+IMPORTARDATOSDINAMICOS(" BAS110";TABLAS!$A$97) | P40: =+IMPORTARDATOSDINAMICOS(" BAS111";TABLAS!$A$97) | Q40: =+IMPORTARDATOSDINAMICOS(" BAS112";TABLAS!$A$97) | R40: =+IMPORTARDATOSDINAMICOS(" BAS113";TABLAS!$A$97) | S40: =+IMPORTARDATOSDINAMICOS(" BAS114";TABLAS!$A$97) | U40: =IF(AB40<10,CONCATENATE("00",AB40),IF(AND(AB40<100,AB40>9),CONCATENATE("0",AB40),AB40)) -> 109 | V40: 110 | W40: 111 | X40: 112 | Y40: 113 | Z40: 114 | AB40: =+AG37+1 -> 109 | AC40: =+AB40+1 -> 110 | AD40: 111 | AE40: 112 | AF40: 113 | AG40: 114
A41: 20 | C41: Normal | D41: 218 | E41: 188 | F41: =+GETPIVOTDATA(" BAS115",TABLAS!$A$59) -> 118 | G41: =+GETPIVOTDATA(" BAS116",TABLAS!$A$59) -> 88 | H41: =+GETPIVOTDATA(" BAS117",TABLAS!$A$59) -> 65 | I41: =+GETPIVOTDATA(" BAS118",TABLAS!$A$59) -> 66 | J41: =+GETPIVOTDATA(" BAS119",TABLAS!$A$59) -> 35 | K41: =+GETPIVOTDATA(" BAS120",TABLAS!$A$59) -> 34 | N41: =CONCATENATE($N$13,U41,$N$14) -> =+IMPORTARDATOSDINAMICOS(" BAS115";TABLAS!$A$97) | O41: =CONCATENATE($N$13,V41,$N$14) -> =+IMPORTARDATOSDINAMICOS(" BAS116";TABLAS!$A$97) | P41: =CONCATENATE($N$13,W41,$N$14) -> =+IMPORTARDATOSDINAMICOS(" BAS117";TABLAS!$A$97) | Q41: =CONCATENATE($N$13,X41,$N$14) -> =+IMPORTARDATOSDINAMICOS(" BAS118";TABLAS!$A$97) | R41: =CONCATENATE($N$13,Y41,$N$14) -> =+IMPORTARDATOSDINAMICOS(" BAS119";TABLAS!$A$97) | S41: =CONCATENATE($N$13,Z41,$N$14) -> =+IMPORTARDATOSDINAMICOS(" BAS120";TABLAS!$A$97) | U41: =IF(AB41<10,CONCATENATE("00",AB41),IF(AND(AB41<100,AB41>9),CONCATENATE("0",AB41),AB41)) -> 115 | V41: =IF(AC41<10,CONCATENATE("00",AC41),IF(AND(AC41<100,AC41>9),CONCATENATE("0",AC41),AC41)) -> 116 | W41: =IF(AD41<10,CONCATENATE("00",AD41),IF(AND(AD41<100,AD41>9),CONCATENATE("0",AD41),AD41)) -> 117 | X41: =IF(AE41<10,CONCATENATE("00",AE41),IF(AND(AE41<100,AE41>9),CONCATENATE("0",AE41),AE41)) -> 118 | Y41: =IF(AF41<10,CONCATENATE("00",AF41),IF(AND(AF41<100,AF41>9),CONCATENATE("0",AF41),AF41)) -> 119 | Z41: =IF(AG41<10,CONCATENATE("00",AG41),IF(AND(AG41<100,AG41>9),CONCATENATE("0",AG41),AG41)) -> 120 | AB41: =+AG40+1 -> 115 | AC41: =+AB41+1 -> 116 | AD41: 117 | AE41: 118 | AF41: 119 | AG41: 120
A42: 21 | C42: Sobrepeso | D42: 53 | E42: 88 | F42: =+GETPIVOTDATA(" BAS121",TABLAS!$A$59) -> 24 | G42: =+GETPIVOTDATA(" BAS122",TABLAS!$A$59) -> 49 | H42: =+GETPIVOTDATA(" BAS123",TABLAS!$A$59) -> 21 | I42: =+GETPIVOTDATA(" BAS124",TABLAS!$A$59) -> 32 | J42: =+GETPIVOTDATA(" BAS125",TABLAS!$A$59) -> 8 | K42: =+GETPIVOTDATA(" BAS126",TABLAS!$A$59) -> 7 | N42: =+IMPORTARDATOSDINAMICOS(" BAS121";TABLAS!$A$97) | O42: =+IMPORTARDATOSDINAMICOS(" BAS122";TABLAS!$A$97) | P42: =+IMPORTARDATOSDINAMICOS(" BAS123";TABLAS!$A$97) | Q42: =+IMPORTARDATOSDINAMICOS(" BAS124";TABLAS!$A$97) | R42: =+IMPORTARDATOSDINAMICOS(" BAS125";TABLAS!$A$97) | S42: =+IMPORTARDATOSDINAMICOS(" BAS126";TABLAS!$A$97) | U42: 121 | V42: 122 | W42: 123 | X42: 124 | Y42: 125 | Z42: 126 | AB42: =+AG41+1 -> 121 | AC42: =+AB42+1 -> 122 | AD42: 123 | AE42: 124 | AF42: 125 | AG42: 126
A43: 22 | C43: Obesidad | D43: 36 | E43: 96 | F43: =+GETPIVOTDATA(" BAS127",TABLAS!$A$59) -> 22 | G43: =+GETPIVOTDATA(" BAS128",TABLAS!$A$59) -> 48 | H43: =+GETPIVOTDATA(" BAS129",TABLAS!$A$59) -> 6 | I43: =+GETPIVOTDATA(" BAS130",TABLAS!$A$59) -> 34 | J43: =+GETPIVOTDATA(" BAS131",TABLAS!$A$59) -> 8 | K43: =+GETPIVOTDATA(" BAS132",TABLAS!$A$59) -> 14 | N43: =+IMPORTARDATOSDINAMICOS(" BAS127";TABLAS!$A$97) | O43: =+IMPORTARDATOSDINAMICOS(" BAS128";TABLAS!$A$97) | P43: =+IMPORTARDATOSDINAMICOS(" BAS129";TABLAS!$A$97) | Q43: =+IMPORTARDATOSDINAMICOS(" BAS130";TABLAS!$A$97) | R43: =+IMPORTARDATOSDINAMICOS(" BAS131";TABLAS!$A$97) | S43: =+IMPORTARDATOSDINAMICOS(" BAS132";TABLAS!$A$97) | U43: 127 | V43: 128 | W43: 129 | X43: 130 | Y43: 131 | Z43: 132 | AB43: =+AG42+1 -> 127 | AC43: =+AB43+1 -> 128 | AD43: 129 | AE43: 130 | AF43: 131 | AG43: 132
C44: Evaluación del Perímetro Abdominal
A45: 23 | B45: PAB | C45: Riesgo Bajo | D45: =F45+H45+J45 -> 138 | E45: 101 | F45: =+GETPIVOTDATA(" BAS133",TABLAS!$A$59) -> 51 | G45: =+GETPIVOTDATA(" BAS134",TABLAS!$A$59) -> 40 | H45: =+GETPIVOTDATA(" BAS135",TABLAS!$A$59) -> 53 | I45: =+GETPIVOTDATA(" BAS136",TABLAS!$A$59) -> 39 | J45: =+GETPIVOTDATA(" BAS137",TABLAS!$A$59) -> 34 | K45: =+GETPIVOTDATA(" BAS138",TABLAS!$A$59) -> 22 | N45: =CONCATENATE($N$13,U45,$N$14) -> =+IMPORTARDATOSDINAMICOS(" BAS133";TABLAS!$A$97) | O45: =+IMPORTARDATOSDINAMICOS(" BAS134";TABLAS!$A$97) | P45: =+IMPORTARDATOSDINAMICOS(" BAS135";TABLAS!$A$97) | Q45: =+IMPORTARDATOSDINAMICOS(" BAS136";TABLAS!$A$97) | R45: =+IMPORTARDATOSDINAMICOS(" BAS137";TABLAS!$A$97) | S45: =+IMPORTARDATOSDINAMICOS(" BAS138";TABLAS!$A$97) | U45: =IF(AB45<10,CONCATENATE("00",AB45),IF(AND(AB45<100,AB45>9),CONCATENATE("0",AB45),AB45)) -> 133 | V45: 134 | W45: 135 | X45: 136 | Y45: 137 | Z45: 138 | AB45: =+AG43+1 -> 133 | AC45: =+AB45+1 -> 134 | AD45: 135 | AE45: 136 | AF45: 137 | AG45: 138
A46: 24 | C46: Riesgo Alto | D46: 70 | E46: 57 | F46: =+GETPIVOTDATA(" BAS139",TABLAS!$A$59) -> 39 | G46: =+GETPIVOTDATA(" BAS140",TABLAS!$A$59) -> 24 | H46: =+GETPIVOTDATA(" BAS141",TABLAS!$A$59) -> 18 | I46: =+GETPIVOTDATA(" BAS142",TABLAS!$A$59) -> 24 | J46: =+GETPIVOTDATA(" BAS143",TABLAS!$A$59) -> 13 | K46: =+GETPIVOTDATA(" BAS144",TABLAS!$A$59) -> 9 | N46: =CONCATENATE($N$13,U46,$N$14) -> =+IMPORTARDATOSDINAMICOS(" BAS139";TABLAS!$A$97) | O46: =CONCATENATE($N$13,V46,$N$14) -> =+IMPORTARDATOSDINAMICOS(" BAS140";TABLAS!$A$97) | P46: =CONCATENATE($N$13,W46,$N$14) -> =+IMPORTARDATOSDINAMICOS(" BAS141";TABLAS!$A$97) | Q46: =CONCATENATE($N$13,X46,$N$14) -> =+IMPORTARDATOSDINAMICOS(" BAS142";TABLAS!$A$97) | R46: =CONCATENATE($N$13,Y46,$N$14) -> =+IMPORTARDATOSDINAMICOS(" BAS143";TABLAS!$A$97) | S46: =CONCATENATE($N$13,Z46,$N$14) -> =+IMPORTARDATOSDINAMICOS(" BAS144";TABLAS!$A$97) | U46: =IF(AB46<10,CONCATENATE("00",AB46),IF(AND(AB46<100,AB46>9),CONCATENATE("0",AB46),AB46)) -> 139 | V46: =IF(AC46<10,CONCATENATE("00",AC46),IF(AND(AC46<100,AC46>9),CONCATENATE("0",AC46),AC46)) -> 140 | W46: =IF(AD46<10,CONCATENATE("00",AD46),IF(AND(AD46<100,AD46>9),CONCATENATE("0",AD46),AD46)) -> 141 | X46: =IF(AE46<10,CONCATENATE("00",AE46),IF(AND(AE46<100,AE46>9),CONCATENATE("0",AE46),AE46)) -> 142 | Y46: =IF(AF46<10,CONCATENATE("00",AF46),IF(AND(AF46<100,AF46>9),CONCATENATE("0",AF46),AF46)) -> 143 | Z46: =IF(AG46<10,CONCATENATE("00",AG46),IF(AND(AG46<100,AG46>9),CONCATENATE("0",AG46),AG46)) -> 144 | AB46: =+AG45+1 -> 139 | AC46: =+AB46+1 -> 140 | AD46: 141 | AE46: 142 | AF46: 143 | AG46: 144
A47: 25 | C47: Riesgo Muy Alto | D47: 63 | E47: 178 | F47: =+GETPIVOTDATA(" BAS145",TABLAS!$A$59) -> 36 | G47: =+GETPIVOTDATA(" BAS146",TABLAS!$A$59) -> 92 | H47: =+GETPIVOTDATA(" BAS147",TABLAS!$A$59) -> 21 | I47: =+GETPIVOTDATA(" BAS148",TABLAS!$A$59) -> 63 | J47: =+GETPIVOTDATA(" BAS149",TABLAS!$A$59) -> 6 | K47: =+GETPIVOTDATA(" BAS150",TABLAS!$A$59) -> 23 | N47: =+IMPORTARDATOSDINAMICOS(" BAS145";TABLAS!$A$97) | O47: =+IMPORTARDATOSDINAMICOS(" BAS146";TABLAS!$A$97) | P47: =+IMPORTARDATOSDINAMICOS(" BAS147";TABLAS!$A$97) | Q47: =+IMPORTARDATOSDINAMICOS(" BAS148";TABLAS!$A$97) | R47: =+IMPORTARDATOSDINAMICOS(" BAS149";TABLAS!$A$97) | S47: =+IMPORTARDATOSDINAMICOS(" BAS150";TABLAS!$A$97) | U47: 145 | V47: 146 | W47: 147 | X47: 148 | Y47: 149 | Z47: 150 | AB47: =+AG46+1 -> 145 | AC47: =+AB47+1 -> 146 | AD47: 147 | AE47: 148 | AF47: 149 | AG47: 150
C48: Mini Valoración Nutricional
A49: 26 | B49: MVN | C49: Bien Nutridos | D49: =F49+H49+J49 -> 1 | E49: 1 | F49: =+GETPIVOTDATA(" BAS151",TABLAS!$A$59) -> 1 | G49: =+GETPIVOTDATA(" BAS152",TABLAS!$A$59) -> 0 | H49: =+GETPIVOTDATA(" BAS153",TABLAS!$A$59) -> 0 | I49: =+GETPIVOTDATA(" BAS154",TABLAS!$A$59) -> 1 | J49: =+GETPIVOTDATA(" BAS155",TABLAS!$A$59) -> 0 | K49: =+GETPIVOTDATA(" BAS156",TABLAS!$A$59) -> 0 | N49: =CONCATENATE($N$13,U49,$N$14) -> =+IMPORTARDATOSDINAMICOS(" BAS151";TABLAS!$A$97) | O49: =CONCATENATE($N$13,V49,$N$14) -> =+IMPORTARDATOSDINAMICOS(" BAS152";TABLAS!$A$97) | P49: =CONCATENATE($N$13,W49,$N$14) -> =+IMPORTARDATOSDINAMICOS(" BAS153";TABLAS!$A$97) | Q49: =CONCATENATE($N$13,X49,$N$14) -> =+IMPORTARDATOSDINAMICOS(" BAS154";TABLAS!$A$97) | R49: =CONCATENATE($N$13,Y49,$N$14) -> =+IMPORTARDATOSDINAMICOS(" BAS155";TABLAS!$A$97) | S49: =CONCATENATE($N$13,Z49,$N$14) -> =+IMPORTARDATOSDINAMICOS(" BAS156";TABLAS!$A$97) | U49: =IF(AB49<10,CONCATENATE("00",AB49),IF(AND(AB49<100,AB49>9),CONCATENATE("0",AB49),AB49)) -> 151 | V49: =IF(AC49<10,CONCATENATE("00",AC49),IF(AND(AC49<100,AC49>9),CONCATENATE("0",AC49),AC49)) -> 152 | W49: =IF(AD49<10,CONCATENATE("00",AD49),IF(AND(AD49<100,AD49>9),CONCATENATE("0",AD49),AD49)) -> 153 | X49: =IF(AE49<10,CONCATENATE("00",AE49),IF(AND(AE49<100,AE49>9),CONCATENATE("0",AE49),AE49)) -> 154 | Y49: =IF(AF49<10,CONCATENATE("00",AF49),IF(AND(AF49<100,AF49>9),CONCATENATE("0",AF49),AF49)) -> 155 | Z49: =IF(AG49<10,CONCATENATE("00",AG49),IF(AND(AG49<100,AG49>9),CONCATENATE("0",AG49),AG49)) -> 156 | AB49: =+AG47+1 -> 151 | AC49: =+AB49+1 -> 152 | AD49: =+AC49+1 -> 153 | AE49: =+AD49+1 -> 154 | AF49: =+AE49+1 -> 155 | AG49: =+AF49+1 -> 156
A50: 27 | C50: Riesgo de Desnutrición | D50: 0 | E50: 0 | F50: =+GETPIVOTDATA(" BAS157",TABLAS!$A$59) -> 0 | G50: =+GETPIVOTDATA(" BAS158",TABLAS!$A$59) -> 0 | H50: =+GETPIVOTDATA(" BAS159",TABLAS!$A$59) -> 0 | I50: =+GETPIVOTDATA(" BAS160",TABLAS!$A$59) -> 0 | J50: =+GETPIVOTDATA(" BAS161",TABLAS!$A$59) -> 0 | K50: =+GETPIVOTDATA(" BAS162",TABLAS!$A$59) -> 0 | N50: =CONCATENATE($N$13,U50,$N$14) -> =+IMPORTARDATOSDINAMICOS(" BAS157";TABLAS!$A$97) | O50: =CONCATENATE($N$13,V50,$N$14) -> =+IMPORTARDATOSDINAMICOS(" BAS158";TABLAS!$A$97) | P50: =CONCATENATE($N$13,W50,$N$14) -> =+IMPORTARDATOSDINAMICOS(" BAS159";TABLAS!$A$97) | Q50: =CONCATENATE($N$13,X50,$N$14) -> =+IMPORTARDATOSDINAMICOS(" BAS160";TABLAS!$A$97) | R50: =CONCATENATE($N$13,Y50,$N$14) -> =+IMPORTARDATOSDINAMICOS(" BAS161";TABLAS!$A$97) | S50: =CONCATENATE($N$13,Z50,$N$14) -> =+IMPORTARDATOSDINAMICOS(" BAS162";TABLAS!$A$97) | U50: =IF(AB50<10,CONCATENATE("00",AB50),IF(AND(AB50<100,AB50>9),CONCATENATE("0",AB50),AB50)) -> 157 | V50: =IF(AC50<10,CONCATENATE("00",AC50),IF(AND(AC50<100,AC50>9),CONCATENATE("0",AC50),AC50)) -> 158 | W50: =IF(AD50<10,CONCATENATE("00",AD50),IF(AND(AD50<100,AD50>9),CONCATENATE("0",AD50),AD50)) -> 159 | X50: =IF(AE50<10,CONCATENATE("00",AE50),IF(AND(AE50<100,AE50>9),CONCATENATE("0",AE50),AE50)) -> 160 | Y50: =IF(AF50<10,CONCATENATE("00",AF50),IF(AND(AF50<100,AF50>9),CONCATENATE("0",AF50),AF50)) -> 161 | Z50: =IF(AG50<10,CONCATENATE("00",AG50),IF(AND(AG50<100,AG50>9),CONCATENATE("0",AG50),AG50)) -> 162 | AB50: =+AG49+1 -> 157 | AC50: =+AB50+1 -> 158 | AD50: 159 | AE50: 160 | AF50: 161 | AG50: 162
A51: 28 | C51: Desnutrido | D51: 0 | E51: 0 | F51: =+GETPIVOTDATA(" BAS163",TABLAS!$A$59) -> 0 | G51: =+GETPIVOTDATA(" BAS164",TABLAS!$A$59) -> 0 | H51: =+GETPIVOTDATA(" BAS165",TABLAS!$A$59) -> 0 | I51: =+GETPIVOTDATA(" BAS166",TABLAS!$A$59) -> 0 | J51: =+GETPIVOTDATA(" BAS167",TABLAS!$A$59) -> 0 | K51: =+GETPIVOTDATA(" BAS168",TABLAS!$A$59) -> 0 | N51: =+IMPORTARDATOSDINAMICOS(" BAS163";TABLAS!$A$97) | O51: =+IMPORTARDATOSDINAMICOS(" BAS164";TABLAS!$A$97) | P51: =+IMPORTARDATOSDINAMICOS(" BAS165";TABLAS!$A$97) | Q51: =+IMPORTARDATOSDINAMICOS(" BAS166";TABLAS!$A$97) | R51: =+IMPORTARDATOSDINAMICOS(" BAS167";TABLAS!$A$97) | S51: =+IMPORTARDATOSDINAMICOS(" BAS168";TABLAS!$A$97) | U51: 163 | V51: 164 | W51: 165 | X51: 166 | Y51: 167 | Z51: 168 | AB51: =+AG50+1 -> 163 | AC51: =+AB51+1 -> 164 | AD51: 165 | AE51: 166 | AF51: 167 | AG51: 168
C52: Atención en Nutrición
A53: 29 | C53: 1º Atención | D53: =F53+H53+J53 -> 283 | E53: 356 | F53: =+GETPIVOTDATA(" BAS169",TABLAS!$A$59) -> 145 | G53: =+GETPIVOTDATA(" BAS170",TABLAS!$A$59) -> 167 | H53: =+GETPIVOTDATA(" BAS171",TABLAS!$A$59) -> 85 | I53: =+GETPIVOTDATA(" BAS172",TABLAS!$A$59) -> 131 | J53: =+GETPIVOTDATA(" BAS173",TABLAS!$A$59) -> 53 | K53: =+GETPIVOTDATA(" BAS174",TABLAS!$A$59) -> 58 | N53: =CONCATENATE($N$13,U53,$N$14) -> =+IMPORTARDATOSDINAMICOS(" BAS169";TABLAS!$A$97) | O53: =+IMPORTARDATOSDINAMICOS(" BAS170";TABLAS!$A$97) | P53: =+IMPORTARDATOSDINAMICOS(" BAS171";TABLAS!$A$97) | Q53: =+IMPORTARDATOSDINAMICOS(" BAS172";TABLAS!$A$97) | R53: =+IMPORTARDATOSDINAMICOS(" BAS173";TABLAS!$A$97) | S53: =+IMPORTARDATOSDINAMICOS(" BAS174";TABLAS!$A$97) | U53: =IF(AB53<10,CONCATENATE("00",AB53),IF(AND(AB53<100,AB53>9),CONCATENATE("0",AB53),AB53)) -> 169 | V53: 170 | W53: 171 | X53: 172 | Y53: 173 | Z53: 174 | AB53: =+AG51+1 -> 169 | AC53: =+AB53+1 -> 170 | AD53: 171 | AE53: 172 | AF53: 173 | AG53: 174
A54: 30 | C54: 2º Atención | D54: 35 | E54: 55 | F54: =+GETPIVOTDATA(" BAS175",TABLAS!$A$59) -> 11 | G54: =+GETPIVOTDATA(" BAS176",TABLAS!$A$59) -> 25 | H54: =+GETPIVOTDATA(" BAS177",TABLAS!$A$59) -> 15 | I54: =+GETPIVOTDATA(" BAS178",TABLAS!$A$59) -> 20 | J54: =+GETPIVOTDATA(" BAS179",TABLAS!$A$59) -> 9 | K54: =+GETPIVOTDATA(" BAS180",TABLAS!$A$59) -> 10 | N54: =CONCATENATE($N$13,U54,$N$14) -> =+IMPORTARDATOSDINAMICOS(" BAS175";TABLAS!$A$97) | O54: =CONCATENATE($N$13,V54,$N$14) -> =+IMPORTARDATOSDINAMICOS(" BAS176";TABLAS!$A$97) | P54: =CONCATENATE($N$13,W54,$N$14) -> =+IMPORTARDATOSDINAMICOS(" BAS177";TABLAS!$A$97) | Q54: =CONCATENATE($N$13,X54,$N$14) -> =+IMPORTARDATOSDINAMICOS(" BAS178";TABLAS!$A$97) | R54: =CONCATENATE($N$13,Y54,$N$14) -> =+IMPORTARDATOSDINAMICOS(" BAS179";TABLAS!$A$97) | S54: =CONCATENATE($N$13,Z54,$N$14) -> =+IMPORTARDATOSDINAMICOS(" BAS180";TABLAS!$A$97) | U54: =IF(AB54<10,CONCATENATE("00",AB54),IF(AND(AB54<100,AB54>9),CONCATENATE("0",AB54),AB54)) -> 175 | V54: =IF(AC54<10,CONCATENATE("00",AC54),IF(AND(AC54<100,AC54>9),CONCATENATE("0",AC54),AC54)) -> 176 | W54: =IF(AD54<10,CONCATENATE("00",AD54),IF(AND(AD54<100,AD54>9),CONCATENATE("0",AD54),AD54)) -> 177 | X54: =IF(AE54<10,CONCATENATE("00",AE54),IF(AND(AE54<100,AE54>9),CONCATENATE("0",AE54),AE54)) -> 178 | Y54: =IF(AF54<10,CONCATENATE("00",AF54),IF(AND(AF54<100,AF54>9),CONCATENATE("0",AF54),AF54)) -> 179 | Z54: =IF(AG54<10,CONCATENATE("00",AG54),IF(AND(AG54<100,AG54>9),CONCATENATE("0",AG54),AG54)) -> 180 | AB54: =+AG53+1 -> 175 | AC54: =+AB54+1 -> 176 | AD54: 177 | AE54: 178 | AF54: 179 | AG54: 180
A55: 31 | C55: 3º Atención | D55: 12 | E55: 11 | F55: =+GETPIVOTDATA(" BAS181",TABLAS!$A$59) -> 2 | G55: =+GETPIVOTDATA(" BAS182",TABLAS!$A$59) -> 6 | H55: =+GETPIVOTDATA(" BAS183",TABLAS!$A$59) -> 3 | I55: =+GETPIVOTDATA(" BAS184",TABLAS!$A$59) -> 5 | J55: =+GETPIVOTDATA(" BAS185",TABLAS!$A$59) -> 7 | K55: =+GETPIVOTDATA(" BAS186",TABLAS!$A$59) -> 0 | N55: =+IMPORTARDATOSDINAMICOS(" BAS181";TABLAS!$A$97) | O55: =+IMPORTARDATOSDINAMICOS(" BAS182";TABLAS!$A$97) | P55: =+IMPORTARDATOSDINAMICOS(" BAS183";TABLAS!$A$97) | Q55: =+IMPORTARDATOSDINAMICOS(" BAS184";TABLAS!$A$97) | R55: =+IMPORTARDATOSDINAMICOS(" BAS185";TABLAS!$A$97) | S55: =+IMPORTARDATOSDINAMICOS(" BAS186";TABLAS!$A$97) | U55: 181 | V55: 182 | W55: 183 | X55: 184 | Y55: 185 | Z55: 186 | AB55: =+AG54+1 -> 181 | AC55: =+AB55+1 -> 182 | AD55: 183 | AE55: 184 | AF55: 185 | AG55: 186
A56: 32 | C56: 4º a + Atenciones | D56: 7 | E56: 7 | F56: =+GETPIVOTDATA(" BAS187",TABLAS!$A$59) -> 2 | G56: =+GETPIVOTDATA(" BAS188",TABLAS!$A$59) -> 6 | H56: =+GETPIVOTDATA(" BAS189",TABLAS!$A$59) -> 2 | I56: =+GETPIVOTDATA(" BAS190",TABLAS!$A$59) -> 0 | J56: =+GETPIVOTDATA(" BAS191",TABLAS!$A$59) -> 3 | K56: =+GETPIVOTDATA(" BAS192",TABLAS!$A$59) -> 1 | N56: =+IMPORTARDATOSDINAMICOS(" BAS187";TABLAS!$A$97) | O56: =+IMPORTARDATOSDINAMICOS(" BAS188";TABLAS!$A$97) | P56: =+IMPORTARDATOSDINAMICOS(" BAS189";TABLAS!$A$97) | Q56: =+IMPORTARDATOSDINAMICOS(" BAS190";TABLAS!$A$97) | R56: =+IMPORTARDATOSDINAMICOS(" BAS191";TABLAS!$A$97) | S56: =+IMPORTARDATOSDINAMICOS(" BAS192";TABLAS!$A$97) | U56: 187 | V56: 188 | W56: 189 | X56: 190 | Y56: 191 | Z56: 192 | AB56: =+AG55+1 -> 187 | AC56: =+AB56+1 -> 188 | AD56: 189 | AE56: 190 | AF56: 191 | AG56: 192
C57: Indicación Nutricional
A58: 33 | C58: Recomendación Nutricional | D58: =F58+H58+J58 -> 12 | E58: 14 | F58: =+GETPIVOTDATA(" BAS193",TABLAS!$A$59) -> 7 | G58: =+GETPIVOTDATA(" BAS194",TABLAS!$A$59) -> 5 | H58: =+GETPIVOTDATA(" BAS195",TABLAS!$A$59) -> 4 | I58: =+GETPIVOTDATA(" BAS196",TABLAS!$A$59) -> 4 | J58: =+GETPIVOTDATA(" BAS197",TABLAS!$A$59) -> 1 | K58: =+GETPIVOTDATA(" BAS198",TABLAS!$A$59) -> 5 | N58: =CONCATENATE($N$13,U58,$N$14) -> =+IMPORTARDATOSDINAMICOS(" BAS193";TABLAS!$A$97) | O58: =CONCATENATE($N$13,V58,$N$14) -> =+IMPORTARDATOSDINAMICOS(" BAS194";TABLAS!$A$97) | P58: =CONCATENATE($N$13,W58,$N$14) -> =+IMPORTARDATOSDINAMICOS(" BAS195";TABLAS!$A$97) | Q58: =CONCATENATE($N$13,X58,$N$14) -> =+IMPORTARDATOSDINAMICOS(" BAS196";TABLAS!$A$97) | R58: =CONCATENATE($N$13,Y58,$N$14) -> =+IMPORTARDATOSDINAMICOS(" BAS197";TABLAS!$A$97) | S58: =CONCATENATE($N$13,Z58,$N$14) -> =+IMPORTARDATOSDINAMICOS(" BAS198";TABLAS!$A$97) | U58: =IF(AB58<10,CONCATENATE("00",AB58),IF(AND(AB58<100,AB58>9),CONCATENATE("0",AB58),AB58)) -> 193 | V58: =IF(AC58<10,CONCATENATE("00",AC58),IF(AND(AC58<100,AC58>9),CONCATENATE("0",AC58),AC58)) -> 194 | W58: =IF(AD58<10,CONCATENATE("00",AD58),IF(AND(AD58<100,AD58>9),CONCATENATE("0",AD58),AD58)) -> 195 | X58: =IF(AE58<10,CONCATENATE("00",AE58),IF(AND(AE58<100,AE58>9),CONCATENATE("0",AE58),AE58)) -> 196 | Y58: =IF(AF58<10,CONCATENATE("00",AF58),IF(AND(AF58<100,AF58>9),CONCATENATE("0",AF58),AF58)) -> 197 | Z58: =IF(AG58<10,CONCATENATE("00",AG58),IF(AND(AG58<100,AG58>9),CONCATENATE("0",AG58),AG58)) -> 198 | AB58: =+AG56+1 -> 193 | AC58: =+AB58+1 -> 194 | AD58: =+AC58+1 -> 195 | AE58: =+AD58+1 -> 196 | AF58: =+AE58+1 -> 197 | AG58: =+AF58+1 -> 198
A59: 34 | C59: Prescripción Nutrioterapéutica | D59: 17 | E59: 21 | F59: =+GETPIVOTDATA(" BAS199",TABLAS!$A$59) -> 5 | G59: =+GETPIVOTDATA(" BAS200",TABLAS!$A$59) -> 3 | H59: =+GETPIVOTDATA(" BAS201",TABLAS!$A$59) -> 6 | I59: =+GETPIVOTDATA(" BAS202",TABLAS!$A$59) -> 7 | J59: =+GETPIVOTDATA(" BAS203",TABLAS!$A$59) -> 6 | K59: =+GETPIVOTDATA(" BAS204",TABLAS!$A$59) -> 11 | N59: =CONCATENATE($N$13,U59,$N$14) -> =+IMPORTARDATOSDINAMICOS(" BAS199";TABLAS!$A$97) | O59: =CONCATENATE($N$13,V59,$N$14) -> =+IMPORTARDATOSDINAMICOS(" BAS200";TABLAS!$A$97) | P59: =CONCATENATE($N$13,W59,$N$14) -> =+IMPORTARDATOSDINAMICOS(" BAS201";TABLAS!$A$97) | Q59: =CONCATENATE($N$13,X59,$N$14) -> =+IMPORTARDATOSDINAMICOS(" BAS202";TABLAS!$A$97) | R59: =CONCATENATE($N$13,Y59,$N$14) -> =+IMPORTARDATOSDINAMICOS(" BAS203";TABLAS!$A$97) | S59: =CONCATENATE($N$13,Z59,$N$14) -> =+IMPORTARDATOSDINAMICOS(" BAS204";TABLAS!$A$97) | U59: =IF(AB59<10,CONCATENATE("00",AB59),IF(AND(AB59<100,AB59>9),CONCATENATE("0",AB59),AB59)) -> 199 | V59: =IF(AC59<10,CONCATENATE("00",AC59),IF(AND(AC59<100,AC59>9),CONCATENATE("0",AC59),AC59)) -> 200 | W59: =IF(AD59<10,CONCATENATE("00",AD59),IF(AND(AD59<100,AD59>9),CONCATENATE("0",AD59),AD59)) -> 201 | X59: =IF(AE59<10,CONCATENATE("00",AE59),IF(AND(AE59<100,AE59>9),CONCATENATE("0",AE59),AE59)) -> 202 | Y59: =IF(AF59<10,CONCATENATE("00",AF59),IF(AND(AF59<100,AF59>9),CONCATENATE("0",AF59),AF59)) -> 203 | Z59: =IF(AG59<10,CONCATENATE("00",AG59),IF(AND(AG59<100,AG59>9),CONCATENATE("0",AG59),AG59)) -> 204 | AB59: =+AG58+1 -> 199 | AC59: =+AB59+1 -> 200 | AD59: 201 | AE59: 202 | AF59: 203 | AG59: 204
A60: 35 | C60: Recomendación Dietética | D60: 1 | E60: 0 | F60: =+GETPIVOTDATA(" BAS205",TABLAS!$A$59) -> 0 | G60: =+GETPIVOTDATA(" BAS206",TABLAS!$A$59) -> 0 | H60: =+GETPIVOTDATA(" BAS207",TABLAS!$A$59) -> 1 | I60: =+GETPIVOTDATA(" BAS208",TABLAS!$A$59) -> 0 | J60: =+GETPIVOTDATA(" BAS209",TABLAS!$A$59) -> 0 | K60: =+GETPIVOTDATA(" BAS210",TABLAS!$A$59) -> 0 | N60: =+IMPORTARDATOSDINAMICOS(" BAS205";TABLAS!$A$97) | O60: =+IMPORTARDATOSDINAMICOS(" BAS206";TABLAS!$A$97) | P60: =+IMPORTARDATOSDINAMICOS(" BAS207";TABLAS!$A$97) | Q60: =+IMPORTARDATOSDINAMICOS(" BAS208";TABLAS!$A$97) | R60: =+IMPORTARDATOSDINAMICOS(" BAS209";TABLAS!$A$97) | S60: =+IMPORTARDATOSDINAMICOS(" BAS210";TABLAS!$A$97) | U60: 205 | V60: 206 | W60: 207 | X60: 208 | Y60: 209 | Z60: 210 | AB60: =+AG59+1 -> 205 | AC60: =+AB60+1 -> 206 | AD60: 207 | AE60: 208 | AF60: 209 | AG60: 210
A61: 36 | C61: Prescripción Dietoterapéutica | D61: 149 | E61: 220 | F61: =+GETPIVOTDATA(" BAS211",TABLAS!$A$59) -> 76 | G61: =+GETPIVOTDATA(" BAS212",TABLAS!$A$59) -> 107 | H61: =+GETPIVOTDATA(" BAS213",TABLAS!$A$59) -> 44 | I61: =+GETPIVOTDATA(" BAS214",TABLAS!$A$59) -> 86 | J61: =+GETPIVOTDATA(" BAS215",TABLAS!$A$59) -> 29 | K61: =+GETPIVOTDATA(" BAS216",TABLAS!$A$59) -> 27 | N61: =+IMPORTARDATOSDINAMICOS(" BAS211";TABLAS!$A$97) | O61: =+IMPORTARDATOSDINAMICOS(" BAS212";TABLAS!$A$97) | P61: =+IMPORTARDATOSDINAMICOS(" BAS213";TABLAS!$A$97) | Q61: =+IMPORTARDATOSDINAMICOS(" BAS214";TABLAS!$A$97) | R61: =+IMPORTARDATOSDINAMICOS(" BAS215";TABLAS!$A$97) | S61: =+IMPORTARDATOSDINAMICOS(" BAS216";TABLAS!$A$97) | U61: 211 | V61: 212 | W61: 213 | X61: 214 | Y61: 215 | Z61: 216 | AB61: =+AG60+1 -> 211 | AC61: =+AB61+1 -> 212 | AD61: 213 | AE61: 214 | AF61: 215 | AG61: 216
B62: CONSEJERÍAS TRAMA_BASE_AMAYOR_RPT_05_CONSEJERIA_CONSOLIDADO
A63: 37 | B63: Total | C63: Nutricionales | D63: =F63+H63+J63 -> 95 | E63: 94 | F63: =+GETPIVOTDATA(" BAS001",TABLAS!$A$97) -> 45 | G63: =+GETPIVOTDATA(" BAS002",TABLAS!$A$97) -> 44 | H63: =+GETPIVOTDATA(" BAS003",TABLAS!$A$97) -> 30 | I63: =+GETPIVOTDATA(" BAS004",TABLAS!$A$97) -> 31 | J63: =+GETPIVOTDATA(" BAS005",TABLAS!$A$97) -> 20 | K63: =+GETPIVOTDATA(" BAS006",TABLAS!$A$97) -> 19 | N63: =CONCATENATE($N$13,U63,$N$14) -> =+IMPORTARDATOSDINAMICOS(" BAS001";TABLAS!$A$97) | O63: =CONCATENATE($N$13,V63,$N$14) -> =+IMPORTARDATOSDINAMICOS(" BAS002";TABLAS!$A$97) | P63: =+IMPORTARDATOSDINAMICOS(" BAS003";TABLAS!$A$97) | Q63: =+IMPORTARDATOSDINAMICOS(" BAS004";TABLAS!$A$97) | R63: =+IMPORTARDATOSDINAMICOS(" BAS005";TABLAS!$A$97) | S63: =+IMPORTARDATOSDINAMICOS(" BAS006";TABLAS!$A$97) | U63: =IF(AB63<10,CONCATENATE("00",AB63),IF(AND(AB63<100,AB63>9),CONCATENATE("0",AB63),AB63)) -> 001 | V63: =IF(AC63<10,CONCATENATE("00",AC63),IF(AND(AC63<100,AC63>9),CONCATENATE("0",AC63),AC63)) -> 002 | W63: 003 | X63: 004 | Y63: 005 | Z63: 006 | AB63: 1 | AC63: =+AB63+1 -> 2 | AD63: 3 | AE63: 4 | AF63: =+AE63+1 -> 5 | AG63: 6
A64: 38 | C64: Integrales | D64: 866 | E64: 1143 | F64: =+GETPIVOTDATA(" BAS007",TABLAS!$A$97) -> 403 | G64: =+GETPIVOTDATA(" BAS008",TABLAS!$A$97) -> 538 | H64: =+GETPIVOTDATA(" BAS009",TABLAS!$A$97) -> 292 | I64: =+GETPIVOTDATA(" BAS010",TABLAS!$A$97) -> 406 | J64: =+GETPIVOTDATA(" BAS011",TABLAS!$A$97) -> 171 | K64: =+GETPIVOTDATA(" BAS012",TABLAS!$A$97) -> 199 | N64: =CONCATENATE($N$13,U64,$N$14) -> =+IMPORTARDATOSDINAMICOS(" BAS007";TABLAS!$A$97) | O64: =CONCATENATE($N$13,V64,$N$14) -> =+IMPORTARDATOSDINAMICOS(" BAS008";TABLAS!$A$97) | P64: =CONCATENATE($N$13,W64,$N$14) -> =+IMPORTARDATOSDINAMICOS(" BAS009";TABLAS!$A$97) | Q64: =CONCATENATE($N$13,X64,$N$14) -> =+IMPORTARDATOSDINAMICOS(" BAS010";TABLAS!$A$97) | R64: =CONCATENATE($N$13,Y64,$N$14) -> =+IMPORTARDATOSDINAMICOS(" BAS011";TABLAS!$A$97) | S64: =CONCATENATE($N$13,Z64,$N$14) -> =+IMPORTARDATOSDINAMICOS(" BAS012";TABLAS!$A$97) | U64: =IF(AB64<10,CONCATENATE("00",AB64),IF(AND(AB64<100,AB64>9),CONCATENATE("0",AB64),AB64)) -> 007 | V64: =IF(AC64<10,CONCATENATE("00",AC64),IF(AND(AC64<100,AC64>9),CONCATENATE("0",AC64),AC64)) -> 008 | W64: =IF(AD64<10,CONCATENATE("00",AD64),IF(AND(AD64<100,AD64>9),CONCATENATE("0",AD64),AD64)) -> 009 | X64: =IF(AE64<10,CONCATENATE("00",AE64),IF(AND(AE64<100,AE64>9),CONCATENATE("0",AE64),AE64)) -> 010 | Y64: =IF(AF64<10,CONCATENATE("00",AF64),IF(AND(AF64<100,AF64>9),CONCATENATE("0",AF64),AF64)) -> 011 | Z64: =IF(AG64<10,CONCATENATE("00",AG64),IF(AND(AG64<100,AG64>9),CONCATENATE("0",AG64),AG64)) -> 012 | AB64: =+AG63+1 -> 7 | AC64: 8 | AD64: 9 | AE64: 10 | AF64: =+AE64+1 -> 11 | AG64: 12
A65: 39 | C65: Salud Mental | D65: 9 | E65: 6 | F65: =+GETPIVOTDATA(" BAS013",TABLAS!$A$97) -> 3 | G65: =+GETPIVOTDATA(" BAS014",TABLAS!$A$97) -> 3 | H65: =+GETPIVOTDATA(" BAS015",TABLAS!$A$97) -> 2 | I65: =+GETPIVOTDATA(" BAS016",TABLAS!$A$97) -> 2 | J65: =+GETPIVOTDATA(" BAS017",TABLAS!$A$97) -> 4 | K65: =+GETPIVOTDATA(" BAS018",TABLAS!$A$97) -> 1 | N65: =CONCATENATE($N$13,U65,$N$14) -> =+IMPORTARDATOSDINAMICOS(" BAS013";TABLAS!$A$97) | O65: =CONCATENATE($N$13,V65,$N$14) -> =+IMPORTARDATOSDINAMICOS(" BAS014";TABLAS!$A$97) | P65: =CONCATENATE($N$13,W65,$N$14) -> =+IMPORTARDATOSDINAMICOS(" BAS015";TABLAS!$A$97) | Q65: =CONCATENATE($N$13,X65,$N$14) -> =+IMPORTARDATOSDINAMICOS(" BAS016";TABLAS!$A$97) | R65: =CONCATENATE($N$13,Y65,$N$14) -> =+IMPORTARDATOSDINAMICOS(" BAS017";TABLAS!$A$97) | S65: =CONCATENATE($N$13,Z65,$N$14) -> =+IMPORTARDATOSDINAMICOS(" BAS018";TABLAS!$A$97) | U65: =IF(AB65<10,CONCATENATE("00",AB65),IF(AND(AB65<100,AB65>9),CONCATENATE("0",AB65),AB65)) -> 013 | V65: =IF(AC65<10,CONCATENATE("00",AC65),IF(AND(AC65<100,AC65>9),CONCATENATE("0",AC65),AC65)) -> 014 | W65: =IF(AD65<10,CONCATENATE("00",AD65),IF(AND(AD65<100,AD65>9),CONCATENATE("0",AD65),AD65)) -> 015 | X65: =IF(AE65<10,CONCATENATE("00",AE65),IF(AND(AE65<100,AE65>9),CONCATENATE("0",AE65),AE65)) -> 016 | Y65: =IF(AF65<10,CONCATENATE("00",AF65),IF(AND(AF65<100,AF65>9),CONCATENATE("0",AF65),AF65)) -> 017 | Z65: =IF(AG65<10,CONCATENATE("00",AG65),IF(AND(AG65<100,AG65>9),CONCATENATE("0",AG65),AG65)) -> 018 | AB65: =+AG64+1 -> 13 | AC65: =+AB65+1 -> 14 | AD65: 15 | AE65: 16 | AF65: 17 | AG65: 18
A66: 40 | C66: Prevención de Cáncer | D66: 0 | E66: 0 | F66: =+GETPIVOTDATA(" BAS019",TABLAS!$A$97) -> 0 | G66: =+GETPIVOTDATA(" BAS020",TABLAS!$A$97) -> 0 | H66: =+GETPIVOTDATA(" BAS021",TABLAS!$A$97) -> 0 | I66: =+GETPIVOTDATA(" BAS022",TABLAS!$A$97) -> 0 | J66: =+GETPIVOTDATA(" BAS023",TABLAS!$A$97) -> 0 | K66: =+GETPIVOTDATA(" BAS024",TABLAS!$A$97) -> 0 | N66: =+IMPORTARDATOSDINAMICOS(" BAS019";TABLAS!$A$97) | O66: =+IMPORTARDATOSDINAMICOS(" BAS020";TABLAS!$A$97) | P66: =+IMPORTARDATOSDINAMICOS(" BAS021";TABLAS!$A$97) | Q66: =+IMPORTARDATOSDINAMICOS(" BAS022";TABLAS!$A$97) | R66: =+IMPORTARDATOSDINAMICOS(" BAS023";TABLAS!$A$97) | S66: =+IMPORTARDATOSDINAMICOS(" BAS024";TABLAS!$A$97) | U66: 019 | V66: 020 | W66: 021 | X66: 022 | Y66: 023 | Z66: 024 | AB66: 19 | AC66: =+AB66+1 -> 20 | AD66: 21 | AE66: 22 | AF66: 23 | AG66: 24
B67: TAMIZAJE DE CÁNCER TRAMA_BASE_AMAYOR_RPT_06_CANCER_CONSOLIDADO
B68: Hombre | C68: Examen para Tumor de Prostata
A69: 41 | C69: - Evaluación Normal | D69: =F69+H69+J69 -> 4 | F69: =+GETPIVOTDATA(" BAS028",TABLAS!$A$97) -> 2 | H69: =+GETPIVOTDATA(" BAS029",TABLAS!$A$97) -> 2 | J69: =+GETPIVOTDATA(" BAS030",TABLAS!$A$97) -> 0 | N69: =CONCATENATE($N$13,U69,$N$14) -> =+IMPORTARDATOSDINAMICOS(" BAS025";TABLAS!$A$97) | P69: =CONCATENATE($N$13,W69,$N$14) -> =+IMPORTARDATOSDINAMICOS(" BAS026";TABLAS!$A$97) | R69: =CONCATENATE($N$13,Y69,$N$14) -> =+IMPORTARDATOSDINAMICOS(" BAS027";TABLAS!$A$97) | U69: =IF(AB69<10,CONCATENATE("00",AB69),IF(AND(AB69<100,AB69>9),CONCATENATE("0",AB69),AB69)) -> 025 | W69: =IF(AD69<10,CONCATENATE("00",AD69),IF(AND(AD69<100,AD69>9),CONCATENATE("0",AD69),AD69)) -> 026 | Y69: =IF(AF69<10,CONCATENATE("00",AF69),IF(AND(AF69<100,AF69>9),CONCATENATE("0",AF69),AF69)) -> 027 | AB69: =+AG66+1 -> 25 | AD69: =+AB69+1 -> 26 | AF69: =+AD69+1 -> 27
A70: 42 | C70: - Evaluación Anormal | D70: 403 | F70: =+GETPIVOTDATA(" BAS031",TABLAS!$A$97) -> 280 | H70: =+GETPIVOTDATA(" BAS032",TABLAS!$A$97) -> 117 | J70: =+GETPIVOTDATA(" BAS033",TABLAS!$A$97) -> 6 | N70: =+IMPORTARDATOSDINAMICOS(" BAS028";TABLAS!$A$97) | P70: =+IMPORTARDATOSDINAMICOS(" BAS029";TABLAS!$A$97) | R70: =+IMPORTARDATOSDINAMICOS(" BAS030";TABLAS!$A$97) | U70: 028 | W70: 029 | Y70: 030 | AB70: =+AF69+1 -> 28 | AD70: 29 | AF70: 30
C71: Antigeno Prostatico Especifico (PSA)
A72: 43 | C72: - Resultado Normal | D72: 0 | F72: =+GETPIVOTDATA(" BAS037",TABLAS!$A$97) -> 0 | H72: =+GETPIVOTDATA(" BAS038",TABLAS!$A$97) -> 0 | J72: =+GETPIVOTDATA(" BAS039",TABLAS!$A$97) -> 0 | N72: =+IMPORTARDATOSDINAMICOS(" BAS031";TABLAS!$A$97) | P72: =+IMPORTARDATOSDINAMICOS(" BAS032";TABLAS!$A$97) | R72: =+IMPORTARDATOSDINAMICOS(" BAS033";TABLAS!$A$97) | U72: 031 | W72: 032 | Y72: 033 | AB72: =+AF70+1 -> 31 | AD72: 32 | AF72: 33
A73: 44 | C73: - Resultado Anormal | D73: 0 | F73: =+GETPIVOTDATA(" BAS040",TABLAS!$A$97) -> 0 | H73: =+GETPIVOTDATA(" BAS041",TABLAS!$A$97) -> 0 | J73: =+GETPIVOTDATA(" BAS042",TABLAS!$A$97) -> 0 | N73: =+IMPORTARDATOSDINAMICOS(" BAS034";TABLAS!$A$97) | P73: =+IMPORTARDATOSDINAMICOS(" BAS035";TABLAS!$A$97) | R73: =+IMPORTARDATOSDINAMICOS(" BAS036";TABLAS!$A$97) | U73: 034 | W73: 035 | Y73: 036 | AB73: 34 | AD73: 35 | AF73: 36
A74: 45 | C74: Biopsia de Próstata | D74: 0 | F74: =+GETPIVOTDATA(" BAS043",TABLAS!$A$97) -> 0 | H74: =+GETPIVOTDATA(" BAS044",TABLAS!$A$97) -> 0 | J74: =+GETPIVOTDATA(" BAS045",TABLAS!$A$97) -> 0 | N74: =+IMPORTARDATOSDINAMICOS(" BAS037";TABLAS!$A$97) | P74: =+IMPORTARDATOSDINAMICOS(" BAS038";TABLAS!$A$97) | R74: =+IMPORTARDATOSDINAMICOS(" BAS039";TABLAS!$A$97) | U74: 037 | W74: 038 | Y74: 039 | AB74: 37 | AD74: 38 | AF74: 39
B75: Mujer | C75: Papanicolaou
A76: 46 | C76: - Primera vez | E76: 3 | G76: =+GETPIVOTDATA(" BAS049",TABLAS!$A$97) -> 3 | I76: =+GETPIVOTDATA(" BAS050",TABLAS!$A$97) -> 0 | K76: =+GETPIVOTDATA(" BAS051",TABLAS!$A$97) -> 0 | O76: =CONCATENATE($N$13,V76,$N$14) -> =+IMPORTARDATOSDINAMICOS(" BAS040";TABLAS!$A$97) | Q76: =CONCATENATE($N$13,X76,$N$14) -> =+IMPORTARDATOSDINAMICOS(" BAS041";TABLAS!$A$97) | S76: =CONCATENATE($N$13,Z76,$N$14) -> =+IMPORTARDATOSDINAMICOS(" BAS042";TABLAS!$A$97) | V76: =IF(AC76<10,CONCATENATE("00",AC76),IF(AND(AC76<100,AC76>9),CONCATENATE("0",AC76),AC76)) -> 040 | X76: =IF(AE76<10,CONCATENATE("00",AE76),IF(AND(AE76<100,AE76>9),CONCATENATE("0",AE76),AE76)) -> 041 | Z76: =IF(AG76<10,CONCATENATE("00",AG76),IF(AND(AG76<100,AG76>9),CONCATENATE("0",AG76),AG76)) -> 042 | AC76: =+AF74+1 -> 40 | AE76: =+AC76+1 -> 41 | AG76: =+AE76+1 -> 42
A77: 47 | C77: - Segunda a + veces | E77: 8 | G77: =+GETPIVOTDATA(" BAS052",TABLAS!$A$97) -> 8 | I77: =+GETPIVOTDATA(" BAS053",TABLAS!$A$97) -> 0 | K77: =+GETPIVOTDATA(" BAS054",TABLAS!$A$97) -> 0 | O77: =+IMPORTARDATOSDINAMICOS(" BAS043";TABLAS!$A$97) | Q77: =+IMPORTARDATOSDINAMICOS(" BAS044";TABLAS!$A$97) | S77: =+IMPORTARDATOSDINAMICOS(" BAS045";TABLAS!$A$97) | V77: 043 | X77: 044 | Z77: 045 | AC77: =+AG76+1 -> 43 | AE77: 44 | AG77: 45
C78: Evaluación de los Resultados de PAP
A79: 48 | C79: Lesión Intraepitelial de Bajo Grado – LIEB (NIC I) | E79: 0 | G79: =+GETPIVOTDATA(" BAS058",TABLAS!$A$97) -> 0 | I79: =+GETPIVOTDATA(" BAS059",TABLAS!$A$97) -> 0 | K79: =+GETPIVOTDATA(" BAS060",TABLAS!$A$97) -> 0 | O79: =+IMPORTARDATOSDINAMICOS(" BAS046";TABLAS!$A$97) | Q79: =+IMPORTARDATOSDINAMICOS(" BAS047";TABLAS!$A$97) | S79: =+IMPORTARDATOSDINAMICOS(" BAS048";TABLAS!$A$97) | V79: 046 | X79: 047 | Z79: 048 | AC79: =+AG77+1 -> 46 | AE79: 47 | AG79: 48
A80: 49 | C80: Lesión Intraepitelial de Alto Grado – LIEA (NIC II, NIC III) | E80: 0 | G80: =+GETPIVOTDATA(" BAS061",TABLAS!$A$97) -> 0 | I80: =+GETPIVOTDATA(" BAS062",TABLAS!$A$97) -> 0 | K80: =+GETPIVOTDATA(" BAS063",TABLAS!$A$97) -> 0 | O80: =+IMPORTARDATOSDINAMICOS(" BAS049";TABLAS!$A$97) | Q80: =+IMPORTARDATOSDINAMICOS(" BAS050";TABLAS!$A$97) | S80: =+IMPORTARDATOSDINAMICOS(" BAS051";TABLAS!$A$97) | V80: 049 | X80: 050 | Z80: 051 | AC80: 49 | AE80: 50 | AG80: 51
A81: 50 | C81: Carcinoma in Situ | E81: 0 | G81: =+GETPIVOTDATA(" BAS064",TABLAS!$A$97) -> 0 | I81: =+GETPIVOTDATA(" BAS065",TABLAS!$A$97) -> 0 | K81: =+GETPIVOTDATA(" BAS066",TABLAS!$A$97) -> 0 | O81: =+IMPORTARDATOSDINAMICOS(" BAS052";TABLAS!$A$97) | Q81: =+IMPORTARDATOSDINAMICOS(" BAS053";TABLAS!$A$97) | S81: =+IMPORTARDATOSDINAMICOS(" BAS054";TABLAS!$A$97) | V81: 052 | X81: 053 | Z81: 054 | AC81: 52 | AE81: 53 | AG81: 54
C82: Examen Pélvico
A83: 51 | C83: - Evaluación Normal | E83: 0 | G83: =+GETPIVOTDATA(" BAS070",TABLAS!$A$97) -> 0 | I83: =+GETPIVOTDATA(" BAS071",TABLAS!$A$97) -> 0 | K83: =+GETPIVOTDATA(" BAS072",TABLAS!$A$97) -> 0 | O83: =+IMPORTARDATOSDINAMICOS(" BAS055";TABLAS!$A$97) | Q83: =+IMPORTARDATOSDINAMICOS(" BAS056";TABLAS!$A$97) | S83: =+IMPORTARDATOSDINAMICOS(" BAS057";TABLAS!$A$97) | V83: 055 | X83: 056 | Z83: 057 | AC83: =+AG81+1 -> 55 | AE83: 56 | AG83: 57
A84: 52 | C84: - Evaluación Anormal | E84: 0 | G84: =+GETPIVOTDATA(" BAS073",TABLAS!$A$97) -> 0 | I84: =+GETPIVOTDATA(" BAS074",TABLAS!$A$97) -> 0 | K84: =+GETPIVOTDATA(" BAS075",TABLAS!$A$97) -> 0 | O84: =+IMPORTARDATOSDINAMICOS(" BAS058";TABLAS!$A$97) | Q84: =+IMPORTARDATOSDINAMICOS(" BAS059";TABLAS!$A$97) | S84: =+IMPORTARDATOSDINAMICOS(" BAS060";TABLAS!$A$97) | V84: 058 | X84: 059 | Z84: 060 | AC84: 58 | AE84: 59 | AG84: 60
C85: IVVA / IVVAM
A86: 53 | C86: - Evaluación Normal | E86: =G86+I86+K86 -> 253 | G86: =+GETPIVOTDATA(" BAS079",TABLAS!$A$97) -> 237 | I86: =+GETPIVOTDATA(" BAS080",TABLAS!$A$97) -> 16 | K86: =+GETPIVOTDATA(" BAS081",TABLAS!$A$97) -> 0 | O86: =+IMPORTARDATOSDINAMICOS(" BAS061";TABLAS!$A$97) | Q86: =+IMPORTARDATOSDINAMICOS(" BAS062";TABLAS!$A$97) | S86: =+IMPORTARDATOSDINAMICOS(" BAS063";TABLAS!$A$97) | V86: 061 | X86: 062 | Z86: 063 | AC86: =+AG84+1 -> 61 | AE86: 62 | AG86: 63
A87: 54 | C87: - Evaluación Anormal | E87: 0 | G87: =+GETPIVOTDATA(" BAS082",TABLAS!$A$97) -> 0 | I87: =+GETPIVOTDATA(" BAS083",TABLAS!$A$97) -> 0 | K87: =+GETPIVOTDATA(" BAS084",TABLAS!$A$97) -> 0 | O87: =+IMPORTARDATOSDINAMICOS(" BAS064";TABLAS!$A$97) | Q87: =+IMPORTARDATOSDINAMICOS(" BAS065";TABLAS!$A$97) | S87: =+IMPORTARDATOSDINAMICOS(" BAS066";TABLAS!$A$97) | V87: 064 | X87: 065 | Z87: 066 | AC87: 64 | AE87: 65 | AG87: 66
C88: Examen Clínico de Mama (ECM)
A89: 55 | C89: - Evaluación Normal | E89: 0 | G89: =+GETPIVOTDATA(" BAS088",TABLAS!$A$97) -> 0 | I89: =+GETPIVOTDATA(" BAS089",TABLAS!$A$97) -> 0 | K89: =+GETPIVOTDATA(" BAS090",TABLAS!$A$97) -> 0 | O89: =+IMPORTARDATOSDINAMICOS(" BAS067";TABLAS!$A$97) | Q89: =+IMPORTARDATOSDINAMICOS(" BAS068";TABLAS!$A$97) | S89: =+IMPORTARDATOSDINAMICOS(" BAS069";TABLAS!$A$97) | V89: 067 | X89: 068 | Z89: 069 | AC89: =+AG87+1 -> 67 | AE89: 68 | AG89: 69
A90: 56 | C90: - Evaluación Anormal | E90: 1594 | G90: =+GETPIVOTDATA(" BAS091",TABLAS!$A$97) -> 517 | I90: =+GETPIVOTDATA(" BAS092",TABLAS!$A$97) -> 717 | K90: =+GETPIVOTDATA(" BAS093",TABLAS!$A$97) -> 360 | O90: =+IMPORTARDATOSDINAMICOS(" BAS070";TABLAS!$A$97) | Q90: =+IMPORTARDATOSDINAMICOS(" BAS071";TABLAS!$A$97) | S90: =+IMPORTARDATOSDINAMICOS(" BAS072";TABLAS!$A$97) | V90: 070 | X90: 071 | Z90: 072 | AC90: 70 | AE90: 71 | AG90: 72
C91: Mamografía
A92: 57 | C92: Mamografía Unilateral | E92: 95 | G92: =+GETPIVOTDATA(" BAS097",TABLAS!$A$97) -> 27 | I92: =+GETPIVOTDATA(" BAS098",TABLAS!$A$97) -> 40 | K92: =+GETPIVOTDATA(" BAS099",TABLAS!$A$97) -> 28 | O92: =+IMPORTARDATOSDINAMICOS(" BAS073";TABLAS!$A$97) | Q92: =+IMPORTARDATOSDINAMICOS(" BAS074";TABLAS!$A$97) | S92: =+IMPORTARDATOSDINAMICOS(" BAS075";TABLAS!$A$97) | V92: 073 | X92: 074 | Z92: 075 | AC92: =+AG90+1 -> 73 | AE92: 74 | AG92: 75
A93: 58 | C93: Mamografía Bilateral | E93: 32 | G93: =+GETPIVOTDATA(" BAS100",TABLAS!$A$97) -> 20 | I93: =+GETPIVOTDATA(" BAS101",TABLAS!$A$97) -> 8 | K93: =+GETPIVOTDATA(" BAS102",TABLAS!$A$97) -> 4 | O93: =+IMPORTARDATOSDINAMICOS(" BAS076";TABLAS!$A$97) | Q93: =+IMPORTARDATOSDINAMICOS(" BAS077";TABLAS!$A$97) | S93: =+IMPORTARDATOSDINAMICOS(" BAS078";TABLAS!$A$97) | V93: 076 | X93: 077 | Z93: 078 | AC93: 76 | AE93: 77 | AG93: 78
A94: 59 | C94: Mamografía Screening | E94: 0 | G94: =+GETPIVOTDATA(" BAS103",TABLAS!$A$97) -> 0 | I94: =+GETPIVOTDATA(" BAS104",TABLAS!$A$97) -> 0 | K94: =+GETPIVOTDATA(" BAS105",TABLAS!$A$97) -> 0 | O94: =+IMPORTARDATOSDINAMICOS(" BAS079";TABLAS!$A$97) | Q94: =+IMPORTARDATOSDINAMICOS(" BAS080";TABLAS!$A$97) | S94: =+IMPORTARDATOSDINAMICOS(" BAS081";TABLAS!$A$97) | V94: 079 | X94: 080 | Z94: 081 | AC94: 79 | AE94: 80 | AG94: 81
A96: 60 | C96: Biopsia por Aspiración con Aguja Fina (BAAF) | E96: 0 | G96: =+GETPIVOTDATA(" BAS109",TABLAS!$A$97) -> 0 | I96: =+GETPIVOTDATA(" BAS110",TABLAS!$A$97) -> 0 | K96: =+GETPIVOTDATA(" BAS111",TABLAS!$A$97) -> 0 | O96: =+IMPORTARDATOSDINAMICOS(" BAS082";TABLAS!$A$97) | Q96: =+IMPORTARDATOSDINAMICOS(" BAS083";TABLAS!$A$97) | S96: =+IMPORTARDATOSDINAMICOS(" BAS084";TABLAS!$A$97) | V96: 082 | X96: 083 | Z96: 084 | AC96: =+AG94+1 -> 82 | AE96: 83 | AG96: 84
A97: 61 | C97: Entrega de Resultados Biopsia de Mama Positivos | E97: 0 | G97: =+GETPIVOTDATA(" BAS112",TABLAS!$A$97) -> 0 | I97: =+GETPIVOTDATA(" BAS113",TABLAS!$A$97) -> 0 | K97: =+GETPIVOTDATA(" BAS114",TABLAS!$A$97) -> 0 | O97: =+IMPORTARDATOSDINAMICOS(" BAS085";TABLAS!$A$97) | Q97: =+IMPORTARDATOSDINAMICOS(" BAS086";TABLAS!$A$97) | S97: =+IMPORTARDATOSDINAMICOS(" BAS087";TABLAS!$A$97) | V97: 085 | X97: 086 | Z97: 087 | AC97: 85 | AE97: 86 | AG97: 87
A98: 62 | C98: Entrega de Resultados Biopsia de Mama Negativos | E98: 0 | G98: =+GETPIVOTDATA(" BAS115",TABLAS!$A$97) -> 0 | I98: =+GETPIVOTDATA(" BAS116",TABLAS!$A$97) -> 0 | K98: =+GETPIVOTDATA(" BAS117",TABLAS!$A$97) -> 0 | O98: =+IMPORTARDATOSDINAMICOS(" BAS088";TABLAS!$A$97) | Q98: =+IMPORTARDATOSDINAMICOS(" BAS089";TABLAS!$A$97) | S98: =+IMPORTARDATOSDINAMICOS(" BAS090";TABLAS!$A$97) | V98: 088 | X98: 089 | Z98: 090 | AC98: 88 | AE98: 89 | AG98: 90
B99: IDENTIFICACIÓN DE FACTORES DE RIESGO Y TAMIZAJE LABORATORIAL TRAMA_BASE_AMAYOR_RPT_07_FACTORES_CONSOLIDADO
A100: 63 | B100: DNT | C100: Valoración Clínica de Factores de Riesgo | D100: =F100+H100+J100 -> 1043 | E100: =G100+I100+K100 -> 1321 | F100: =+GETPIVOTDATA(" BAS091",TABLAS!$A$97) -> 517 | G100: =+GETPIVOTDATA(" BAS092",TABLAS!$A$97) -> 717 | H100: =+GETPIVOTDATA(" BAS093",TABLAS!$A$97) -> 360 | I100: =+GETPIVOTDATA(" BAS094",TABLAS!$A$97) -> 432 | J100: =+GETPIVOTDATA(" BAS095",TABLAS!$A$97) -> 166 | K100: =+GETPIVOTDATA(" BAS096",TABLAS!$A$97) -> 172 | N100: =CONCATENATE($N$13,U100,$N$14) -> =+IMPORTARDATOSDINAMICOS(" BAS091";TABLAS!$A$97) | O100: =CONCATENATE($N$13,V100,$N$14) -> =+IMPORTARDATOSDINAMICOS(" BAS092";TABLAS!$A$97) | P100: =CONCATENATE($N$13,W100,$N$14) -> =+IMPORTARDATOSDINAMICOS(" BAS093";TABLAS!$A$97) | Q100: =CONCATENATE($N$13,X100,$N$14) -> =+IMPORTARDATOSDINAMICOS(" BAS094";TABLAS!$A$97) | R100: =CONCATENATE($N$13,Y100,$N$14) -> =+IMPORTARDATOSDINAMICOS(" BAS095";TABLAS!$A$97) | S100: =CONCATENATE($N$13,Z100,$N$14) -> =+IMPORTARDATOSDINAMICOS(" BAS096";TABLAS!$A$97) | U100: =IF(AB100<10,CONCATENATE("00",AB100),IF(AND(AB100<100,AB100>9),CONCATENATE("0",AB100),AB100)) -> 091 | V100: =IF(AC100<10,CONCATENATE("00",AC100),IF(AND(AC100<100,AC100>9),CONCATENATE("0",AC100),AC100)) -> 092 | W100: =IF(AD100<10,CONCATENATE("00",AD100),IF(AND(AD100<100,AD100>9),CONCATENATE("0",AD100),AD100)) -> 093 | X100: =IF(AE100<10,CONCATENATE("00",AE100),IF(AND(AE100<100,AE100>9),CONCATENATE("0",AE100),AE100)) -> 094 | Y100: =IF(AF100<10,CONCATENATE("00",AF100),IF(AND(AF100<100,AF100>9),CONCATENATE("0",AF100),AF100)) -> 095 | Z100: =IF(AG100<10,CONCATENATE("00",AG100),IF(AND(AG100<100,AG100>9),CONCATENATE("0",AG100),AG100)) -> 096 | AB100: =+AG98+1 -> 91 | AC100: =+AB100+1 -> 92 | AD100: 93 | AE100: 94 | AF100: 95 | AG100: 96
B101: ATENCIÓN DEL ADULTO MAYOR EN EL DOMICILIO TRAMA_BASE_AMAYOR_RPT_08_VISITA_CONSOLIDADO
A102: 64 | B102: VD | C102: Visita de Atención Integral | D102: =F102+H102+J102 -> 63 | E102: 64 | F102: =+GETPIVOTDATA(" BAS097",TABLAS!$A$97) -> 27 | G102: =+GETPIVOTDATA(" BAS098",TABLAS!$A$97) -> 40 | H102: =+GETPIVOTDATA(" BAS099",TABLAS!$A$97) -> 28 | I102: =+GETPIVOTDATA(" BAS100",TABLAS!$A$97) -> 20 | J102: =+GETPIVOTDATA(" BAS101",TABLAS!$A$97) -> 8 | K102: =+GETPIVOTDATA(" BAS102",TABLAS!$A$97) -> 4 | N102: =CONCATENATE($N$13,U102,$N$14) -> =+IMPORTARDATOSDINAMICOS(" BAS097";TABLAS!$A$97) | O102: =CONCATENATE($N$13,V102,$N$14) -> =+IMPORTARDATOSDINAMICOS(" BAS098";TABLAS!$A$97) | P102: =CONCATENATE($N$13,W102,$N$14) -> =+IMPORTARDATOSDINAMICOS(" BAS099";TABLAS!$A$97) | Q102: =CONCATENATE($N$13,X102,$N$14) -> =+IMPORTARDATOSDINAMICOS(" BAS100";TABLAS!$A$97) | R102: =CONCATENATE($N$13,Y102,$N$14) -> =+IMPORTARDATOSDINAMICOS(" BAS101";TABLAS!$A$97) | S102: =CONCATENATE($N$13,Z102,$N$14) -> =+IMPORTARDATOSDINAMICOS(" BAS102";TABLAS!$A$97) | U102: =IF(AB102<10,CONCATENATE("00",AB102),IF(AND(AB102<100,AB102>9),CONCATENATE("0",AB102),AB102)) -> 097 | V102: =IF(AC102<10,CONCATENATE("00",AC102),IF(AND(AC102<100,AC102>9),CONCATENATE("0",AC102),AC102)) -> 098 | W102: =IF(AD102<10,CONCATENATE("00",AD102),IF(AND(AD102<100,AD102>9),CONCATENATE("0",AD102),AD102)) -> 099 | X102: =IF(AE102<10,CONCATENATE("00",AE102),IF(AND(AE102<100,AE102>9),CONCATENATE("0",AE102),AE102)) -> 100 | Y102: =IF(AF102<10,CONCATENATE("00",AF102),IF(AND(AF102<100,AF102>9),CONCATENATE("0",AF102),AF102)) -> 101 | Z102: =IF(AG102<10,CONCATENATE("00",AG102),IF(AND(AG102<100,AG102>9),CONCATENATE("0",AG102),AG102)) -> 102 | AB102: =+AG100+1 -> 97 | AC102: 98 | AD102: 99 | AE102: 100 | AF102: 101 | AG102: 102

Sheet Datos (hidden)
B9: ANO | D9: MESES | F9: COD_RED | G9: DESC_RED | H9: CONCATENAR | J9: COD_RED | K9: COD_MIC | L9: DESC_MICRO | M9: CONCATENAR | O9: COD_ESTAB | P9: DESC_ESTAB | Q9: COD_RED | R9: COD_MIC | S9: COD_PROV | T9: COD_DIST | U9: REDMIC | V9: CONCATENAR | X9: COD_PROV | Y9: DESC_PROV | Z9: CONCATENAR | AB9: COD_PROV | AC9: COD_DIST | AD9: DESC_DIST | AE9: PROVDIST | AF9: CONCATENAR
B10: 2024 | D10: 01-Enero | F10: 00 | G10: NO TIENE ASIGNADO NINGUNA RED | H10: =CONCATENATE(F10," - ",G10) -> 00 - NO TIENE ASIGNADO NINGUNA RED | J10: 00 | K10: 00 | L10: NO PERTENECE A NINGUNA MICRORED | M10: =CONCATENATE(J10,K10," - ",L10) -> 0000 - NO PERTENECE A NINGUNA MICRORED | O10: 000000000 | P10: (All) | Q10: 00 | R10: 00 | U10: =CONCATENATE(Q10,R10) -> 0000 | V10: =CONCATENATE(O10," - ",P10) -> 000000000 - (All) | X10: 00 | Y10: (All) | Z10: =CONCATENATE(X10," - ",Y10) -> 00 - (All) | AB10: 01 | AC10: 00 | AD10: (All) | AE10: =CONCATENATE(AB10,AC10) -> 0100 | AF10: =CONCATENATE(AB10,AC10," - ",AD10) -> 0100 - (All)
D11: 02-Febrero | F11: 01 | G11: CUSCO SUR | H11: =CONCATENATE(F11," - ",G11) -> 01 - CUSCO SUR | J11: 00 | K11: 99 | L11: (All) | M11: 0099 - (All) | O11: 000028190 | P11: SAMUE CUSCO | Q11: 00 | R11: 00 | S11: 01 | T11: 01 | U11: =CONCATENATE(Q11,R11) -> 0000 | V11: =CONCATENATE(O11," - ",P11) -> 000028190 - SAMUE CUSCO | X11: 01 | Y11: CUSCO | Z11: =CONCATENATE(X11," - ",Y11) -> 01 - CUSCO | AB11: 01 | AC11: 01 | AD11: CUSCO | AE11: =CONCATENATE(AB11,AC11) -> 0101 | AF11: =CONCATENATE(AB11,AC11," - ",AD11) -> 0101 - CUSCO
D12: 03-Marzo | F12: 02 | G12: CUSCO NORTE | H12: 02 - CUSCO NORTE | J12: 01 | K12: 00 | L12: NO PERTENECE A NINGUNA MICRORED | M12: 0100 - NO PERTENECE A NINGUNA MICRORED | O12: 000002289 | P12: HOSPITAL DE APOYO DEPARTAMENTAL CUSCO | Q12: 00 | R12: 00 | S12: 01 | T12: 01 | U12: 0000 | V12: 000002289 - HOSPITAL DE APOYO DEPARTAMENTAL CUSCO | X12: 02 | Y12: ACOMAYO | Z12: =CONCATENATE(X12," - ",Y12) -> 02 - ACOMAYO | AB12: 01 | AC12: 02 | AD12: CCORCA | AE12: 0102 | AF12: 0102 - CCORCA
D13: 04-Abril | F13: 03 | G13: LA CONVENCION | H13: 03 - LA CONVENCION | J13: 01 | K13: 16 | L13: CUSCO | M13: 0116 - CUSCO | O13: 000002305 | P13: ANTONIO LORENA DEL CUSCO | Q13: 00 | R13: 00 | S13: 01 | T13: 06 | U13: 0000 | V13: 000002305 - ANTONIO LORENA DEL CUSCO | X13: 03 | Y13: ANTA | Z13: 03 - ANTA | AB13: 01 | AC13: 03 | AD13: POROY | AE13: 0103 | AF13: 0103 - POROY
D14: 05-Mayo | F14: 04 | G14: CANAS-CANCHIS-ESPINAR | H14: 04 - CANAS-CANCHIS-ESPINAR | J14: 01 | K14: 03 | L14: PARURO | M14: 0103 - PARURO | O14: 999999999 | P14: (All) | Q14: 00 | R14: 99 | U14: 0099 | V14: 999999999 - (All) | X14: 04 | Y14: CALCA | Z14: 04 - CALCA | AB14: 01 | AC14: 04 | AD14: SAN JERONIMO | AE14: 0104 | AF14: 0104 - SAN JERONIMO
D15: 06-Junio | F15: 05 | G15: KIMBIRI PICHARI | H15: 05 - KIMBIRI PICHARI | J15: 01 | K15: 06 | L15: PAUCARTAMBO | M15: 0106 - PAUCARTAMBO | O15: 000025210 | P15: TUPAC AMARU | Q15: 01 | R15: 00 | S15: 01 | T15: 05 | U15: 0100 | V15: 000025210 - TUPAC AMARU | X15: 05 | Y15: CANAS | Z15: 05 - CANAS | AB15: 01 | AC15: 05 | AD15: SAN SEBASTIAN | AE15: 0105 | AF15: 0105 - SAN SEBASTIAN
D16: 07-Julio | F16: 06 | G16: CHUMBIVILCAS | H16: 06 - CHUMBIVILCAS | J16: 01 | K16: 12 | L16: URCOS | M16: 0112 - URCOS | O16: 000000000 | P16: (All) | Q16: 01 | R16: 03 | U16: 0103 | V16: 000000000 - (All) | X16: 06 | Y16: CANCHIS | Z16: 06 - CANCHIS | AB16: 01 | AC16: 06 | AD16: SANTIAGO | AE16: 0106 | AF16: 0106 - SANTIAGO
D17: 08-Agosto | F17: 99 | G17: (All) | H17: 99 - (All) | J17: 01 | K17: 13 | L17: ACOMAYO | M17: 0113 - ACOMAYO | O17: 000002499 | P17: PARURO | Q17: 01 | R17: 03 | S17: 10 | T17: 01 | U17: 0103 | V17: 000002499 - PARURO | X17: 07 | Y17: CHUMBIVILCAS | Z17: 07 - CHUMBIVILCAS | AB17: 01 | AC17: 07 | AD17: SAYLLA | AE17: 0107 | AF17: 0107 - SAYLLA
D18: 09-Setiembre | J18: 01 | K18: 15 | L18: OCONGATE | M18: 0115 - OCONGATE | O18: 000002500 | P18: ACCHA | Q18: 01 | R18: 03 | S18: 10 | T18: 02 | U18: 0103 | V18: 000002500 - ACCHA | X18: 08 | Y18: ESPINAR | Z18: 08 - ESPINAR | AB18: 01 | AC18: 08 | AD18: WANCHAQ | AE18: 0108 | AF18: 0108 - WANCHAQ
D19: 10-Octubre | J19: 01 | K19: 99 | L19: (All) | M19: 0199 - (All) | O19: 000002501 | P19: CCAPI | Q19: 01 | R19: 03 | S19: 10 | T19: 03 | U19: 0103 | V19: 000002501 - CCAPI | X19: 09 | Y19: LA CONVENCION | Z19: 09 - LA CONVENCION | AB19: 02 | AC19: 00 | AD19: (All) | AE19: 0200 | AF19: 0200 - (All)
D20: 11-Noviembre | F20: EJECUTORAS | J20: 02 | K20: 01 | L20: BELEMPAMPA | M20: 0201 - BELEMPAMPA | O20: 000002502 | P20: CCOYABAMBA | Q20: 01 | R20: 03 | S20: 10 | T20: 03 | U20: 0103 | V20: 000002502 - CCOYABAMBA | X20: 10 | Y20: PARURO | Z20: 10 - PARURO | AB20: 02 | AC20: 01 | AD20: ACOMAYO | AE20: 0201 | AF20: 0201 - ACOMAYO
D21: 12-Diciembre | F21: COD_RED | G21: DESC_RED | H21: CONCATENAR | J21: 02 | K21: 02 | L21: WANCHAQ | M21: 0202 - WANCHAQ | O21: 000002503 | P21: COLCHA | Q21: 01 | R21: 03 | S21: 10 | T21: 04 | U21: 0103 | V21: 000002503 - COLCHA | X21: 11 | Y21: PAUCARTAMBO | Z21: 11 - PAUCARTAMBO | AB21: 02 | AC21: 02 | AD21: ACOPIA | AE21: 0202 | AF21: 0202 - ACOPIA
F22: 01 | G22: HOSPITAL REGIONAL CUSCO | H22: =CONCATENATE(F22," - ",G22) -> 01 - HOSPITAL REGIONAL CUSCO | J22: 02 | K22: 03 | L22: ANTA | M22: 0203 - ANTA | O22: 000002504 | P22: HUANOQUITE | Q22: 01 | R22: 03 | S22: 10 | T22: 05 | U22: 0103 | V22: 000002504 - HUANOQUITE | X22: 12 | Y22: QUISPICANCHI | Z22: 12 - QUISPICANCHI | AB22: 02 | AC22: 03 | AD22: ACOS | AE22: 0203 | AF22: 0203 - ACOS
F23: 02 | G23: HOSPITAL ANTONIO LORENA | H23: =CONCATENATE(F23," - ",G23) -> 02 - HOSPITAL ANTONIO LORENA | J23: 02 | K23: 04 | L23: LIMATAMBO | M23: 0204 - LIMATAMBO | O23: 000002505 | P23: OMACHA | Q23: 01 | R23: 03 | S23: 10 | T23: 06 | U23: 0103 | V23: 000002505 - OMACHA | X23: 13 | Y23: URUBAMBA | Z23: 13 - URUBAMBA | AB23: 02 | AC23: 04 | AD23: MOSOC LLACTA | AE23: 0204 | AF23: 0204 - MOSOC LLACTA
F24: 03 | G24: CUSCO NORTE | H24: 03 - CUSCO NORTE | J24: 02 | K24: 05 | L24: PISAC | M24: 0205 - PISAC | O24: 000002506 | P24: ANTAPALLPA | Q24: 01 | R24: 03 | S24: 10 | T24: 06 | U24: 0103 | V24: 000002506 - ANTAPALLPA | AB24: 02 | AC24: 05 | AD24: POMACANCHI | AE24: 0205 | AF24: 0205 - POMACANCHI
F25: 04 | G25: CUSCO SUR | H25: 04 - CUSCO SUR | J25: 02 | K25: 06 | L25: CALCA | M25: 0206 - CALCA | O25: 000002507 | P25: PACCARECTAMBO | Q25: 01 | R25: 03 | S25: 10 | T25: 07 | U25: 0103 | V25: 000002507 - PACCARECTAMBO | AB25: 02 | AC25: 06 | AD25: RONDOCAN | AE25: 0206 | AF25: 0206 - RONDOCAN
F26: 05 | G26: LA CONVENCION | H26: 05 - LA CONVENCION | J26: 02 | K26: 07 | L26: URUBAMBA | M26: 0207 - URUBAMBA | O26: 000002509 | P26: YAURISQUE | Q26: 01 | R26: 03 | S26: 10 | T26: 09 | U26: 0103 | V26: 000002509 - YAURISQUE | AB26: 02 | AC26: 07 | AD26: SANGARARA | AE26: 0207 | AF26: 0207 - SANGARARA
F27: 06 | G27: HOSPITAL QUILLABAMBA | H27: 06 - HOSPITAL QUILLABAMBA | J27: 02 | K27: 08 | L27: YANATILE | M27: 0208 - YANATILE | O27: 000006978 | P27: CCOCHIRIHUAY | Q27: 01 | R27: 03 | S27: 10 | T27: 04 | U27: 0103 | V27: 000006978 - CCOCHIRIHUAY | AB27: 03 | AC27: 00 | AD27: (All) | AE27: 0300 | AF27: 0300 - (All)
F28: 07 | G28: CANAS CANCHIS ESPINAR | H28: 07 - CANAS CANCHIS ESPINAR | J28: 02 | K28: 09 | L28: SIETE CUARTONES | M28: 0209 - SIETE CUARTONES | O28: 000007147 | P28: PUESTO DE SALUD DE HUASQUILLAY | Q28: 01 | R28: 03 | S28: 10 | T28: 06 | U28: 0103 | V28: 000007147 - PUESTO DE SALUD DE HUASQUILLAY | AB28: 03 | AC28: 01 | AD28: ANTA | AE28: 0301 | AF28: 0301 - ANTA
F29: 08 | G29: HOSPITAL SICUANI | H29: 08 - HOSPITAL SICUANI | J29: 02 | K29: 99 | L29: (All) | M29: 0299 - (All) | O29: 000012924 | P29: SAHUA SAHUA | Q29: 01 | R29: 03 | S29: 10 | T29: 06 | U29: 0103 | V29: 000012924 - SAHUA SAHUA | AB29: 03 | AC29: 02 | AD29: ANCAHUASI | AE29: 0302 | AF29: 0302 - ANCAHUASI
F30: 09 | G30: HOSPITAL ESPINAR | H30: 09 - HOSPITAL ESPINAR | J30: 03 | K30: 00 | L30: NO PERTENECE A NINGUNA MICRORED | M30: 0300 - NO PERTENECE A NINGUNA MICRORED | O30: 000000000 | P30: (All) | Q30: 01 | R30: 06 | U30: 0106 | V30: 000000000 - (All) | AB30: 03 | AC30: 03 | AD30: CACHIMAYO | AE30: 0303 | AF30: 0303 - CACHIMAYO
F31: 10 | G31: KIMBIRI PICHARI | H31: 10 - KIMBIRI PICHARI | J31: 03 | K31: 01 | L31: SANTA ANA | M31: 0301 - SANTA ANA | O31: 000002510 | P31: PAUCARTAMBO | Q31: 01 | R31: 06 | S31: 11 | T31: 01 | U31: 0106 | V31: 000002510 - PAUCARTAMBO | AB31: 03 | AC31: 04 | AD31: CHINCHAYPUJIO | AE31: 0304 | AF31: 0304 - CHINCHAYPUJIO
F32: 11 | G32: CHUMBIVILCAS | H32: 11 - CHUMBIVILCAS | J32: 03 | K32: 02 | L32: MARANURA | M32: 0302 - MARANURA | O32: 000002511 | P32: MOLLOMARCA | Q32: 01 | R32: 06 | S32: 11 | T32: 01 | U32: 0106 | V32: 000002511 - MOLLOMARCA | AB32: 03 | AC32: 05 | AD32: HUAROCONDO | AE32: 0305 | AF32: 0305 - HUAROCONDO
F33: 99 | G33: (ALL) | H33: =CONCATENATE(F33," - ",G33) -> 99 - (ALL) | J33: 03 | K33: 03 | L33: QUELLOUNO | M33: 0303 - QUELLOUNO | O33: 000002512 | P33: CAICAY | Q33: 01 | R33: 06 | S33: 11 | T33: 02 | U33: 0106 | V33: 000002512 - CAICAY | AB33: 03 | AC33: 06 | AD33: LIMATAMBO | AE33: 0306 | AF33: 0306 - LIMATAMBO
J34: 03 | K34: 04 | L34: KITENI | M34: 0304 - KITENI | O34: 000002513 | P34: HUASAC | Q34: 01 | R34: 06 | S34: 11 | T34: 02 | U34: 0106 | V34: 000002513 - HUASAC | AB34: 03 | AC34: 07 | AD34: MOLLEPATA | AE34: 0307 | AF34: 0307 - MOLLEPATA
J35: 03 | K35: 05 | L35: KAMISEA | M35: 0305 - KAMISEA | O35: 000002514 | P35: CHALLABAMBA | Q35: 01 | R35: 06 | S35: 11 | T35: 03 | U35: 0106 | V35: 000002514 - CHALLABAMBA | AB35: 03 | AC35: 08 | AD35: PUCYURA | AE35: 0308 | AF35: 0308 - PUCYURA
J36: 03 | K36: 06 | L36: PUCYURA | M36: 0306 - PUCYURA | O36: 000002516 | P36: COLQUEPATA | Q36: 01 | R36: 06 | S36: 11 | T36: 04 | U36: 0106 | V36: 000002516 - COLQUEPATA | AB36: 03 | AC36: 09 | AD36: ZURITE | AE36: 0309 | AF36: 0309 - ZURITE
J37: 03 | K37: 07 | L37: PALMA REAL | M37: 0307 - PALMA REAL | O37: 000002517 | P37: PICHIHUA COLQUEPATA | Q37: 01 | R37: 06 | S37: 11 | T37: 04 | U37: 0106 | V37: 000002517 - PICHIHUA COLQUEPATA | AB37: 04 | AC37: 00 | AD37: (All) | AE37: 0400 | AF37: 0400 - (All)
J38: 03 | K38: 99 | L38: (All) | M38: 0399 - (All) | O38: 000002518 | P38: VIZCOCHONI | Q38: 01 | R38: 06 | S38: 11 | T38: 04 | U38: 0106 | V38: 000002518 - VIZCOCHONI | AB38: 04 | AC38: 01 | AD38: CALCA | AE38: 0401 | AF38: 0401 - CALCA
J39: 04 | K39: 00 | L39: NO PERTENECE A NINGUNA MICRORED | M39: 0400 - NO PERTENECE A NINGUNA MICRORED | O39: 000002519 | P39: AYRE | Q39: 01 | R39: 06 | S39: 11 | T39: 04 | U39: 0106 | V39: 000002519 - AYRE | AB39: 04 | AC39: 02 | AD39: COYA | AE39: 0402 | AF39: 0402 - COYA
J40: 04 | K40: 01 | L40: YANAOCA | M40: 0401 - YANAOCA | O40: 000002520 | P40: HUANCARANI | Q40: 01 | R40: 06 | S40: 11 | T40: 05 | U40: 0106 | V40: 000002520 - HUANCARANI | AB40: 04 | AC40: 03 | AD40: LAMAY | AE40: 0403 | AF40: 0403 - LAMAY
J41: 04 | K41: 02 | L41: EL DESCANSO | M41: 0402 - EL DESCANSO | O41: 000002521 | P41: PILCOPATA | Q41: 01 | R41: 06 | S41: 11 | T41: 06 | U41: 0106 | V41: 000002521 - PILCOPATA | AB41: 04 | AC41: 04 | AD41: LARES | AE41: 0404 | AF41: 0404 - LARES
J42: 04 | K42: 03 | L42: COMBAPATA | M42: 0403 - COMBAPATA | O42: 000002522 | P42: PATRIA | Q42: 01 | R42: 06 | S42: 11 | T42: 06 | U42: 0106 | V42: 000002522 - PATRIA | AB42: 04 | AC42: 05 | AD42: PISAC | AE42: 0405 | AF42: 0405 - PISAC
J43: 04 | K43: 04 | L43: TECHO OBRERO | M43: 0404 - TECHO OBRERO | O43: 000006979 | P43: TOCRA | Q43: 01 | R43: 06 | S43: 11 | T43: 04 | U43: 0106 | V43: 000006979 - TOCRA | AB43: 04 | AC43: 06 | AD43: SAN SALVADOR | AE43: 0406 | AF43: 0406 - SAN SALVADOR
J44: 04 | K44: 05 | L44: PAMPAPHALLA | M44: 0405 - PAMPAPHALLA | O44: 000010077 | P44: PAUCARTAMBO -ESSALUD | Q44: 01 | R44: 06 | S44: 11 | T44: 01 | U44: 0106 | V44: 000010077 - PAUCARTAMBO -ESSALUD | AB44: 04 | AC44: 07 | AD44: TARAY | AE44: 0407 | AF44: 0407 - TARAY
J45: 04 | K45: 06 | L45: YAURI | M45: 0406 - YAURI | O45: 000033777 | P45: MENTAL COMUNITARIO VIRGEN DEL ROSARIO | Q45: 01 | R45: 06 | S45: 11 | T45: 01 | U45: 0106 | V45: 000033777 - MENTAL COMUNITARIO VIRGEN DEL ROSARIO | AB45: 04 | AC45: 08 | AD45: YANATILE | AE45: 0408 | AF45: 0408 - YANATILE
J46: 04 | K46: 99 | L46: (All) | M46: 0499 - (All) | O46: 000000000 | P46: (All) | Q46: 01 | R46: 12 | U46: 0112 | V46: 000000000 - (All) | AB46: 05 | AC46: 00 | AD46: (All) | AE46: 0500 | AF46: 0500 - (All)
J47: 05 | K47: 00 | L47: NO PERTENECE A NINGUNA MICRORED | M47: 0500 - NO PERTENECE A NINGUNA MICRORED | O47: 000002523 | P47: URCOS | Q47: 01 | R47: 12 | S47: 12 | T47: 01 | U47: 0112 | V47: 000002523 - URCOS | AB47: 05 | AC47: 01 | AD47: YANAOCA | AE47: 0501 | AF47: 0501 - YANAOCA
J48: 05 | K48: 01 | L48: KIMBIRI | M48: 0501 - KIMBIRI | O48: 000002525 | P48: ANDAHUAYLILLAS | Q48: 01 | R48: 12 | S48: 12 | T48: 02 | U48: 0112 | V48: 000002525 - ANDAHUAYLILLAS | AB48: 05 | AC48: 02 | AD48: CHECCA | AE48: 0502 | AF48: 0502 - CHECCA
J49: 05 | K49: 02 | L49: PICHARI | M49: 0502 - PICHARI | O49: 000002530 | P49: CUSIPATA | Q49: 01 | R49: 12 | S49: 12 | T49: 06 | U49: 0112 | V49: 000002530 - CUSIPATA | AB49: 05 | AC49: 03 | AD49: KUNTURKANKI | AE49: 0503 | AF49: 0503 - KUNTURKANKI
J50: 05 | K50: 99 | L50: (All) | M50: 0599 - (All) | O50: 000002532 | P50: HUARO | Q50: 01 | R50: 12 | S50: 12 | T50: 07 | U50: 0112 | V50: 000002532 - HUARO | AB50: 05 | AC50: 04 | AD50: LANGUI | AE50: 0504 | AF50: 0504 - LANGUI
J51: 06 | K51: 00 | L51: NO PERTENECE A NINGUNA MICRORED | M51: 0600 - NO PERTENECE A NINGUNA MICRORED | O51: 000002533 | P51: URPAY | Q51: 01 | R51: 12 | S51: 12 | T51: 07 | U51: 0112 | V51: 000002533 - URPAY | AB51: 05 | AC51: 05 | AD51: LAYO | AE51: 0505 | AF51: 0505 - LAYO
J52: 06 | K52: 09 | L52: SANTO TOMAS | M52: 0609 - SANTO TOMAS | O52: 000002534 | P52: LUCRE | Q52: 01 | R52: 12 | S52: 12 | T52: 08 | U52: 0112 | V52: 000002534 - LUCRE | AB52: 05 | AC52: 06 | AD52: PAMPAMARCA | AE52: 0506 | AF52: 0506 - PAMPAMARCA
J53: 06 | K53: 01 | L53: LIVITACA | M53: 0601 - LIVITACA | O53: 000002537 | P53: OROPESA | Q53: 01 | R53: 12 | S53: 12 | T53: 11 | U53: 0112 | V53: 000002537 - OROPESA | AB53: 05 | AC53: 07 | AD53: QUEHUE | AE53: 0507 | AF53: 0507 - QUEHUE
J54: 06 | K54: 99 | L54: (All) | M54: 0699 - (All) | O54: 000002538 | P54: QUIQUIJANA | Q54: 01 | R54: 12 | S54: 12 | T54: 12 | U54: 0112 | V54: 000002538 - QUIQUIJANA | AB54: 05 | AC54: 08 | AD54: TUPAC AMARU | AE54: 0508 | AF54: 0508 - TUPAC AMARU
J55: 99 | K55: 99 | L55: (All) | M55: 9999 - (All) | O55: 000002539 | P55: CCOLCA | Q55: 01 | R55: 12 | S55: 12 | T55: 12 | U55: 0112 | V55: 000002539 - CCOLCA | AB55: 06 | AC55: 00 | AD55: (All) | AE55: 0600 | AF55: 0600 - (All)
O56: 000006980 | P56: CHILLIHUANI | Q56: 01 | R56: 12 | S56: 12 | T56: 06 | U56: 0112 | V56: 000006980 - CHILLIHUANI | AB56: 06 | AC56: 01 | AD56: SICUANI | AE56: 0601 | AF56: 0601 - SICUANI
O57: 000008911 | P57: HUARA HUARA | Q57: 01 | R57: 12 | S57: 12 | T57: 05 | U57: 0112 | V57: 000008911 - HUARA HUARA | AB57: 06 | AC57: 02 | AD57: CHECACUPE | AE57: 0602 | AF57: 0602 - CHECACUPE
O58: 000011747 | P58: POSTA MEDICA POLICIAL PUCUTO | Q58: 01 | R58: 12 | S58: 12 | T58: 07 | U58: 0112 | V58: 000011747 - POSTA MEDICA POLICIAL PUCUTO | AB58: 06 | AC58: 03 | AD58: COMBAPATA | AE58: 0603 | AF58: 0603 - COMBAPATA
O59: 000026385 | P59: URCOS - ESSALUD | Q59: 01 | R59: 12 | S59: 12 | T59: 01 | U59: 0112 | V59: 000026385 - URCOS - ESSALUD | AB59: 06 | AC59: 04 | AD59: MARANGANI | AE59: 0604 | AF59: 0604 - MARANGANI
O60: 000030708 | P60: MENTAL COMUNITARIO HUARO | Q60: 01 | R60: 12 | S60: 12 | T60: 07 | U60: 0112 | V60: 000030708 - MENTAL COMUNITARIO HUARO | AB60: 06 | AC60: 05 | AD60: PITUMARCA | AE60: 0605 | AF60: 0605 - PITUMARCA
O61: 000000000 | P61: (All) | Q61: 01 | R61: 13 | U61: 0113 | V61: 000000000 - (All) | AB61: 06 | AC61: 06 | AD61: SAN PABLO | AE61: 0606 | AF61: 0606 - SAN PABLO
O62: 000002317 | P62: ACOMAYO | Q62: 01 | R62: 13 | S62: 02 | T62: 01 | U62: 0113 | V62: 000002317 - ACOMAYO | AB62: 06 | AC62: 07 | AD62: SAN PEDRO | AE62: 0607 | AF62: 0607 - SAN PEDRO
O63: 000002318 | P63: ACOPIA | Q63: 01 | R63: 13 | S63: 02 | T63: 02 | U63: 0113 | V63: 000002318 - ACOPIA | AB63: 06 | AC63: 08 | AD63: TINTA | AE63: 0608 | AF63: 0608 - TINTA
O64: 000002319 | P64: ACOS | Q64: 01 | R64: 13 | S64: 02 | T64: 03 | U64: 0113 | V64: 000002319 - ACOS | AB64: 07 | AC64: 00 | AD64: (All) | AE64: 0700 | AF64: 0700 - (All)
O65: 000002321 | P65: POMACANCHI | Q65: 01 | R65: 13 | S65: 02 | T65: 05 | U65: 0113 | V65: 000002321 - POMACANCHI | AB65: 07 | AC65: 01 | AD65: SANTO TOMAS | AE65: 0701 | AF65: 0701 - SANTO TOMAS
O66: 000002322 | P66: SAN JUAN DE POMACANCHI | Q66: 01 | R66: 13 | S66: 02 | T66: 05 | U66: 0113 | V66: 000002322 - SAN JUAN DE POMACANCHI | AB66: 07 | AC66: 02 | AD66: CAPACMARCA | AE66: 0702 | AF66: 0702 - CAPACMARCA
O67: 000002324 | P67: PUESTO DE SALUD SANGARARA | Q67: 01 | R67: 13 | S67: 02 | T67: 07 | U67: 0113 | V67: 000002324 - PUESTO DE SALUD SANGARARA | AB67: 07 | AC67: 03 | AD67: CHAMACA | AE67: 0703 | AF67: 0703 - CHAMACA
O68: 000002325 | P68: PUESTO DE SALUD MARCACONGA | Q68: 01 | R68: 13 | S68: 02 | T68: 07 | U68: 0113 | V68: 000002325 - PUESTO DE SALUD MARCACONGA | AB68: 07 | AC68: 04 | AD68: COLQUEMARCA | AE68: 0704 | AF68: 0704 - COLQUEMARCA
O69: 000002508 | P69: PILLPINTO | Q69: 01 | R69: 13 | S69: 10 | T69: 08 | U69: 0113 | V69: 000002508 - PILLPINTO | AB69: 07 | AC69: 05 | AD69: LIVITACA | AE69: 0705 | AF69: 0705 - LIVITACA
O70: 000010076 | P70: ACOMAYO - ESSALUD | Q70: 01 | R70: 13 | S70: 02 | T70: 01 | U70: 0113 | V70: 000010076 - ACOMAYO - ESSALUD | AB70: 07 | AC70: 06 | AD70: LLUSCO | AE70: 0706 | AF70: 0706 - LLUSCO
N71: 0 | O71: 000012926 | P71: SANTA LUCIA | Q71: 01 | R71: 13 | S71: 02 | T71: 05 | U71: 0113 | V71: 000012926 - SANTA LUCIA | AB71: 07 | AC71: 07 | AD71: QUIÑOTA | AE71: 0707 | AF71: 0707 - QUIÑOTA
N72: 1 | O72: 000000000 | P72: (All) | Q72: 01 | R72: 15 | U72: 0115 | V72: 000000000 - (All) | AB72: 07 | AC72: 08 | AD72: VELILLE | AE72: 0708 | AF72: 0708 - VELILLE
N73: 2 | O73: 000002524 | P73: PAMPACAMARA | Q73: 01 | R73: 15 | S73: 12 | T73: 05 | U73: 0115 | V73: 000002524 - PAMPACAMARA | AB73: 08 | AC73: 00 | AD73: (All) | AE73: 0800 | AF73: 0800 - (All)
N74: 3 | O74: 000002526 | P74: QUINCE MIL | Q74: 01 | R74: 15 | S74: 12 | T74: 03 | U74: 0115 | V74: 000002526 - QUINCE MIL | AB74: 08 | AC74: 01 | AD74: ESPINAR | AE74: 0801 | AF74: 0801 - ESPINAR
N75: 4 | O75: 000002527 | P75: CCARHUAYO | Q75: 01 | R75: 15 | S75: 12 | T75: 04 | U75: 0115 | V75: 000002527 - CCARHUAYO | AB75: 08 | AC75: 02 | AD75: CONDOROMA | AE75: =CONCATENATE(AB75,AC75) -> 0802 | AF75: =CONCATENATE(AB75,AC75," - ",AD75) -> 0802 - CONDOROMA
N76: 5 | O76: 000002528 | P76: CCATCCA | Q76: 01 | R76: 15 | S76: 12 | T76: 05 | U76: 0115 | V76: 000002528 - CCATCCA | AB76: 08 | AC76: 03 | AD76: COPORAQUE | AE76: 0803 | AF76: 0803 - COPORAQUE
N77: 6 | O77: 000002529 | P77: KCAURY | Q77: 01 | R77: 15 | S77: 12 | T77: 05 | U77: 0115 | V77: 000002529 - KCAURY | AB77: 08 | AC77: 04 | AD77: OCORURO | AE77: 0804 | AF77: 0804 - OCORURO
N78: 7 | O78: 000002535 | P78: MARCAPATA | Q78: 01 | R78: 15 | S78: 12 | T78: 09 | U78: 0115 | V78: 000002535 - MARCAPATA | AB78: 08 | AC78: 05 | AD78: PALLPATA | AE78: 0805 | AF78: 0805 - PALLPATA
N79: 9 | O79: 000002536 | P79: OCONGATE | Q79: 01 | R79: 15 | S79: 12 | T79: 10 | U79: 0115 | V79: 000002536 - OCONGATE | AB79: 08 | AC79: 06 | AD79: PICHIGUA | AE79: 0806 | AF79: 0806 - PICHIGUA
N80: 10 | O80: 000006977 | P80: TINKI | Q80: 01 | R80: 15 | S80: 12 | T80: 10 | U80: =CONCATENATE(Q80,R80) -> 0115 | V80: =CONCATENATE(O80," - ",P80) -> 000006977 - TINKI | AB80: 08 | AC80: 07 | AD80: SUYCKUTAMBO | AE80: 0807 | AF80: 0807 - SUYCKUTAMBO
N81: 11 | O81: 000007110 | P81: INCACANCHA | Q81: 01 | R81: 15 | S81: 12 | T81: 09 | U81: 0115 | V81: 000007110 - INCACANCHA | AB81: 08 | AC81: 08 | AD81: ALTO PICHIGUA | AE81: 0808 | AF81: 0808 - ALTO PICHIGUA
N82: 12 | O82: 000012931 | P82: CHICHINA | Q82: 01 | R82: 15 | S82: 12 | T82: 05 | U82: 0115 | V82: 000012931 - CHICHINA | AB82: 09 | AC82: 00 | AD82: (All) | AE82: 0900 | AF82: 0900 - (All)
N83: 13 | O83: 000016335 | P83: CCAPANA | Q83: 01 | R83: 15 | S83: 12 | T83: 05 | U83: 0115 | V83: 000016335 - CCAPANA | AB83: 09 | AC83: 01 | AD83: SANTA ANA | AE83: 0901 | AF83: 0901 - SANTA ANA
N84: 0 | O84: 000000000 | P84: (All) | Q84: 01 | R84: 16 | U84: 0116 | V84: 000000000 - (All) | AB84: 09 | AC84: 02 | AD84: ECHARATE | AE84: 0902 | AF84: 0902 - ECHARATE
N85: 1 | O85: 000002300 | P85: SAN JERONIMO | Q85: 01 | R85: 16 | S85: 01 | T85: 04 | U85: 0116 | V85: 000002300 - SAN JERONIMO | AB85: 09 | AC85: 03 | AD85: HUAYOPATA | AE85: 0903 | AF85: 0903 - HUAYOPATA
N86: 2 | O86: 000002301 | P86: SAN SEBASTIAN | Q86: 01 | R86: 16 | S86: 01 | T86: 05 | U86: 0116 | V86: 000002301 - SAN SEBASTIAN | AB86: 09 | AC86: 04 | AD86: MARANURA | AE86: 0904 | AF86: 0904 - MARANURA
N87: 3 | O87: 000002303 | P87: SANTA ROSA | Q87: 01 | R87: 16 | S87: 01 | T87: 05 | U87: 0116 | V87: 000002303 - SANTA ROSA | AB87: 09 | AC87: 05 | AD87: OCOBAMBA | AE87: 0905 | AF87: 0905 - OCOBAMBA
N88: 4 | O88: 000002314 | P88: SAYLLA | Q88: 01 | R88: 16 | S88: 01 | T88: 07 | U88: 0116 | V88: 000002314 - SAYLLA | AB88: 09 | AC88: 06 | AD88: QUELLOUNO | AE88: 0906 | AF88: 0906 - QUELLOUNO
N89: 5 | O89: 000002323 | P89: RONDOCAN | Q89: 01 | R89: 16 | S89: 02 | T89: 06 | U89: 0116 | V89: 000002323 - RONDOCAN | AB89: 09 | AC89: 07 | AD89: KIMBIRI | AE89: 0907 | AF89: 0907 - KIMBIRI
N90: 6 | O90: 000007699 | P90: CONCHACALLE | Q90: 01 | R90: 16 | S90: 01 | T90: 04 | U90: 0116 | V90: 000007699 - CONCHACALLE | AB90: 09 | AC90: 08 | AD90: SANTA TERESA | AE90: 0908 | AF90: 0908 - SANTA TERESA
N91: 7 | O91: 000010065 | P91: SAN SEBASTIAN ESSALUD | Q91: 01 | R91: 16 | S91: 01 | T91: 05 | U91: 0116 | V91: 000010065 - SAN SEBASTIAN ESSALUD | AB91: 09 | AC91: 09 | AD91: VILCABAMBA | AE91: 0909 | AF91: 0909 - VILCABAMBA
N92: 8 | O92: 000011743 | P92: POLICIAL "SANTA ROSA" CUSCO | Q92: 01 | R92: 16 | S92: 01 | T92: 05 | U92: 0116 | V92: 000011743 - POLICIAL "SANTA ROSA" CUSCO | AB92: 09 | AC92: 10 | AD92: PICHARI | AE92: 0910 | AF92: 0910 - PICHARI
N93: 9 | O93: 000018926 | P93: ESTABLECIMIENTO PENITENCIARIO CUSCO VARONES | Q93: 01 | R93: 16 | S93: 01 | T93: 04 | U93: 0116 | V93: 000018926 - ESTABLECIMIENTO PENITENCIARIO CUSCO VARONES | AB93: 09 | AC93: 11 | AD93: INKAWASI | AE93: 0911 | AF93: 0911 - INKAWASI
N94: 10 | O94: 000021187 | P94: ESTABLECIMIENTO PENITENCIARIO CUSCO MUJERES | Q94: 01 | R94: 16 | S94: 01 | T94: 04 | U94: 0116 | V94: 000021187 - ESTABLECIMIENTO PENITENCIARIO CUSCO MUJERES | AB94: 09 | AC94: 12 | AD94: VILLA VIRGEN | AE94: 0912 | AF94: 0912 - VILLA VIRGEN
N95: 0 | O95: 000026181 | P95: MENTAL SAN SEBASTIAN | Q95: 01 | R95: 16 | S95: 01 | T95: 05 | U95: 0116 | V95: 000026181 - MENTAL SAN SEBASTIAN | AB95: 09 | AC95: 13 | AD95: VILLA KINTIARINA | AE95: 0913 | AF95: 0913 - VILLA KINTIARINA
N96: 1 | O96: 000030727 | P96: PATRÓN SAN SEBASTIAN | Q96: 01 | R96: 16 | S96: 01 | T96: 04 | U96: 0116 | V96: 000030727 - PATRÓN SAN SEBASTIAN | AB96: 09 | AC96: 14 | AD96: MEGANTONI | AE96: 0914 | AF96: 0914 - MEGANTONI
N97: 2 | O97: 999999999 | P97: (All) | Q97: 01 | R97: 99 | U97: 0199 | V97: 999999999 - (All) | AB97: 09 | AC97: 15 | AD97: KUMPIRUSHIATO | AE97: 0915 | AF97: 0915 - KUMPIRUSHIATO
N98: 3 | O98: 000000000 | P98: (All) | Q98: 02 | R98: 01 | U98: 0201 | V98: 000000000 - (All) | AB98: 09 | AC98: 16 | AD98: CIELO PUNCO | AE98: 0916 | AF98: 0916 - CIELO PUNCO
O99: 000002292 | P99: INDEPENDENCIA | Q99: 02 | R99: 01 | S99: 01 | T99: 01 | U99: 0201 | V99: 000002292 - INDEPENDENCIA | AB99: 09 | AC99: 17 | AD99: MANITEA | AE99: 0917 | AF99: 0917 - MANITEA
N100: 4 | O100: 000002297 | P100: CCORCCA | Q100: 02 | R100: 01 | S100: 01 | T100: 02 | U100: 0201 | V100: 000002297 - CCORCCA | AB100: 09 | AC100: 18 | AD100: UNION ASHANINKA | AE100: 0918 | AF100: 0918 - UNION ASHANINKA
N101: 5 | O101: 000002306 | P101: BELEMPAMPA | Q101: 02 | R101: 01 | S101: 01 | T101: 06 | U101: 0201 | V101: 000002306 - BELEMPAMPA | AB101: 09 | AC101: 00 | AD101: (All) | AE101: 0900 | AF101: 0900 - (All)
N102: 6 | O102: 000002308 | P102: ZARZUELA ALTA | Q102: 02 | R102: 01 | S102: 01 | T102: 06 | U102: 0201 | V102: 000002308 - ZARZUELA ALTA | AB102: 10 | AC102: 01 | AD102: PARURO | AE102: 1001 | AF102: 1001 - PARURO
O103: 000002309 | P103: DIGNIDAD NACIONAL | Q103: 02 | R103: 01 | S103: 01 | T103: 06 | U103: 0201 | V103: 000002309 - DIGNIDAD NACIONAL | AB103: 10 | AC103: 02 | AD103: ACCHA | AE103: 1002 | AF103: 1002 - ACCHA
N104: 7 | O104: 000002313 | P104: OCCOPATA | Q104: 02 | R104: 01 | S104: 01 | T104: 06 | U104: 0201 | V104: 000002313 - OCCOPATA | AB104: 10 | AC104: 03 | AD104: CCAPI | AE104: 1003 | AF104: 1003 - CCAPI
N105: 8 | O105: 000010067 | P105: C.M. SANTIAGO ESSALUD | Q105: 02 | R105: 01 | S105: 01 | T105: 06 | U105: 0201 | V105: 000010067 - C.M. SANTIAGO ESSALUD | AB105: 10 | AC105: 04 | AD105: COLCHA | AE105: 1004 | AF105: 1004 - COLCHA
N106: 9 | O106: 000010920 | P106: QUINTA BRIGADA DE MONTAÑA | Q106: 02 | R106: 01 | S106: 01 | T106: 06 | U106: 0201 | V106: 000010920 - QUINTA BRIGADA DE MONTAÑA | AB106: 10 | AC106: 05 | AD106: HUANOQUITE | AE106: 1005 | AF106: 1005 - HUANOQUITE
N107: 10 | O107: 000026182 | P107: MENTAL SANTIAGO | Q107: 02 | R107: 01 | S107: 01 | T107: 06 | U107: 0201 | V107: 000026182 - MENTAL SANTIAGO | AB107: 10 | AC107: 06 | AD107: OMACHA | AE107: 1006 | AF107: 1006 - OMACHA
N108: 11 | O108: 000000000 | P108: (All) | Q108: 02 | R108: 02 | U108: 0202 | V108: 000000000 - (All) | AB108: 10 | AC108: 07 | AD108: PACCARITAMBO | AE108: 1007 | AF108: 1007 - PACCARITAMBO
N109: 0 | O109: 000002302 | P109: CCORAO | Q109: 02 | R109: 02 | S109: 01 | T109: 05 | U109: 0202 | V109: 000002302 - CCORAO | AB109: 10 | AC109: 08 | AD109: PILLPINTO | AE109: 1008 | AF109: 1008 - PILLPINTO
N110: 1 | O110: 000002307 | P110: MANCO CAPAC | Q110: 02 | R110: 02 | S110: 01 | T110: 06 | U110: 0202 | V110: 000002307 - MANCO CAPAC | AB110: 10 | AC110: 09 | AD110: YAURISQUE | AE110: 1009 | AF110: 1009 - YAURISQUE
O111: 000002310 | P111: CHOCCO | Q111: 02 | R111: 02 | S111: 01 | T111: 06 | U111: 0202 | V111: 000002310 - CHOCCO | AB111: 11 | AC111: 00 | AD111: (All) | AE111: 1100 | AF111: 1100 - (All)
O112: 000002315 | P112: WANCHAQ | Q112: 02 | R112: 02 | S112: 01 | T112: 08 | U112: 0202 | V112: 000002315 - WANCHAQ | AB112: 11 | AC112: 01 | AD112: PAUCARTAMBO | AE112: 1101 | AF112: 1101 - PAUCARTAMBO
N113: 2 | O113: 000002316 | P113: TTIO | Q113: 02 | R113: 02 | S113: 01 | T113: 08 | U113: 0202 | V113: 000002316 - TTIO | AB113: 11 | AC113: 02 | AD113: CAICAY | AE113: 1102 | AF113: 1102 - CAICAY
N114: 3 | O114: 000010041 | P114: ADOLFO GUEVARA VELASCO | Q114: 02 | R114: 02 | S114: 01 | T114: 08 | U114: 0202 | V114: 000010041 - ADOLFO GUEVARA VELASCO | AB114: 11 | AC114: 03 | AD114: CHALLABAMBA | AE114: 1103 | AF114: 1103 - CHALLABAMBA
N115: 4 | O115: 000026183 | P115: METROPOLITANO | Q115: 02 | R115: 02 | S115: 01 | T115: 08 | U115: 0202 | V115: 000026183 - METROPOLITANO | AB115: 11 | AC115: 04 | AD115: COLQUEPATA | AE115: 1104 | AF115: 1104 - COLQUEPATA
N116: 5 | O116: 000030730 | P116: PATRON SANTIAGO | Q116: 02 | R116: 02 | S116: 01 | T116: 08 | U116: 0202 | V116: 000030730 - PATRON SANTIAGO | AB116: 11 | AC116: 05 | AD116: HUANCARANI | AE116: 1105 | AF116: 1105 - HUANCARANI
N117: 6 | O117: 000000000 | P117: (All) | Q117: 02 | R117: 03 | U117: 0203 | V117: 000000000 - (All) | AB117: 11 | AC117: 06 | AD117: KOSÑIPATA | AE117: 1106 | AF117: 1106 - KOSÑIPATA
N118: 7 | O118: 000002326 | P118: ANTA | Q118: 02 | R118: 03 | S118: 03 | T118: 01 | U118: 0203 | V118: 000002326 - ANTA | AB118: 12 | AC118: 00 | AD118: (All) | AE118: 1200 | AF118: 1200 - (All)
N119: 0 | O119: 000002327 | P119: CHACAN | Q119: 02 | R119: 03 | S119: 03 | T119: 01 | U119: 0203 | V119: 000002327 - CHACAN | AB119: 12 | AC119: 01 | AD119: URCOS | AE119: 1201 | AF119: 1201 - URCOS
N120: 1 | O120: 000002328 | P120: COMPONE | Q120: 02 | R120: 03 | S120: 03 | T120: 01 | U120: 0203 | V120: 000002328 - COMPONE | AB120: 12 | AC120: 02 | AD120: ANDAHUAYLILLAS | AE120: 1202 | AF120: 1202 - ANDAHUAYLILLAS
N121: 2 | O121: 000002329 | P121: CONCHACALLA | Q121: 02 | R121: 03 | S121: 03 | T121: 01 | U121: 0203 | V121: 000002329 - CONCHACALLA | AB121: 12 | AC121: 03 | AD121: CAMANTI | AE121: 1203 | AF121: 1203 - CAMANTI
N122: 3 | O122: 000002330 | P122: ANCAHUASI | Q122: 02 | R122: 03 | S122: 03 | T122: 02 | U122: 0203 | V122: 000002330 - ANCAHUASI | AB122: 12 | AC122: 04 | AD122: CCARHUAYO | AE122: 1204 | AF122: 1204 - CCARHUAYO
N123: 4 | O123: 000002331 | P123: CACHIMAYO | Q123: 02 | R123: 03 | S123: 03 | T123: 03 | U123: 0203 | V123: 000002331 - CACHIMAYO | AB123: 12 | AC123: 05 | AD123: CCATCA | AE123: 1205 | AF123: 1205 - CCATCA
N124: 5 | O124: 000002332 | P124: CHINCHAYPUJIO | Q124: 02 | R124: 03 | S124: 03 | T124: 04 | U124: 0203 | V124: 000002332 - CHINCHAYPUJIO | AB124: 12 | AC124: 06 | AD124: CUSIPATA | AE124: 1206 | AF124: 1206 - CUSIPATA
N125: 6 | O125: 000002333 | P125: HUAROCONDO | Q125: 02 | R125: 03 | S125: 03 | T125: 05 | U125: 0203 | V125: 000002333 - HUAROCONDO | AB125: 12 | AC125: 07 | AD125: HUARO | AE125: 1207 | AF125: 1207 - HUARO
N126: 7 | O126: 000002334 | P126: HUAYLLACOCHA | Q126: 02 | R126: 03 | S126: 03 | T126: 05 | U126: 0203 | V126: 000002334 - HUAYLLACOCHA | AB126: 12 | AC126: 08 | AD126: LUCRE | AE126: 1208 | AF126: 1208 - LUCRE
O127: 000002339 | P127: PUCYURA ANTA | Q127: 02 | R127: 03 | S127: 03 | T127: 08 | U127: 0203 | V127: 000002339 - PUCYURA ANTA | AB127: 12 | AC127: 09 | AD127: MARCAPATA | AE127: 1209 | AF127: 1209 - MARCAPATA
N128: 8 | O128: 000002340 | P128: ZURITE | Q128: 02 | R128: 03 | S128: 03 | T128: 09 | U128: 0203 | V128: 000002340 - ZURITE | AB128: 12 | AC128: 10 | AD128: OCONGATE | AE128: 1210 | AF128: 1210 - OCONGATE
N129: 9 | O129: 000006972 | P129: PANTIPATA | Q129: 02 | R129: 03 | S129: 03 | T129: 04 | U129: 0203 | V129: 000006972 - PANTIPATA | AB129: 12 | AC129: 11 | AD129: OROPESA | AE129: 1211 | AF129: 1211 - OROPESA
N130: 10 | O130: 000027790 | P130: MENTAL COMUNITARIO ANTA | Q130: 02 | R130: 03 | S130: 03 | T130: 01 | U130: 0203 | V130: 000027790 - MENTAL COMUNITARIO ANTA | AB130: 12 | AC130: 12 | AD130: QUIQUIJANA | AE130: 1212 | AF130: 1212 - QUIQUIJANA
O131: 000029514 | P131: ESSALUD ANTA | Q131: 02 | R131: 03 | S131: 03 | T131: 01 | U131: 0203 | V131: 000029514 - ESSALUD ANTA | AB131: 13 | AC131: 00 | AD131: (All) | AE131: 1300 | AF131: 1300 - (All)
O132: 000000000 | P132: (All) | Q132: 02 | R132: 04 | U132: 0204 | V132: 000000000 - (All) | AB132: 13 | AC132: 01 | AD132: URUBAMBA | AE132: 1301 | AF132: 1301 - URUBAMBA
O133: 000002336 | P133: LIMATAMBO | Q133: 02 | R133: 04 | S133: 03 | T133: 06 | U133: 0204 | V133: 000002336 - LIMATAMBO | AB133: 13 | AC133: 02 | AD133: CHINCHERO | AE133: 1302 | AF133: 1302 - CHINCHERO
O134: 000002337 | P134: PAMPACONGA | Q134: 02 | R134: 04 | S134: 03 | T134: 06 | U134: 0204 | V134: 000002337 - PAMPACONGA | AB134: 13 | AC134: 03 | AD134: HUAYLLABAMBA | AE134: 1303 | AF134: 1303 - HUAYLLABAMBA
O135: 000002338 | P135: MOLLEPATA | Q135: 02 | R135: 04 | S135: 03 | T135: 07 | U135: 0204 | V135: 000002338 - MOLLEPATA | AB135: 13 | AC135: 04 | AD135: MACHUPICCHU | AE135: 1304 | AF135: 1304 - MACHUPICCHU
O136: 000010761 | P136: URATARI | Q136: 02 | R136: 04 | S136: 03 | T136: 06 | U136: 0204 | V136: 000010761 - URATARI | AB136: 13 | AC136: 05 | AD136: MARAS | AE136: 1305 | AF136: 1305 - MARAS
O137: 000021061 | P137: HUAMANPATA | Q137: 02 | R137: 04 | S137: 03 | T137: 07 | U137: 0204 | V137: 000021061 - HUAMANPATA | AB137: 13 | AC137: 06 | AD137: OLLANTAYTAMBO | AE137: 1306 | AF137: 1306 - OLLANTAYTAMBO
O138: 000000000 | P138: (All) | Q138: 02 | R138: 05 | U138: 0205 | V138: 000000000 - (All) | AB138: 13 | AC138: 07 | AD138: YUCAY | AE138: =CONCATENATE(AB138,AC138) -> 1307 | AF138: 1307 - YUCAY
O139: 000002343 | P139: COYA | Q139: 02 | R139: 05 | S139: 04 | T139: 02 | U139: 0205 | V139: 000002343 - COYA | AB139: 00 | AC139: 00 | AD139: (All) | AE139: =CONCATENATE(AB139,AC139) -> 0000 | AF139: 0000 - (All)
O140: 000002344 | P140: LAMAY | Q140: 02 | R140: 05 | S140: 04 | T140: 03 | U140: 0205 | V140: 000002344 - LAMAY
O141: 000002348 | P141: PISAC | Q141: 02 | R141: 05 | S141: 04 | T141: 05 | U141: 0205 | V141: 000002348 - PISAC
O142: 000002349 | P142: CUYO CHICO | Q142: 02 | R142: 05 | S142: 04 | T142: 05 | U142: 0205 | V142: 000002349 - CUYO CHICO
O143: 000002350 | P143: CUYO GRANDE | Q143: 02 | R143: 05 | S143: 04 | T143: 05 | U143: 0205 | V143: 000002350 - CUYO GRANDE
O144: 000002351 | P144: QUELLO QUELLO | Q144: 02 | R144: 05 | S144: 04 | T144: 05 | U144: 0205 | V144: 000002351 - QUELLO QUELLO
O145: 000002352 | P145: SAN SALVADOR | Q145: 02 | R145: 05 | S145: 04 | T145: 06 | U145: 0205 | V145: 000002352 - SAN SALVADOR
O146: 000002353 | P146: TARAY | Q146: 02 | R146: 05 | S146: 04 | T146: 07 | U146: 0205 | V146: 000002353 - TARAY
O147: 000002354 | P147: HUANCALLE | Q147: 02 | R147: 05 | S147: 04 | T147: 07 | U147: 0205 | V147: 000002354 - HUANCALLE
O148: 000006970 | P148: TIRACANCHA | Q148: 02 | R148: 05 | S148: 04 | T148: 06 | U148: 0205 | V148: 000006970 - TIRACANCHA
O149: 000006975 | P149: SAYLLAFAYA | Q149: 02 | R149: 05 | S149: 04 | T149: 03 | U149: 0205 | V149: 000006975 - SAYLLAFAYA
O150: 000007145 | P150: HUAMA | Q150: 02 | R150: 05 | S150: 04 | T150: 03 | U150: =CONCATENATE(Q150,R150) -> 0205 | V150: =CONCATENATE(O150," - ",P150) -> 000007145 - HUAMA
O151: 000007146 | P151: POQUES | Q151: 02 | R151: 05 | S151: 04 | T151: 03 | U151: 0205 | V151: 000007146 - POQUES
O152: 000025368 | P152: HUARQUI | Q152: 02 | R152: 05 | S152: 04 | T152: 03 | U152: 0205 | V152: 000025368 - HUARQUI
O153: 000000000 | P153: (All) | Q153: 02 | R153: 06 | U153: 0206 | V153: 000000000 - (All)
O154: 000002341 | P154: CALCA | Q154: 02 | R154: 06 | S154: 04 | T154: 01 | U154: 0206 | V154: 000002341 - CALCA
O155: 000002342 | P155: AMPARAES | Q155: 02 | R155: 06 | S155: 04 | T155: 04 | U155: 0206 | V155: 000002342 - AMPARAES
O156: 000002345 | P156: CCACHIN | Q156: 02 | R156: 06 | S156: 04 | T156: 04 | U156: 0206 | V156: 000002345 - CCACHIN
O157: 000002346 | P157: CHOQUECANCHA | Q157: 02 | R157: 06 | S157: 04 | T157: 04 | U157: 0206 | V157: 000002346 - CHOQUECANCHA
O158: 000002347 | P158: LARES | Q158: 02 | R158: 06 | S158: 04 | T158: 04 | U158: 0206 | V158: 000002347 - LARES
O159: 000002361 | P159: SUYO | Q159: 02 | R159: 06 | S159: 04 | T159: 04 | U159: 0206 | V159: 000002361 - SUYO
O160: 000002515 | P160: PAROBAMBA | Q160: 02 | R160: 06 | S160: 11 | T160: 03 | U160: 0206 | V160: 000002515 - PAROBAMBA
O161: 000007143 | P161: OTOCANI | Q161: 02 | R161: 06 | S161: 11 | T161: 03 | U161: 0206 | V161: 000007143 - OTOCANI
O162: 000007144 | P162: PATABAMBA | Q162: 02 | R162: 06 | S162: 04 | T162: 07 | U162: 0206 | V162: 000007144 - PATABAMBA
O163: 000010069 | P163: ESSALUD CALCA | Q163: 02 | R163: 06 | S163: 04 | T163: 01 | U163: 0206 | V163: 000010069 - ESSALUD CALCA
O164: 000010759 | P164: HUARAN | Q164: 02 | R164: 06 | S164: 04 | T164: 01 | U164: 0206 | V164: 000010759 - HUARAN
O165: 000010762 | P165: ACCHA ALTA - PAMPALLACTA | Q165: 02 | R165: 06 | S165: 04 | T165: 01 | U165: 0206 | V165: 000010762 - ACCHA ALTA - PAMPALLACTA
O166: 000026273 | P166: MENTAL COMUNITARIO VIRGEN ASUNTA DE CALCA | Q166: 02 | R166: 06 | S166: 04 | T166: 01 | U166: 0206 | V166: 000026273 - MENTAL COMUNITARIO VIRGEN ASUNTA DE CALCA
O167: 000000000 | P167: (All) | Q167: 02 | R167: 07 | U167: 0207 | V167: 000000000 - (All)
O168: 000002540 | P168: URUBAMBA | Q168: 02 | R168: 07 | S168: 13 | T168: 01 | U168: 0207 | V168: 000002540 - URUBAMBA
O169: 000002541 | P169: YANAHUARA | Q169: 02 | R169: 07 | S169: 13 | T169: 01 | U169: 0207 | V169: 000002541 - YANAHUARA
O170: 000002543 | P170: CHINCHERO | Q170: 02 | R170: 07 | S170: 13 | T170: 02 | U170: 0207 | V170: 000002543 - CHINCHERO
O171: 000002544 | P171: OCCOTUAN | Q171: 02 | R171: 07 | S171: 13 | T171: 02 | U171: 0207 | V171: 000002544 - OCCOTUAN
O172: 000002545 | P172: HUAYLLABAMBA | Q172: 02 | R172: 07 | S172: 13 | T172: 03 | U172: 0207 | V172: 000002545 - HUAYLLABAMBA
O173: 000002546 | P173: MACHUPICCHU | Q173: 02 | R173: 07 | S173: 13 | T173: 04 | U173: 0207 | V173: 000002546 - MACHUPICCHU
O174: 000002547 | P174: COLLPANI | Q174: 02 | R174: 07 | S174: 13 | T174: 04 | U174: 0207 | V174: 000002547 - COLLPANI
O175: 000002548 | P175: MARAS | Q175: 02 | R175: 07 | S175: 13 | T175: 05 | U175: 0207 | V175: 000002548 - MARAS
O176: 000002549 | P176: OLLANTAYTAMBO | Q176: 02 | R176: 07 | S176: 13 | T176: 06 | U176: 0207 | V176: 000002549 - OLLANTAYTAMBO
O177: 000002550 | P177: CHILLCA | Q177: 02 | R177: 07 | S177: 13 | T177: 06 | U177: 0207 | V177: 000002550 - CHILLCA
O178: 000002551 | P178: YUCAY | Q178: 02 | R178: 07 | S178: 13 | T178: 07 | U178: 0207 | V178: 000002551 - YUCAY
O179: 000006974 | P179: CAMINO INCA HUAYLLABAMBA | Q179: 02 | R179: 07 | S179: 13 | T179: 04 | U179: 0207 | V179: 000006974 - CAMINO INCA HUAYLLABAMBA
O180: 000010060 | P180: CAS URUBAMBA -ESSALUD | Q180: 02 | R180: 07 | S180: 13 | T180: 01 | U180: 0207 | V180: 000010060 - CAS URUBAMBA -ESSALUD
O181: 000010073 | P181: MACHU PICCHU - ESSALUD | Q181: 02 | R181: 07 | S181: 13 | T181: 04 | U181: 0207 | V181: 000010073 - MACHU PICCHU - ESSALUD
O182: 000010758 | P182: CRUZPATA | Q182: 02 | R182: 07 | S182: 13 | T182: 05 | U182: 0207 | V182: 000010758 - CRUZPATA
O183: 000010760 | P183: PATACANCHA | Q183: 02 | R183: 07 | S183: 13 | T183: 06 | U183: 0207 | V183: 000010760 - PATACANCHA
O184: 000030666 | P184: MENTAL COMUNITARIO URUBAMBA | Q184: 02 | R184: 07 | S184: 13 | T184: 01 | U184: 0207 | V184: 000030666 - MENTAL COMUNITARIO URUBAMBA
O185: 000000000 | P185: (All) | Q185: 02 | R185: 08 | U185: 0208 | V185: 000000000 - (All)
O186: 000002355 | P186: LA QUEBRADA | Q186: 02 | R186: 08 | S186: 04 | T186: 08 | U186: 0208 | V186: 000002355 - LA QUEBRADA
O187: 000002356 | P187: CCORIMAYO | Q187: 02 | R187: 08 | S187: 04 | T187: 08 | U187: 0208 | V187: 000002356 - CCORIMAYO
O188: 000002357 | P188: COLCCA YANATILE | Q188: 02 | R188: 08 | S188: 04 | T188: 08 | U188: 0208 | V188: 000002357 - COLCCA YANATILE
O189: 000002358 | P189: MUYUPAY | Q189: 02 | R189: 08 | S189: 04 | T189: 08 | U189: 0208 | V189: 000002358 - MUYUPAY
O190: 000002359 | P190: PUTUCUSI | Q190: 02 | R190: 08 | S190: 04 | T190: 08 | U190: 0208 | V190: 000002359 - PUTUCUSI
O191: 000002360 | P191: QUESQUENTO | Q191: 02 | R191: 08 | S191: 04 | T191: 08 | U191: 0208 | V191: 000002360 - QUESQUENTO
O192: 000002362 | P192: HUACHIBAMBA | Q192: 02 | R192: 08 | S192: 04 | T192: 08 | U192: 0208 | V192: 000002362 - HUACHIBAMBA
O193: 000002464 | P193: VERSALLES | Q193: 02 | R193: 08 | S193: 09 | T193: 05 | U193: 0208 | V193: 000002464 - VERSALLES
O194: 000002467 | P194: PUENTE SANTIAGO | Q194: 02 | R194: 08 | S194: 09 | T194: 06 | U194: 0208 | V194: 000002467 - PUENTE SANTIAGO
O195: 000006971 | P195: COMBAPATA YANATILE | Q195: 02 | R195: 08 | S195: 04 | T195: 08 | U195: 0208 | V195: 000006971 - COMBAPATA YANATILE
O196: 000006973 | P196: BELLAVISTA | Q196: 02 | R196: 08 | S196: 04 | T196: 08 | U196: 0208 | V196: 000006973 - BELLAVISTA
O197: 000007142 | P197: CHANCAMAYO | Q197: 02 | R197: 08 | S197: 04 | T197: 08 | U197: 0208 | V197: 000007142 - CHANCAMAYO
O198: 000000000 | P198: (All) | Q198: 02 | R198: 09 | U198: 0209 | V198: 000000000 - (All)
O199: 000002290 | P199: SAN PEDRO CUSCO | Q199: 02 | R199: 09 | S199: 01 | T199: 01 | U199: 0209 | V199: 000002290 - SAN PEDRO CUSCO
O200: 000002291 | P200: SIETE CUARTONES | Q200: 02 | R200: 09 | S200: 01 | T200: 01 | U200: 0209 | V200: 000002291 - SIETE CUARTONES
O201: 000002293 | P201: MIRAFLORES | Q201: 02 | R201: 09 | S201: 01 | T201: 01 | U201: 0209 | V201: 000002293 - MIRAFLORES
O202: 000002294 | P202: PICCHU LA RINCONADA | Q202: 02 | R202: 09 | S202: 01 | T202: 01 | U202: 0209 | V202: 000002294 - PICCHU LA RINCONADA
O203: 000002295 | P203: BUENA VISTA | Q203: 02 | R203: 09 | S203: 01 | T203: 01 | U203: 0209 | V203: 000002295 - BUENA VISTA
O204: 000002299 | P204: POROY | Q204: 02 | R204: 09 | S204: 01 | T204: 03 | U204: 0209 | V204: 000002299 - POROY
O205: 999999999 | P205: (All) | Q205: 02 | R205: 99 | U205: 0299 | V205: 999999999 - (All)
O206: 000002421 | P206: QUILLABAMBA | Q206: 03 | R206: 00 | S206: 09 | T206: 01 | U206: 0300 | V206: 000002421 - QUILLABAMBA
O207: 000000000 | P207: (All) | Q207: 03 | R207: 01 | U207: 0301 | V207: 000000000 - (All)
O208: 000002422 | P208: HUAYANAY | Q208: 03 | R208: 01 | S208: 09 | T208: 01 | U208: 0301 | V208: 000002422 - HUAYANAY
... 236 more rows
